Posting date,Supplier number,Supplier name,Expense type,Department,Amount
11/01/2021,1249077,The Advocacy Project,Hired and Contracted Services,ASC Procurement and Business Intelligenc,51294.00
25/01/2021,1243869,Addison Lee,Postage and Delivery,Adult Social Care Finance and Resources,696.00
19/03/2021,D000000016,PERSONAL PAYMENTS,Hired and Contracted Services,Adult Social Care Finance and Resources,9125.00
05/02/2021,1276288,Holtwood Solutions Limited,Other Expenses,Adult Social Care Finance and Resources,1680.00
08/02/2021,1276288,Holtwood Solutions Limited,Hired and Contracted Services,Adult Social Care Finance and Resources,2445.00
08/02/2021,1276288,Holtwood Solutions Limited,Hired and Contracted Services,Adult Social Care Finance and Resources,7884.00
08/02/2021,1276288,Holtwood Solutions Limited,Hired and Contracted Services,Adult Social Care Finance and Resources,1400.00
08/02/2021,1276288,Holtwood Solutions Limited,Hired and Contracted Services,Adult Social Care Finance and Resources,6673.20
26/02/2021,1274153,Notting Hill Genesis,,Adult Social Care Finance and Resources,17842.00
19/01/2021,1249167,TMP (UK) Ltd,Recruitment Expenses (excl. advertising),Adult Social Care Finance and Resources,2785.00
19/01/2021,1245228,Pohwer,Hired and Contracted Services,Adult Social Care Finance and Resources,5176.02
25/01/2021,1245228,Pohwer,Hired and Contracted Services,Adult Social Care Finance and Resources,1250.00
22/02/2021,1245228,Pohwer,Hired and Contracted Services,Adult Social Care Finance and Resources,540.00
22/03/2021,1245228,Pohwer,Hired and Contracted Services,Adult Social Care Finance and Resources,1550.00
10/02/2021,1245693,London Borough Of Hammersmith &,B*Payments to OLAs - Southampton City Co,Adult Social Care Finance and Resources,65721.00
18/03/2021,1245693,London Borough Of Hammersmith &,B*Payments to OLAs - Southampton City Co,Adult Social Care Finance and Resources,89636.00
05/02/2021,1251196,Royal Borough of Kensington and,B*Payments to OLAs - Southampton City Co,Adult Social Care Finance and Resources,348035.00
05/02/2021,1251196,Royal Borough of Kensington and,B*Payments to OLAs - Southampton City Co,Adult Social Care Finance and Resources,180377.00
10/02/2021,1251196,Royal Borough of Kensington and,B*Payments to OLAs - Southampton City Co,Adult Social Care Finance and Resources,78285.99
25/03/2021,1251196,Royal Borough of Kensington and,B*Payments to OLAs - Southampton City Co,Adult Social Care Finance and Resources,84338.01
25/03/2021,1251196,Royal Borough of Kensington and,B*Payments to OLAs - Southampton City Co,Adult Social Care Finance and Resources,358775.00
29/03/2021,1251196,Royal Borough of Kensington and,B*Payments to OLAs - Southampton City Co,Adult Social Care Finance and Resources,82231.00
29/03/2021,1243778,Royal Borough of Kensington and Che,B*Payments to OLAs - Portsmouth City Coun,Adult Social Care Finance and Resources,29306.00
29/03/2021,1243778,Royal Borough of Kensington and Che,B*Payments to OLAs - Portsmouth City Coun,Adult Social Care Finance and Resources,34289.00
15/02/2021,1255843,A.I. Care Services Ltd,Hired and Contracted Services,Adult Social Care Operations,878.65
09/03/2021,1255843,A.I. Care Services Ltd,Grant Aid and Donations,Adult Social Care Operations,5360.00
15/02/2021,1274895,ABLE HOMECARE LTD,Hired and Contracted Services,Adult Social Care Operations,1206.88
09/03/2021,1274895,ABLE HOMECARE LTD,Grant Aid and Donations,Adult Social Care Operations,5360.00
30/03/2021,1243869,Addison Lee,Grant Aid and Donations,Adult Social Care Operations,6204.25
15/02/2021,1245982,Anchor Trust,Hired and Contracted Services,Adult Social Care Operations,14867.98
12/03/2021,1245982,Anchor Trust,Grant Aid and Donations,Adult Social Care Operations,17128.72
24/03/2021,1245982,Anchor Trust,Grant Aid and Donations,Adult Social Care Operations,21598.57
26/03/2021,1245982,Anchor Trust,Grant Aid and Donations,Adult Social Care Operations,4400.73
15/02/2021,1243931,Ashbourne Healthcare Services,Hired and Contracted Services,Adult Social Care Operations,2635.94
09/03/2021,1243931,Ashbourne Healthcare Services,Grant Aid and Donations,Adult Social Care Operations,10000.00
09/03/2021,1246313,Camden Chinese Community Centre,Grant Aid and Donations,Adult Social Care Operations,5360.00
15/02/2021,1245091,Care UK Community Partnerships Ltd,Hired and Contracted Services,Adult Social Care Operations,42002.05
12/03/2021,1245091,Care UK Community Partnerships Ltd,Grant Aid and Donations,Adult Social Care Operations,48388.62
24/03/2021,1245091,Care UK Community Partnerships Ltd,Grant Aid and Donations,Adult Social Care Operations,21598.57
26/03/2021,1245091,Care UK Community Partnerships Ltd,Grant Aid and Donations,Adult Social Care Operations,5975.00
30/03/2021,1244180,City University,Grant Aid and Donations,Adult Social Care Operations,8730.00
30/03/2021,1244180,City University,Grant Aid and Donations,Adult Social Care Operations,8730.00
15/02/2021,1268176,Conquest Care and Support,Hired and Contracted Services,Adult Social Care Operations,1025.09
09/03/2021,1268176,Conquest Care and Support,Grant Aid and Donations,Adult Social Care Operations,10000.00
19/03/2021,1254240,Enterprise Care Support Ltd,Grant Aid and Donations,Adult Social Care Operations,5360.00
19/03/2021,1271457,Equicare Services Ltd,Grant Aid and Donations,Adult Social Care Operations,5360.00
15/02/2021,1259597,Ethica Services LTD,Hired and Contracted Services,Adult Social Care Operations,4979.00
09/03/2021,1259597,Ethica Services LTD,Grant Aid and Donations,Adult Social Care Operations,10000.00
15/02/2021,1276119,Feelcare Domiciliary Services Ltd,Hired and Contracted Services,Adult Social Care Operations,3218.34
09/03/2021,1276119,Feelcare Domiciliary Services Ltd,Grant Aid and Donations,Adult Social Care Operations,5360.00
15/02/2021,1273817,GCH Alan Morkill House Ltd,Hired and Contracted Services,Adult Social Care Operations,31222.76
12/03/2021,1273817,GCH Alan Morkill House Ltd,Grant Aid and Donations,Adult Social Care Operations,35970.31
24/03/2021,1273817,GCH Alan Morkill House Ltd,Grant Aid and Donations,Adult Social Care Operations,21598.57
26/03/2021,1273817,GCH Alan Morkill House Ltd,Grant Aid and Donations,Adult Social Care Operations,6482.47
15/02/2021,1275061,Health Professionals Recruitment,Hired and Contracted Services,Adult Social Care Operations,6034.40
09/03/2021,1247257,Health Vision Uk,Grant Aid and Donations,Adult Social Care Operations,15000.00
15/02/2021,1244556,Homecare Alliance Ltd,Hired and Contracted Services,Adult Social Care Operations,1317.97
09/03/2021,1244556,Homecare Alliance Ltd,Grant Aid and Donations,Adult Social Care Operations,10000.00
15/02/2021,1254857,Hope Care Agency,Hired and Contracted Services,Adult Social Care Operations,2050.17
09/03/2021,1254857,Hope Care Agency,Grant Aid and Donations,Adult Social Care Operations,10000.00
15/02/2021,1256893,Kapital Care WCC,Hired and Contracted Services,Adult Social Care Operations,4539.67
09/03/2021,1256893,Kapital Care WCC,Grant Aid and Donations,Adult Social Care Operations,10000.00
15/02/2021,1247650,London Care Ltd,Hired and Contracted Services,Adult Social Care Operations,26953.67
15/02/2021,1259132,MMR Home Care LTD,Hired and Contracted Services,Adult Social Care Operations,11715.28
09/03/2021,1259132,MMR Home Care LTD,Grant Aid and Donations,Adult Social Care Operations,10000.00
15/02/2021,1266168,Midshire Care LTD,Hired and Contracted Services,Adult Social Care Operations,2196.62
15/02/2021,1266168,Midshire Care LTD,Hired and Contracted Services,Adult Social Care Operations,2614.91
19/03/2021,1266168,Midshire Care LTD,Grant Aid and Donations,Adult Social Care Operations,5360.00
15/02/2021,1274153,Notting Hill Genesis,Hired and Contracted Services,Adult Social Care Operations,8247.02
19/03/2021,1274153,Notting Hill Genesis,Grant Aid and Donations,Adult Social Care Operations,5360.00
09/03/2021,1244959,Oasis Care & Training Agency(octa),Grant Aid and Donations,Adult Social Care Operations,5360.00
15/02/2021,1244971,Octavia Housing (Main Account),Hired and Contracted Services,Adult Social Care Operations,5229.82
11/03/2021,1244971,Octavia Housing (Main Account),,Adult Social Care Operations,21319.35
09/03/2021,1268348,Ohio Homecare ltd,Grant Aid and Donations,Adult Social Care Operations,10000.00
12/03/2021,1268348,Ohio Homecare ltd,Hired and Contracted Services,Adult Social Care Operations,585.76
19/03/2021,1245005,PERSONAL PAYMENTS,Grant Aid and Donations,Adult Social Care Operations,2620.00
15/02/2021,1268191,Prime Way Care Ltd London,Hired and Contracted Services,Adult Social Care Operations,3807.47
09/03/2021,1268191,Prime Way Care Ltd London,Grant Aid and Donations,Adult Social Care Operations,10000.00
15/02/2021,1248541,Priory Nursing Agency & Home Care,Hired and Contracted Services,Adult Social Care Operations,2489.50
09/03/2021,1248541,Priory Nursing Agency & Home Care,Grant Aid and Donations,Adult Social Care Operations,10000.00
15/02/2021,1245316,Respect Care Services Ltd,Hired and Contracted Services,Adult Social Care Operations,11715.28
19/03/2021,1245316,Respect Care Services Ltd,Grant Aid and Donations,Adult Social Care Operations,15000.00
15/02/2021,1248843,Sage Care Ltd,Hired and Contracted Services,Adult Social Care Operations,11715.28
15/02/2021,1243532,Sanctuary Care Ltd,Hired and Contracted Services,Adult Social Care Operations,14867.98
15/02/2021,1243532,Sanctuary Care Ltd,Hired and Contracted Services,Adult Social Care Operations,8549.09
15/02/2021,1243532,Sanctuary Care Ltd,Hired and Contracted Services,Adult Social Care Operations,15611.38
12/03/2021,1243532,Sanctuary Care Ltd,Grant Aid and Donations,Adult Social Care Operations,17985.15
12/03/2021,1243532,Sanctuary Care Ltd,Grant Aid and Donations,Adult Social Care Operations,17128.72
12/03/2021,1243532,Sanctuary Care Ltd,Grant Aid and Donations,Adult Social Care Operations,9849.01
24/03/2021,1243532,Sanctuary Care Ltd,Grant Aid and Donations,Adult Social Care Operations,21598.57
24/03/2021,1243532,Sanctuary Care Ltd,Grant Aid and Donations,Adult Social Care Operations,21598.57
24/03/2021,1243532,Sanctuary Care Ltd,Grant Aid and Donations,Adult Social Care Operations,21598.57
26/03/2021,1243532,Sanctuary Care Ltd,Grant Aid and Donations,Adult Social Care Operations,4267.41
26/03/2021,1243532,Sanctuary Care Ltd,Grant Aid and Donations,Adult Social Care Operations,2956.86
26/03/2021,1243532,Sanctuary Care Ltd,Grant Aid and Donations,Adult Social Care Operations,4823.46
15/02/2021,1248878,Sevacare (Uk) Ltd,Hired and Contracted Services,Adult Social Care Operations,1171.53
09/03/2021,1248878,Sevacare (Uk) Ltd,Grant Aid and Donations,Adult Social Care Operations,10000.00
15/02/2021,1248913,Smithfield Health & Social Care,Hired and Contracted Services,Adult Social Care Operations,9079.34
09/03/2021,1248913,Smithfield Health & Social Care,Grant Aid and Donations,Adult Social Care Operations,10000.00
19/03/2021,1257177,St Georges Home Care Ltd,Grant Aid and Donations,Adult Social Care Operations,5360.00
15/02/2021,1243548,St Georges Nursing Home Ltd,Hired and Contracted Services,Adult Social Care Operations,16354.78
12/03/2021,1243548,St Georges Nursing Home Ltd,Grant Aid and Donations,Adult Social Care Operations,18841.59
24/03/2021,1243548,St Georges Nursing Home Ltd,Grant Aid and Donations,Adult Social Care Operations,21598.58
26/03/2021,1243548,St Georges Nursing Home Ltd,Grant Aid and Donations,Adult Social Care Operations,3403.00
15/02/2021,1245182,Supporting Care Ltd,Hired and Contracted Services,Adult Social Care Operations,1171.53
09/03/2021,1245182,Supporting Care Ltd,Grant Aid and Donations,Adult Social Care Operations,10000.00
19/03/2021,1268855,Supreme Care Services Ltd,Grant Aid and Donations,Adult Social Care Operations,5360.00
15/02/2021,1245825,Sweet Tree Home Care Services,Hired and Contracted Services,Adult Social Care Operations,1317.97
09/03/2021,1245825,Sweet Tree Home Care Services,Grant Aid and Donations,Adult Social Care Operations,10000.00
24/03/2021,1270971,Train2Protect International Limited,Other Expenses,Adult Social Care Operations,3050.00
15/02/2021,1249232,Vincentian Care Plus,Hired and Contracted Services,Adult Social Care Operations,34194.95
09/03/2021,1249232,Vincentian Care Plus,Grant Aid and Donations,Adult Social Care Operations,15000.00
15/02/2021,1249291,Westminster Society,Hired and Contracted Services,Adult Social Care Operations,1115.10
15/02/2021,1249291,Westminster Society,Hired and Contracted Services,Adult Social Care Operations,1858.50
15/02/2021,1249291,Westminster Society,Hired and Contracted Services,Adult Social Care Operations,1486.80
15/02/2021,1249291,Westminster Society,Hired and Contracted Services,Adult Social Care Operations,3661.03
15/02/2021,1249291,Westminster Society,Hired and Contracted Services,Adult Social Care Operations,1858.50
15/02/2021,1249291,Westminster Society,Hired and Contracted Services,Adult Social Care Operations,1486.80
15/02/2021,1249291,Westminster Society,Hired and Contracted Services,Adult Social Care Operations,21925.00
12/03/2021,1249291,Westminster Society,Grant Aid and Donations,Adult Social Care Operations,2141.09
12/03/2021,1249291,Westminster Society,Grant Aid and Donations,Adult Social Care Operations,2141.09
12/03/2021,1249291,Westminster Society,Grant Aid and Donations,Adult Social Care Operations,1712.87
12/03/2021,1249291,Westminster Society,Grant Aid and Donations,Adult Social Care Operations,1284.65
12/03/2021,1249291,Westminster Society,Grant Aid and Donations,Adult Social Care Operations,1712.87
19/03/2021,1249291,Westminster Society,Grant Aid and Donations,Adult Social Care Operations,5360.00
19/03/2021,1249291,Westminster Society,Grant Aid and Donations,Adult Social Care Operations,66548.00
24/03/2021,1249291,Westminster Society,Grant Aid and Donations,Adult Social Care Operations,5000.00
24/03/2021,1249291,Westminster Society,Grant Aid and Donations,Adult Social Care Operations,5000.00
24/03/2021,1249291,Westminster Society,Grant Aid and Donations,Adult Social Care Operations,5000.00
24/03/2021,1249291,Westminster Society,Grant Aid and Donations,Adult Social Care Operations,5000.00
24/03/2021,1249291,Westminster Society,Grant Aid and Donations,Adult Social Care Operations,5000.00
15/02/2021,1243566,Yarrow Housing Ltd,Hired and Contracted Services,Adult Social Care Operations,2230.20
12/03/2021,1243566,Yarrow Housing Ltd,Grant Aid and Donations,Adult Social Care Operations,2569.31
19/03/2021,1243566,Yarrow Housing Ltd,Grant Aid and Donations,Adult Social Care Operations,5764.00
24/03/2021,1243566,Yarrow Housing Ltd,Grant Aid and Donations,Adult Social Care Operations,5000.00
15/02/2021,1249317,Zocalo Ltd T/as Bluebird Care,Hired and Contracted Services,Adult Social Care Operations,4686.11
15/02/2021,1249317,Zocalo Ltd T/as Bluebird Care,Hired and Contracted Services,Adult Social Care Operations,11264.22
09/03/2021,1249317,Zocalo Ltd T/as Bluebird Care,Grant Aid and Donations,Adult Social Care Operations,10000.00
11/01/2021,1244309,Doro Care Ltd,###,Bi-Borough Director of Integrated Care,820.00
12/01/2021,1244309,Doro Care Ltd,###,Bi-Borough Director of Integrated Care,700.00
12/01/2021,1244309,Doro Care Ltd,###,Bi-Borough Director of Integrated Care,9450.00
23/02/2021,1244309,Doro Care Ltd,###,Bi-Borough Director of Integrated Care,868.00
23/02/2021,1244309,Doro Care Ltd,###,Bi-Borough Director of Integrated Care,920.00
25/01/2021,1246138,Tunstall Healthcare (UK) Ltd (Use,###,Bi-Borough Director of Integrated Care,9900.00
20/01/2021,1256112,Worcestershire Telecare Ltd,Hired and Contracted Services,Bi-Borough Director of Integrated Care,4757.93
16/02/2021,1256112,Worcestershire Telecare Ltd,Hired and Contracted Services,Bi-Borough Director of Integrated Care,4786.57
09/03/2021,1256112,Worcestershire Telecare Ltd,Hired and Contracted Services,Bi-Borough Director of Integrated Care,4783.97
28/01/2021,1273817,GCH Alan Morkill House Ltd,Hired and Contracted Services,Bi-Borough Director of Integrated Care,350000.00
16/02/2021,1273817,GCH Alan Morkill House Ltd,Hired and Contracted Services,Bi-Borough Director of Integrated Care,376000.00
18/03/2021,1273817,GCH Alan Morkill House Ltd,Hired and Contracted Services,Bi-Borough Director of Integrated Care,474330.00
29/03/2021,1273817,GCH Alan Morkill House Ltd,Hired and Contracted Services,Bi-Borough Director of Integrated Care,243941.00
29/03/2021,1273817,GCH Alan Morkill House Ltd,Hired and Contracted Services,Bi-Borough Director of Integrated Care,379464.00
29/03/2021,1273817,GCH Alan Morkill House Ltd,Hired and Contracted Services,Bi-Borough Director of Integrated Care,379464.00
09/03/2021,1246243,Blazie Engineering Ltd,IT Software,Bi-Borough Director of Integrated Care,10400.00
05/01/2021,1271174,ASPECTS 2 LIMITED,,Bi-Borough Director of Integrated Care,8234.40
03/02/2021,1271174,ASPECTS 2 LIMITED,,Bi-Borough Director of Integrated Care,8234.40
03/03/2021,1271174,ASPECTS 2 LIMITED,,Bi-Borough Director of Integrated Care,8234.40
24/03/2021,1271174,ASPECTS 2 LIMITED,,Bi-Borough Director of Integrated Care,9116.66
05/01/2021,1243851,Accomplish Group Ltd,,Bi-Borough Director of Integrated Care,8877.40
05/01/2021,1243851,Accomplish Group Ltd,,Bi-Borough Director of Integrated Care,8877.40
05/01/2021,1243851,Accomplish Group Ltd,,Bi-Borough Director of Integrated Care,6748.80
03/02/2021,1243851,Accomplish Group Ltd,,Bi-Borough Director of Integrated Care,6748.80
03/02/2021,1243851,Accomplish Group Ltd,,Bi-Borough Director of Integrated Care,8877.40
03/02/2021,1243851,Accomplish Group Ltd,,Bi-Borough Director of Integrated Care,8877.40
03/03/2021,1243851,Accomplish Group Ltd,,Bi-Borough Director of Integrated Care,8877.40
03/03/2021,1243851,Accomplish Group Ltd,,Bi-Borough Director of Integrated Care,8877.40
03/03/2021,1243851,Accomplish Group Ltd,,Bi-Borough Director of Integrated Care,6748.80
24/03/2021,1243851,Accomplish Group Ltd,,Bi-Borough Director of Integrated Care,9828.55
24/03/2021,1243851,Accomplish Group Ltd,,Bi-Borough Director of Integrated Care,9828.55
24/03/2021,1243851,Accomplish Group Ltd,,Bi-Borough Director of Integrated Care,7471.89
05/01/2021,1243435,Acorn Village,,Bi-Borough Director of Integrated Care,5221.08
03/02/2021,1243435,Acorn Village,,Bi-Borough Director of Integrated Care,5221.08
03/03/2021,1243435,Acorn Village,,Bi-Borough Director of Integrated Care,5221.08
24/03/2021,1243435,Acorn Village,,Bi-Borough Director of Integrated Care,5780.48
12/01/2021,1245793,Act Too Ltd,B*Voluntary-Spot-V Dep-Enhanced - do not u,Bi-Borough Director of Integrated Care,500.00
05/01/2021,1243942,Aspens Charities,,Bi-Borough Director of Integrated Care,5445.92
03/02/2021,1243942,Aspens Charities,,Bi-Borough Director of Integrated Care,5445.92
03/03/2021,1243942,Aspens Charities,,Bi-Borough Director of Integrated Care,5445.92
24/03/2021,1243942,Aspens Charities,,Bi-Borough Director of Integrated Care,6029.41
27/01/2021,1249693,Aurora Care & Education OPCO Ltd,,Bi-Borough Director of Integrated Care,8426.12
05/01/2021,1243961,Autism Anglia,,Bi-Borough Director of Integrated Care,10644.00
03/02/2021,1243961,Autism Anglia,,Bi-Borough Director of Integrated Care,10644.00
03/03/2021,1243961,Autism Anglia,,Bi-Borough Director of Integrated Care,10644.00
24/03/2021,1243961,Autism Anglia,,Bi-Borough Director of Integrated Care,11784.43
05/01/2021,1243962,Autism London,,Bi-Borough Director of Integrated Care,4812.00
05/01/2021,1243962,Autism London,,Bi-Borough Director of Integrated Care,685.52
03/02/2021,1243962,Autism London,,Bi-Borough Director of Integrated Care,685.52
03/02/2021,1243962,Autism London,,Bi-Borough Director of Integrated Care,4812.00
03/03/2021,1243962,Autism London,,Bi-Borough Director of Integrated Care,4812.00
03/03/2021,1243962,Autism London,,Bi-Borough Director of Integrated Care,685.52
24/03/2021,1243962,Autism London,,Bi-Borough Director of Integrated Care,5327.57
24/03/2021,1243962,Autism London,,Bi-Borough Director of Integrated Care,758.97
05/01/2021,1243444,Broadham Care Ltd,,Bi-Borough Director of Integrated Care,6200.00
05/01/2021,1243444,Broadham Care Ltd,,Bi-Borough Director of Integrated Care,1400.00
03/02/2021,1243444,Broadham Care Ltd,,Bi-Borough Director of Integrated Care,1400.00
03/02/2021,1243444,Broadham Care Ltd,,Bi-Borough Director of Integrated Care,6200.00
03/03/2021,1243444,Broadham Care Ltd,,Bi-Borough Director of Integrated Care,1400.00
03/03/2021,1243444,Broadham Care Ltd,,Bi-Borough Director of Integrated Care,6200.00
24/03/2021,1243444,Broadham Care Ltd,,Bi-Borough Director of Integrated Care,1550.00
24/03/2021,1243444,Broadham Care Ltd,,Bi-Borough Director of Integrated Care,6864.29
05/01/2021,1243445,Broadstreet House Limited,,Bi-Borough Director of Integrated Care,4096.00
03/02/2021,1243445,Broadstreet House Limited,,Bi-Borough Director of Integrated Care,4096.00
03/03/2021,1243445,Broadstreet House Limited,,Bi-Borough Director of Integrated Care,4096.00
24/03/2021,1243445,Broadstreet House Limited,,Bi-Borough Director of Integrated Care,4534.86
05/01/2021,1246286,Brunswick Supported Living,,Bi-Borough Director of Integrated Care,2629.28
03/02/2021,1246286,Brunswick Supported Living,,Bi-Borough Director of Integrated Care,2629.28
03/03/2021,1246286,Brunswick Supported Living,,Bi-Borough Director of Integrated Care,2629.28
24/03/2021,1246286,Brunswick Supported Living,,Bi-Borough Director of Integrated Care,2910.99
05/01/2021,1273390,CHILTERN SUPPORT & HOUSING LTD,,Bi-Borough Director of Integrated Care,11429.60
03/02/2021,1273390,CHILTERN SUPPORT & HOUSING LTD,,Bi-Borough Director of Integrated Care,11429.60
03/03/2021,1273390,CHILTERN SUPPORT & HOUSING LTD,,Bi-Borough Director of Integrated Care,11429.60
24/03/2021,1273390,CHILTERN SUPPORT & HOUSING LTD,,Bi-Borough Director of Integrated Care,12654.20
05/01/2021,1244092,Cambrian Learning Disabilities Ltd,,Bi-Borough Director of Integrated Care,5690.00
03/02/2021,1244092,Cambrian Learning Disabilities Ltd,,Bi-Borough Director of Integrated Care,5690.00
03/03/2021,1244092,Cambrian Learning Disabilities Ltd,,Bi-Borough Director of Integrated Care,5690.00
24/03/2021,1244092,Cambrian Learning Disabilities Ltd,,Bi-Borough Director of Integrated Care,6299.64
21/01/2021,1243795,Cambs & Peterborough Mental,B*Voluntary-Spot-V Dep-Enhanced - do not u,Bi-Borough Director of Integrated Care,568.14
10/02/2021,1243795,Cambs & Peterborough Mental,B*Voluntary-Spot-V Dep-Enhanced - do not u,Bi-Borough Director of Integrated Care,568.14
04/03/2021,1243795,Cambs & Peterborough Mental,B*Voluntary-Spot-V Dep-Enhanced - do not u,Bi-Borough Director of Integrated Care,568.14
05/01/2021,1246321,Camphill Village Trust,,Bi-Borough Director of Integrated Care,3981.08
03/02/2021,1246321,Camphill Village Trust,,Bi-Borough Director of Integrated Care,3981.08
03/03/2021,1246321,Camphill Village Trust,,Bi-Borough Director of Integrated Care,3981.08
24/03/2021,1246321,Camphill Village Trust,,Bi-Borough Director of Integrated Care,4407.62
05/01/2021,1246324,Candour Care Services (Broadview),,Bi-Borough Director of Integrated Care,7434.92
03/02/2021,1246324,Candour Care Services (Broadview),,Bi-Borough Director of Integrated Care,7434.92
03/03/2021,1246324,Candour Care Services (Broadview),,Bi-Borough Director of Integrated Care,7434.92
24/03/2021,1246324,Candour Care Services (Broadview),,Bi-Borough Director of Integrated Care,8231.52
05/01/2021,1246327,Canterbury Oast Trust Ltd,,Bi-Borough Director of Integrated Care,1260.00
03/02/2021,1246327,Canterbury Oast Trust Ltd,,Bi-Borough Director of Integrated Care,1260.00
03/03/2021,1246327,Canterbury Oast Trust Ltd,,Bi-Borough Director of Integrated Care,1260.00
24/03/2021,1246327,Canterbury Oast Trust Ltd,,Bi-Borough Director of Integrated Care,1395.00
05/01/2021,1259100,Care Assist Limited,,Bi-Borough Director of Integrated Care,7761.60
18/01/2021,1259100,Care Assist Limited,,Bi-Borough Director of Integrated Care,29106.00
03/02/2021,1259100,Care Assist Limited,,Bi-Borough Director of Integrated Care,7761.60
03/02/2021,1259100,Care Assist Limited,,Bi-Borough Director of Integrated Care,7761.60
03/03/2021,1259100,Care Assist Limited,,Bi-Borough Director of Integrated Care,7761.60
03/03/2021,1259100,Care Assist Limited,,Bi-Borough Director of Integrated Care,7761.60
24/03/2021,1259100,Care Assist Limited,,Bi-Borough Director of Integrated Care,8593.20
24/03/2021,1259100,Care Assist Limited,,Bi-Borough Director of Integrated Care,8593.20
03/03/2021,1245091,Care UK Community Partnerships Ltd,B*PCC Management Fee Contribution,Bi-Borough Director of Integrated Care,8989.10
05/01/2021,1246339,Caretech Community Services Ltd,,Bi-Borough Director of Integrated Care,5379.96
05/01/2021,1246339,Caretech Community Services Ltd,,Bi-Borough Director of Integrated Care,987.40
05/01/2021,1246339,Caretech Community Services Ltd,,Bi-Borough Director of Integrated Care,4331.84
05/01/2021,1246339,Caretech Community Services Ltd,,Bi-Borough Director of Integrated Care,4331.80
05/01/2021,1246339,Caretech Community Services Ltd,,Bi-Borough Director of Integrated Care,5379.96
05/01/2021,1246339,Caretech Community Services Ltd,,Bi-Borough Director of Integrated Care,1325.00
03/02/2021,1246339,Caretech Community Services Ltd,,Bi-Borough Director of Integrated Care,4331.84
03/02/2021,1246339,Caretech Community Services Ltd,,Bi-Borough Director of Integrated Care,4331.80
03/02/2021,1246339,Caretech Community Services Ltd,,Bi-Borough Director of Integrated Care,1325.00
03/02/2021,1246339,Caretech Community Services Ltd,,Bi-Borough Director of Integrated Care,5379.96
03/02/2021,1246339,Caretech Community Services Ltd,,Bi-Borough Director of Integrated Care,5379.96
03/02/2021,1246339,Caretech Community Services Ltd,,Bi-Borough Director of Integrated Care,987.40
03/03/2021,1246339,Caretech Community Services Ltd,,Bi-Borough Director of Integrated Care,5379.96
03/03/2021,1246339,Caretech Community Services Ltd,,Bi-Borough Director of Integrated Care,987.40
03/03/2021,1246339,Caretech Community Services Ltd,,Bi-Borough Director of Integrated Care,5379.96
03/03/2021,1246339,Caretech Community Services Ltd,,Bi-Borough Director of Integrated Care,1325.00
03/03/2021,1246339,Caretech Community Services Ltd,,Bi-Borough Director of Integrated Care,4331.84
03/03/2021,1246339,Caretech Community Services Ltd,,Bi-Borough Director of Integrated Care,4331.80
24/03/2021,1246339,Caretech Community Services Ltd,,Bi-Borough Director of Integrated Care,1093.19
24/03/2021,1246339,Caretech Community Services Ltd,,Bi-Borough Director of Integrated Care,5956.38
24/03/2021,1246339,Caretech Community Services Ltd,,Bi-Borough Director of Integrated Care,5956.38
24/03/2021,1246339,Caretech Community Services Ltd,,Bi-Borough Director of Integrated Care,1466.96
03/03/2021,1276470,Certitude (Support for Living),,Bi-Borough Director of Integrated Care,23369.05
03/03/2021,1276470,Certitude (Support for Living),,Bi-Borough Director of Integrated Care,29159.59
03/03/2021,1276470,Certitude (Support for Living),,Bi-Borough Director of Integrated Care,63144.80
03/03/2021,1276470,Certitude (Support for Living),,Bi-Borough Director of Integrated Care,29159.59
03/03/2021,1276470,Certitude (Support for Living),,Bi-Borough Director of Integrated Care,65920.39
03/03/2021,1276470,Certitude (Support for Living),,Bi-Borough Director of Integrated Care,11218.30
03/03/2021,1276470,Certitude (Support for Living),,Bi-Borough Director of Integrated Care,26006.77
03/03/2021,1276470,Certitude (Support for Living),,Bi-Borough Director of Integrated Care,57203.64
24/03/2021,1276470,Certitude (Support for Living),,Bi-Borough Director of Integrated Care,16449.49
24/03/2021,1276470,Certitude (Support for Living),,Bi-Borough Director of Integrated Care,7596.20
24/03/2021,1276470,Certitude (Support for Living),,Bi-Borough Director of Integrated Care,17172.54
24/03/2021,1276470,Certitude (Support for Living),,Bi-Borough Director of Integrated Care,6774.87
24/03/2021,1276470,Certitude (Support for Living),,Bi-Borough Director of Integrated Care,2922.41
24/03/2021,1276470,Certitude (Support for Living),,Bi-Borough Director of Integrated Care,14901.79
24/03/2021,1276470,Certitude (Support for Living),,Bi-Borough Director of Integrated Care,6087.74
24/03/2021,1276470,Certitude (Support for Living),,Bi-Borough Director of Integrated Care,7596.20
05/01/2021,1244167,Choice Support,,Bi-Borough Director of Integrated Care,8936.00
03/02/2021,1244167,Choice Support,,Bi-Borough Director of Integrated Care,8936.00
03/03/2021,1244167,Choice Support,,Bi-Borough Director of Integrated Care,8936.00
24/03/2021,1244167,Choice Support,,Bi-Borough Director of Integrated Care,9893.43
04/03/2021,1244191,Cloudsend Cic,Hire of Accommodation and Facilities,Bi-Borough Director of Integrated Care,1600.00
05/01/2021,1243457,Cmg Homes Ltd - The Care House,,Bi-Borough Director of Integrated Care,6222.20
05/01/2021,1243457,Cmg Homes Ltd - The Care House,,Bi-Borough Director of Integrated Care,9292.60
03/02/2021,1243457,Cmg Homes Ltd - The Care House,,Bi-Borough Director of Integrated Care,9292.60
03/02/2021,1243457,Cmg Homes Ltd - The Care House,,Bi-Borough Director of Integrated Care,6222.20
03/03/2021,1243457,Cmg Homes Ltd - The Care House,,Bi-Borough Director of Integrated Care,6222.20
03/03/2021,1243457,Cmg Homes Ltd - The Care House,,Bi-Borough Director of Integrated Care,9292.60
24/03/2021,1243457,Cmg Homes Ltd - The Care House,,Bi-Borough Director of Integrated Care,6888.86
24/03/2021,1243457,Cmg Homes Ltd - The Care House,,Bi-Borough Director of Integrated Care,10288.24
05/01/2021,1243458,Cocklebury Farmhouse Homes Ltd,,Bi-Borough Director of Integrated Care,4952.00
05/01/2021,1243458,Cocklebury Farmhouse Homes Ltd,,Bi-Borough Director of Integrated Care,5536.00
05/01/2021,1243458,Cocklebury Farmhouse Homes Ltd,,Bi-Borough Director of Integrated Care,5568.00
05/01/2021,1243458,Cocklebury Farmhouse Homes Ltd,,Bi-Borough Director of Integrated Care,6408.00
05/01/2021,1243458,Cocklebury Farmhouse Homes Ltd,,Bi-Borough Director of Integrated Care,7028.00
03/02/2021,1243458,Cocklebury Farmhouse Homes Ltd,,Bi-Borough Director of Integrated Care,7028.00
03/02/2021,1243458,Cocklebury Farmhouse Homes Ltd,,Bi-Borough Director of Integrated Care,4952.00
03/02/2021,1243458,Cocklebury Farmhouse Homes Ltd,,Bi-Borough Director of Integrated Care,5536.00
03/02/2021,1243458,Cocklebury Farmhouse Homes Ltd,,Bi-Borough Director of Integrated Care,5568.00
03/02/2021,1243458,Cocklebury Farmhouse Homes Ltd,,Bi-Borough Director of Integrated Care,6408.00
03/03/2021,1243458,Cocklebury Farmhouse Homes Ltd,,Bi-Borough Director of Integrated Care,4952.00
03/03/2021,1243458,Cocklebury Farmhouse Homes Ltd,,Bi-Borough Director of Integrated Care,5536.00
03/03/2021,1243458,Cocklebury Farmhouse Homes Ltd,,Bi-Borough Director of Integrated Care,5568.00
03/03/2021,1243458,Cocklebury Farmhouse Homes Ltd,,Bi-Borough Director of Integrated Care,6408.00
03/03/2021,1243458,Cocklebury Farmhouse Homes Ltd,,Bi-Borough Director of Integrated Care,7028.00
24/03/2021,1243458,Cocklebury Farmhouse Homes Ltd,,Bi-Borough Director of Integrated Care,7094.57
24/03/2021,1243458,Cocklebury Farmhouse Homes Ltd,,Bi-Borough Director of Integrated Care,7781.00
24/03/2021,1243458,Cocklebury Farmhouse Homes Ltd,,Bi-Borough Director of Integrated Care,5482.57
24/03/2021,1243458,Cocklebury Farmhouse Homes Ltd,,Bi-Borough Director of Integrated Care,6129.14
24/03/2021,1243458,Cocklebury Farmhouse Homes Ltd,,Bi-Borough Director of Integrated Care,6164.57
05/01/2021,1244212,PERSONAL PAYMENTS,,Bi-Borough Director of Integrated Care,4820.00
05/01/2021,1244212,PERSONAL PAYMENTS,,Bi-Borough Director of Integrated Care,3320.00
03/02/2021,1244212,PERSONAL PAYMENTS,,Bi-Borough Director of Integrated Care,3320.00
03/02/2021,1244212,PERSONAL PAYMENTS,,Bi-Borough Director of Integrated Care,4820.00
03/03/2021,1244212,PERSONAL PAYMENTS,,Bi-Borough Director of Integrated Care,4820.00
03/03/2021,1244212,PERSONAL PAYMENTS,,Bi-Borough Director of Integrated Care,3320.00
24/03/2021,1244212,PERSONAL PAYMENTS,,Bi-Borough Director of Integrated Care,5336.43
24/03/2021,1244212,PERSONAL PAYMENTS,,Bi-Borough Director of Integrated Care,3675.71
05/01/2021,1243470,Downing (Chertsey Road) Ltd,,Bi-Borough Director of Integrated Care,5971.20
05/01/2021,1243470,Downing (Chertsey Road) Ltd,,Bi-Borough Director of Integrated Care,5971.20
03/02/2021,1243470,Downing (Chertsey Road) Ltd,,Bi-Borough Director of Integrated Care,2087.26
03/02/2021,1243470,Downing (Chertsey Road) Ltd,,Bi-Borough Director of Integrated Care,5971.20
03/03/2021,1243470,Downing (Chertsey Road) Ltd,,Bi-Borough Director of Integrated Care,5971.20
24/03/2021,1243470,Downing (Chertsey Road) Ltd,,Bi-Borough Director of Integrated Care,6610.97
05/01/2021,1243473,Drs Care Homes Ltd,,Bi-Borough Director of Integrated Care,3183.44
03/02/2021,1243473,Drs Care Homes Ltd,,Bi-Borough Director of Integrated Care,3183.44
03/03/2021,1243473,Drs Care Homes Ltd,,Bi-Borough Director of Integrated Care,3183.44
24/03/2021,1243473,Drs Care Homes Ltd,,Bi-Borough Director of Integrated Care,3524.52
05/01/2021,1243474,Duckyls Farm Centre,,Bi-Borough Director of Integrated Care,2959.12
03/02/2021,1243474,Duckyls Farm Centre,,Bi-Borough Director of Integrated Care,2959.12
03/03/2021,1243474,Duckyls Farm Centre,,Bi-Borough Director of Integrated Care,2959.12
24/03/2021,1243474,Duckyls Farm Centre,,Bi-Borough Director of Integrated Care,3276.17
05/01/2021,1245108,Elysium Healthcare No 2 Ltd,,Bi-Borough Director of Integrated Care,8722.20
03/02/2021,1245108,Elysium Healthcare No 2 Ltd,,Bi-Borough Director of Integrated Care,8722.20
03/03/2021,1245108,Elysium Healthcare No 2 Ltd,,Bi-Borough Director of Integrated Care,8722.20
24/03/2021,1245108,Elysium Healthcare No 2 Ltd,,Bi-Borough Director of Integrated Care,9656.72
12/01/2021,1246934,Equal People Mencap (Kensington &,B*Voluntary-Spot-V Dep-Enhanced - do not u,Bi-Borough Director of Integrated Care,2880.00
09/03/2021,1246934,Equal People Mencap (Kensington &,B*Voluntary-Spot-V Dep-Enhanced - do not u,Bi-Borough Director of Integrated Care,2304.00
09/03/2021,1246934,Equal People Mencap (Kensington &,B*Voluntary-Spot-V Dep-Enhanced - do not u,Bi-Borough Director of Integrated Care,2304.00
05/01/2021,1245110,Eric Patrick Care Ltd,,Bi-Borough Director of Integrated Care,7868.00
03/02/2021,1245110,Eric Patrick Care Ltd,,Bi-Borough Director of Integrated Care,7868.00
03/03/2021,1245110,Eric Patrick Care Ltd,,Bi-Borough Director of Integrated Care,7868.00
24/03/2021,1245110,Eric Patrick Care Ltd,,Bi-Borough Director of Integrated Care,8711.00
16/02/2021,1252498,PERSONAL PAYMENTS,Legal Costs,Bi-Borough Director of Integrated Care,2500.00
05/01/2021,1243485,Grove Care Partnership Ltd,,Bi-Borough Director of Integrated Care,8051.84
03/02/2021,1243485,Grove Care Partnership Ltd,,Bi-Borough Director of Integrated Care,8051.84
03/03/2021,1243485,Grove Care Partnership Ltd,,Bi-Borough Director of Integrated Care,8051.84
24/03/2021,1243485,Grove Care Partnership Ltd,,Bi-Borough Director of Integrated Care,8914.54
05/01/2021,1258503,Guyatt House Care Limited,,Bi-Borough Director of Integrated Care,8566.16
03/02/2021,1258503,Guyatt House Care Limited,,Bi-Borough Director of Integrated Care,8566.16
03/03/2021,1258503,Guyatt House Care Limited,,Bi-Borough Director of Integrated Care,8566.16
24/03/2021,1258503,Guyatt House Care Limited,,Bi-Borough Director of Integrated Care,9483.97
05/01/2021,1244549,HF Trust Ltd,,Bi-Borough Director of Integrated Care,11060.16
05/01/2021,1244549,HF Trust Ltd,,Bi-Borough Director of Integrated Care,3539.28
03/02/2021,1244549,HF Trust Ltd,,Bi-Borough Director of Integrated Care,11775.76
03/02/2021,1244549,HF Trust Ltd,,Bi-Borough Director of Integrated Care,3539.28
03/03/2021,1244549,HF Trust Ltd,,Bi-Borough Director of Integrated Care,3539.28
03/03/2021,1244549,HF Trust Ltd,,Bi-Borough Director of Integrated Care,11775.76
24/03/2021,1244549,HF Trust Ltd,,Bi-Borough Director of Integrated Care,3918.49
24/03/2021,1244549,HF Trust Ltd,,Bi-Borough Director of Integrated Care,13037.45
05/01/2021,1244515,Hampshire Autistic Society,,Bi-Borough Director of Integrated Care,5307.08
03/02/2021,1244515,Hampshire Autistic Society,,Bi-Borough Director of Integrated Care,5307.08
03/03/2021,1244515,Hampshire Autistic Society,,Bi-Borough Director of Integrated Care,5307.08
24/03/2021,1244515,Hampshire Autistic Society,,Bi-Borough Director of Integrated Care,5875.70
24/03/2021,1244515,Hampshire Autistic Society,,Bi-Borough Director of Integrated Care,521.55
05/01/2021,1243490,Haydon Park Lodge Ltd,,Bi-Borough Director of Integrated Care,4000.00
03/02/2021,1243490,Haydon Park Lodge Ltd,,Bi-Borough Director of Integrated Care,4000.00
03/03/2021,1243490,Haydon Park Lodge Ltd,,Bi-Borough Director of Integrated Care,4000.00
24/03/2021,1243490,Haydon Park Lodge Ltd,,Bi-Borough Director of Integrated Care,4428.57
05/01/2021,1260257,Hazel Homes for Autism Ltd,,Bi-Borough Director of Integrated Care,5383.49
05/01/2021,1260257,Hazel Homes for Autism Ltd,,Bi-Borough Director of Integrated Care,10362.75
03/02/2021,1260257,Hazel Homes for Autism Ltd,,Bi-Borough Director of Integrated Care,861.00
03/02/2021,1260257,Hazel Homes for Autism Ltd,,Bi-Borough Director of Integrated Care,14885.24
03/03/2021,1260257,Hazel Homes for Autism Ltd,,Bi-Borough Director of Integrated Care,14885.24
03/03/2021,1260257,Hazel Homes for Autism Ltd,,Bi-Borough Director of Integrated Care,861.00
24/03/2021,1260257,Hazel Homes for Autism Ltd,,Bi-Borough Director of Integrated Care,953.25
24/03/2021,1260257,Hazel Homes for Autism Ltd,,Bi-Borough Director of Integrated Care,16480.09
05/01/2021,1247257,Health Vision Uk,,Bi-Borough Director of Integrated Care,2035.04
05/01/2021,1247257,Health Vision Uk,,Bi-Borough Director of Integrated Care,2035.04
10/03/2021,1247257,Health Vision Uk,,Bi-Borough Director of Integrated Care,2008.92
10/03/2021,1247257,Health Vision Uk,,Bi-Borough Director of Integrated Care,2008.92
10/03/2021,1247257,Health Vision Uk,,Bi-Borough Director of Integrated Care,2027.39
10/03/2021,1247257,Health Vision Uk,,Bi-Borough Director of Integrated Care,2027.39
05/01/2021,1245125,Heathcotes (Southern) Ltd,,Bi-Borough Director of Integrated Care,7935.20
05/01/2021,1245125,Heathcotes (Southern) Ltd,,Bi-Borough Director of Integrated Care,14838.72
03/02/2021,1245125,Heathcotes (Southern) Ltd,,Bi-Borough Director of Integrated Care,7935.20
03/02/2021,1245125,Heathcotes (Southern) Ltd,,Bi-Borough Director of Integrated Care,14838.72
03/03/2021,1245125,Heathcotes (Southern) Ltd,,Bi-Borough Director of Integrated Care,7935.20
03/03/2021,1245125,Heathcotes (Southern) Ltd,,Bi-Borough Director of Integrated Care,14838.72
24/03/2021,1245125,Heathcotes (Southern) Ltd,,Bi-Borough Director of Integrated Care,8785.40
24/03/2021,1245125,Heathcotes (Southern) Ltd,,Bi-Borough Director of Integrated Care,16428.58
05/03/2021,1276179,Hestia Housing and Support,,Bi-Borough Director of Integrated Care,13310.15
05/01/2021,1267460,Hunters Lodge Care Home,,Bi-Borough Director of Integrated Care,3930.64
03/02/2021,1267460,Hunters Lodge Care Home,,Bi-Borough Director of Integrated Care,3930.64
03/03/2021,1267460,Hunters Lodge Care Home,,Bi-Borough Director of Integrated Care,3930.64
24/03/2021,1267460,Hunters Lodge Care Home,,Bi-Borough Director of Integrated Care,4351.78
18/01/2021,1247526,Integrity Care and Support Ltd,B*Voluntary-Spot-V Dep-Enhanced - do not u,Bi-Borough Director of Integrated Care,1016.86
18/01/2021,1247526,Integrity Care and Support Ltd,B*Voluntary-Spot-V Dep-Enhanced - do not u,Bi-Borough Director of Integrated Care,938.64
18/01/2021,1247526,Integrity Care and Support Ltd,B*Voluntary-Spot-V Dep-Enhanced - do not u,Bi-Borough Director of Integrated Care,703.98
18/01/2021,1247526,Integrity Care and Support Ltd,B*Voluntary-Spot-V Dep-Enhanced - do not u,Bi-Borough Director of Integrated Care,938.64
18/01/2021,1247526,Integrity Care and Support Ltd,B*Voluntary-Spot-V Dep-Enhanced - do not u,Bi-Borough Director of Integrated Care,938.64
18/01/2021,1247526,Integrity Care and Support Ltd,B*Voluntary-Spot-V Dep-Enhanced - do not u,Bi-Borough Director of Integrated Care,824.04
18/01/2021,1247526,Integrity Care and Support Ltd,B*Voluntary-Spot-V Dep-Enhanced - do not u,Bi-Borough Director of Integrated Care,606.40
18/01/2021,1247526,Integrity Care and Support Ltd,B*Voluntary-Spot-V Dep-Enhanced - do not u,Bi-Borough Director of Integrated Care,703.98
18/01/2021,1247526,Integrity Care and Support Ltd,B*Voluntary-Spot-V Dep-Enhanced - do not u,Bi-Borough Director of Integrated Care,1622.48
18/01/2021,1247526,Integrity Care and Support Ltd,B*Voluntary-Spot-V Dep-Enhanced - do not u,Bi-Borough Director of Integrated Care,1173.30
18/01/2021,1247526,Integrity Care and Support Ltd,B*Voluntary-Spot-V Dep-Enhanced - do not u,Bi-Borough Director of Integrated Care,1368.85
18/01/2021,1247526,Integrity Care and Support Ltd,B*Voluntary-Spot-V Dep-Enhanced - do not u,Bi-Borough Director of Integrated Care,1877.28
18/01/2021,1247526,Integrity Care and Support Ltd,B*Voluntary-Spot-V Dep-Enhanced - do not u,Bi-Borough Director of Integrated Care,1251.52
18/01/2021,1247526,Integrity Care and Support Ltd,B*Voluntary-Spot-V Dep-Enhanced - do not u,Bi-Borough Director of Integrated Care,2190.16
10/02/2021,1247526,Integrity Care and Support Ltd,B*Voluntary-Spot-V Dep-Enhanced - do not u,Bi-Borough Director of Integrated Care,711.00
10/02/2021,1247526,Integrity Care and Support Ltd,B*Voluntary-Spot-V Dep-Enhanced - do not u,Bi-Borough Director of Integrated Care,948.00
10/02/2021,1247526,Integrity Care and Support Ltd,B*Voluntary-Spot-V Dep-Enhanced - do not u,Bi-Borough Director of Integrated Care,1106.00
10/02/2021,1247526,Integrity Care and Support Ltd,B*Voluntary-Spot-V Dep-Enhanced - do not u,Bi-Borough Director of Integrated Care,1580.00
10/02/2021,1247526,Integrity Care and Support Ltd,B*Voluntary-Spot-V Dep-Enhanced - do not u,Bi-Borough Director of Integrated Care,948.00
10/02/2021,1247526,Integrity Care and Support Ltd,B*Voluntary-Spot-V Dep-Enhanced - do not u,Bi-Borough Director of Integrated Care,2212.00
10/02/2021,1247526,Integrity Care and Support Ltd,B*Voluntary-Spot-V Dep-Enhanced - do not u,Bi-Borough Director of Integrated Care,1896.00
10/02/2021,1247526,Integrity Care and Support Ltd,B*Voluntary-Spot-V Dep-Enhanced - do not u,Bi-Borough Director of Integrated Care,1382.50
10/02/2021,1247526,Integrity Care and Support Ltd,B*Voluntary-Spot-V Dep-Enhanced - do not u,Bi-Borough Director of Integrated Care,948.00
10/02/2021,1247526,Integrity Care and Support Ltd,B*Voluntary-Spot-V Dep-Enhanced - do not u,Bi-Borough Director of Integrated Care,1264.00
10/02/2021,1247526,Integrity Care and Support Ltd,B*Voluntary-Spot-V Dep-Enhanced - do not u,Bi-Borough Director of Integrated Care,711.00
10/02/2021,1247526,Integrity Care and Support Ltd,B*Voluntary-Spot-V Dep-Enhanced - do not u,Bi-Borough Director of Integrated Care,948.00
10/02/2021,1247526,Integrity Care and Support Ltd,B*Voluntary-Spot-V Dep-Enhanced - do not u,Bi-Borough Director of Integrated Care,1027.00
10/02/2021,1247526,Integrity Care and Support Ltd,B*Voluntary-Spot-V Dep-Enhanced - do not u,Bi-Borough Director of Integrated Care,790.00
10/02/2021,1247526,Integrity Care and Support Ltd,B*Voluntary-Spot-V Dep-Enhanced - do not u,Bi-Borough Director of Integrated Care,1185.00
09/03/2021,1247526,Integrity Care and Support Ltd,B*Voluntary-Spot-V Dep-Enhanced - do not u,Bi-Borough Director of Integrated Care,1896.00
09/03/2021,1247526,Integrity Care and Support Ltd,B*Voluntary-Spot-V Dep-Enhanced - do not u,Bi-Borough Director of Integrated Care,711.00
09/03/2021,1247526,Integrity Care and Support Ltd,B*Voluntary-Spot-V Dep-Enhanced - do not u,Bi-Borough Director of Integrated Care,711.00
09/03/2021,1247526,Integrity Care and Support Ltd,B*Voluntary-Spot-V Dep-Enhanced - do not u,Bi-Borough Director of Integrated Care,1185.00
09/03/2021,1247526,Integrity Care and Support Ltd,B*Voluntary-Spot-V Dep-Enhanced - do not u,Bi-Borough Director of Integrated Care,790.00
09/03/2021,1247526,Integrity Care and Support Ltd,B*Voluntary-Spot-V Dep-Enhanced - do not u,Bi-Borough Director of Integrated Care,1382.50
09/03/2021,1247526,Integrity Care and Support Ltd,B*Voluntary-Spot-V Dep-Enhanced - do not u,Bi-Borough Director of Integrated Care,1264.00
09/03/2021,1247526,Integrity Care and Support Ltd,B*Voluntary-Spot-V Dep-Enhanced - do not u,Bi-Borough Director of Integrated Care,1027.00
09/03/2021,1247526,Integrity Care and Support Ltd,B*Voluntary-Spot-V Dep-Enhanced - do not u,Bi-Borough Director of Integrated Care,948.00
09/03/2021,1247526,Integrity Care and Support Ltd,B*Voluntary-Spot-V Dep-Enhanced - do not u,Bi-Borough Director of Integrated Care,948.00
09/03/2021,1247526,Integrity Care and Support Ltd,B*Voluntary-Spot-V Dep-Enhanced - do not u,Bi-Borough Director of Integrated Care,948.00
09/03/2021,1247526,Integrity Care and Support Ltd,B*Voluntary-Spot-V Dep-Enhanced - do not u,Bi-Borough Director of Integrated Care,2212.00
09/03/2021,1247526,Integrity Care and Support Ltd,B*Voluntary-Spot-V Dep-Enhanced - do not u,Bi-Borough Director of Integrated Care,1580.00
09/03/2021,1247526,Integrity Care and Support Ltd,B*Voluntary-Spot-V Dep-Enhanced - do not u,Bi-Borough Director of Integrated Care,1106.00
05/01/2021,1272617,Jessal Akman Services Ltd,,Bi-Borough Director of Integrated Care,15625.88
03/02/2021,1272617,Jessal Akman Services Ltd,,Bi-Borough Director of Integrated Care,15625.88
03/03/2021,1272617,Jessal Akman Services Ltd,,Bi-Borough Director of Integrated Care,15625.88
24/03/2021,1272617,Jessal Akman Services Ltd,,Bi-Borough Director of Integrated Care,6138.74
05/01/2021,1247598,Kisimul Group Ltd,,Bi-Borough Director of Integrated Care,13955.32
03/02/2021,1247598,Kisimul Group Ltd,,Bi-Borough Director of Integrated Care,13955.32
03/03/2021,1247598,Kisimul Group Ltd,,Bi-Borough Director of Integrated Care,13955.32
24/03/2021,1247598,Kisimul Group Ltd,,Bi-Borough Director of Integrated Care,15450.53
05/01/2021,1243503,Life Opportunities Trust,,Bi-Borough Director of Integrated Care,4663.00
05/01/2021,1243503,Life Opportunities Trust,,Bi-Borough Director of Integrated Care,5176.00
05/01/2021,1243503,Life Opportunities Trust,,Bi-Borough Director of Integrated Care,3399.00
05/01/2021,1243503,Life Opportunities Trust,,Bi-Borough Director of Integrated Care,3399.80
05/01/2021,1243503,Life Opportunities Trust,,Bi-Borough Director of Integrated Care,6199.20
05/01/2021,1243503,Life Opportunities Trust,,Bi-Borough Director of Integrated Care,3399.00
05/01/2021,1243503,Life Opportunities Trust,,Bi-Borough Director of Integrated Care,6095.60
03/02/2021,1243503,Life Opportunities Trust,,Bi-Borough Director of Integrated Care,6095.60
03/02/2021,1243503,Life Opportunities Trust,,Bi-Borough Director of Integrated Care,6199.20
03/02/2021,1243503,Life Opportunities Trust,,Bi-Borough Director of Integrated Care,3399.00
03/02/2021,1243503,Life Opportunities Trust,,Bi-Borough Director of Integrated Care,4663.00
03/02/2021,1243503,Life Opportunities Trust,,Bi-Borough Director of Integrated Care,3399.80
03/02/2021,1243503,Life Opportunities Trust,,Bi-Borough Director of Integrated Care,3399.00
03/02/2021,1243503,Life Opportunities Trust,,Bi-Borough Director of Integrated Care,5176.00
03/03/2021,1243503,Life Opportunities Trust,,Bi-Borough Director of Integrated Care,3399.00
03/03/2021,1243503,Life Opportunities Trust,,Bi-Borough Director of Integrated Care,3399.00
03/03/2021,1243503,Life Opportunities Trust,,Bi-Borough Director of Integrated Care,3399.80
03/03/2021,1243503,Life Opportunities Trust,,Bi-Borough Director of Integrated Care,5176.00
03/03/2021,1243503,Life Opportunities Trust,,Bi-Borough Director of Integrated Care,6095.60
03/03/2021,1243503,Life Opportunities Trust,,Bi-Borough Director of Integrated Care,4663.00
03/03/2021,1243503,Life Opportunities Trust,,Bi-Borough Director of Integrated Care,6199.20
24/03/2021,1243503,Life Opportunities Trust,,Bi-Borough Director of Integrated Care,3763.18
24/03/2021,1243503,Life Opportunities Trust,,Bi-Borough Director of Integrated Care,3763.18
24/03/2021,1243503,Life Opportunities Trust,,Bi-Borough Director of Integrated Care,3764.06
24/03/2021,1243503,Life Opportunities Trust,,Bi-Borough Director of Integrated Care,5730.57
24/03/2021,1243503,Life Opportunities Trust,,Bi-Borough Director of Integrated Care,6748.70
24/03/2021,1243503,Life Opportunities Trust,,Bi-Borough Director of Integrated Care,5162.61
24/03/2021,1243503,Life Opportunities Trust,,Bi-Borough Director of Integrated Care,6863.40
05/01/2021,1243506,Lifeways Community Care Ltd,,Bi-Borough Director of Integrated Care,6760.88
05/01/2021,1243506,Lifeways Community Care Ltd,,Bi-Borough Director of Integrated Care,11633.00
03/02/2021,1243506,Lifeways Community Care Ltd,,Bi-Borough Director of Integrated Care,6760.88
03/02/2021,1243506,Lifeways Community Care Ltd,,Bi-Borough Director of Integrated Care,11633.00
03/03/2021,1243506,Lifeways Community Care Ltd,,Bi-Borough Director of Integrated Care,11633.00
03/03/2021,1243506,Lifeways Community Care Ltd,,Bi-Borough Director of Integrated Care,6760.88
24/03/2021,1243506,Lifeways Community Care Ltd,,Bi-Borough Director of Integrated Care,12879.39
24/03/2021,1243506,Lifeways Community Care Ltd,,Bi-Borough Director of Integrated Care,7485.26
05/01/2021,1244762,Livability,,Bi-Borough Director of Integrated Care,6180.00
03/02/2021,1244762,Livability,,Bi-Borough Director of Integrated Care,6180.00
03/03/2021,1244762,Livability,,Bi-Borough Director of Integrated Care,6180.00
24/03/2021,1244762,Livability,,Bi-Borough Director of Integrated Care,6842.14
07/01/2021,1247650,London Care Ltd,,Bi-Borough Director of Integrated Care,641.53
07/01/2021,1247650,London Care Ltd,,Bi-Borough Director of Integrated Care,726.80
07/01/2021,1247650,London Care Ltd,,Bi-Borough Director of Integrated Care,1481.72
11/01/2021,1247650,London Care Ltd,,Bi-Borough Director of Integrated Care,930.00
01/02/2021,1247650,London Care Ltd,,Bi-Borough Director of Integrated Care,1430.73
09/02/2021,1247650,London Care Ltd,,Bi-Borough Director of Integrated Care,2031.43
12/02/2021,1247650,London Care Ltd,,Bi-Borough Director of Integrated Care,1260.35
19/02/2021,1247650,London Care Ltd,,Bi-Borough Director of Integrated Care,930.30
02/03/2021,1247650,London Care Ltd,,Bi-Borough Director of Integrated Care,1288.92
02/03/2021,1247650,London Care Ltd,,Bi-Borough Director of Integrated Care,726.80
02/03/2021,1247650,London Care Ltd,,Bi-Borough Director of Integrated Care,1526.56
10/03/2021,1247650,London Care Ltd,,Bi-Borough Director of Integrated Care,2031.43
29/03/2021,1247650,London Care Ltd,,Bi-Borough Director of Integrated Care,1278.68
29/03/2021,1247650,London Care Ltd,,Bi-Borough Director of Integrated Care,763.14
29/03/2021,1247650,London Care Ltd,,Bi-Borough Director of Integrated Care,1526.26
29/03/2021,1247650,London Care Ltd,,Bi-Borough Director of Integrated Care,930.00
05/01/2021,1247651,London Care Partnership Ltd,,Bi-Borough Director of Integrated Care,8348.56
03/02/2021,1247651,London Care Partnership Ltd,,Bi-Borough Director of Integrated Care,8348.56
03/03/2021,1247651,London Care Partnership Ltd,,Bi-Borough Director of Integrated Care,8348.56
24/03/2021,1247651,London Care Partnership Ltd,,Bi-Borough Director of Integrated Care,9243.05
05/01/2021,1247656,London Cyrenians Housing Ltd,,Bi-Borough Director of Integrated Care,14280.00
03/02/2021,1247656,London Cyrenians Housing Ltd,,Bi-Borough Director of Integrated Care,14280.00
03/03/2021,1247656,London Cyrenians Housing Ltd,,Bi-Borough Director of Integrated Care,14280.00
24/03/2021,1247656,London Cyrenians Housing Ltd,,Bi-Borough Director of Integrated Care,15810.00
21/01/2021,1247846,London Vip Cars,Payments to Transport Operators,Bi-Borough Director of Integrated Care,1950.00
24/03/2021,1247846,London Vip Cars,Payments to Transport Operators,Bi-Borough Director of Integrated Care,1025.50
05/01/2021,1247854,Look Ahead Housing & Care Ltd,,Bi-Borough Director of Integrated Care,3015.48
03/02/2021,1247854,Look Ahead Housing & Care Ltd,,Bi-Borough Director of Integrated Care,3015.48
03/03/2021,1247854,Look Ahead Housing & Care Ltd,,Bi-Borough Director of Integrated Care,3015.48
24/03/2021,1247854,Look Ahead Housing & Care Ltd,,Bi-Borough Director of Integrated Care,3338.57
11/01/2021,1259132,MMR Home Care LTD,,Bi-Borough Director of Integrated Care,1145.76
11/01/2021,1259132,MMR Home Care LTD,,Bi-Borough Director of Integrated Care,1146.04
08/02/2021,1259132,MMR Home Care LTD,,Bi-Borough Director of Integrated Care,1146.04
08/02/2021,1259132,MMR Home Care LTD,,Bi-Borough Director of Integrated Care,1145.76
09/02/2021,1259132,MMR Home Care LTD,,Bi-Borough Director of Integrated Care,1146.04
09/02/2021,1259132,MMR Home Care LTD,,Bi-Borough Director of Integrated Care,1145.76
02/03/2021,1259132,MMR Home Care LTD,,Bi-Borough Director of Integrated Care,1146.04
02/03/2021,1259132,MMR Home Care LTD,,Bi-Borough Director of Integrated Care,1145.76
16/03/2021,1259132,MMR Home Care LTD,,Bi-Borough Director of Integrated Care,1145.76
16/03/2021,1259132,MMR Home Care LTD,,Bi-Borough Director of Integrated Care,1146.04
23/03/2021,1259132,MMR Home Care LTD,,Bi-Borough Director of Integrated Care,1145.76
23/03/2021,1259132,MMR Home Care LTD,,Bi-Borough Director of Integrated Care,1146.04
05/01/2021,1245144,Methodist Homes For The Aged,,Bi-Borough Director of Integrated Care,3090.44
03/02/2021,1245144,Methodist Homes For The Aged,,Bi-Borough Director of Integrated Care,3090.44
03/03/2021,1245144,Methodist Homes For The Aged,,Bi-Borough Director of Integrated Care,3090.44
24/03/2021,1245144,Methodist Homes For The Aged,,Bi-Borough Director of Integrated Care,3421.56
05/01/2021,1247933,Minster Pathways Ltd,,Bi-Borough Director of Integrated Care,3504.00
05/01/2021,1247933,Minster Pathways Ltd,,Bi-Borough Director of Integrated Care,1248.00
03/02/2021,1247933,Minster Pathways Ltd,,Bi-Borough Director of Integrated Care,1248.00
03/02/2021,1247933,Minster Pathways Ltd,,Bi-Borough Director of Integrated Care,3504.00
03/03/2021,1247933,Minster Pathways Ltd,,Bi-Borough Director of Integrated Care,1248.00
03/03/2021,1247933,Minster Pathways Ltd,,Bi-Borough Director of Integrated Care,3504.00
24/03/2021,1247933,Minster Pathways Ltd,,Bi-Borough Director of Integrated Care,3879.43
24/03/2021,1247933,Minster Pathways Ltd,,Bi-Borough Director of Integrated Care,1381.71
05/01/2021,1244905,Nas Services Ltd (Residential),,Bi-Borough Director of Integrated Care,5698.56
05/01/2021,1244905,Nas Services Ltd (Residential),,Bi-Borough Director of Integrated Care,3379.32
05/01/2021,1244905,Nas Services Ltd (Residential),,Bi-Borough Director of Integrated Care,7400.08
05/01/2021,1244905,Nas Services Ltd (Residential),,Bi-Borough Director of Integrated Care,7738.00
05/01/2021,1244905,Nas Services Ltd (Residential),,Bi-Borough Director of Integrated Care,4058.88
12/01/2021,1244905,Nas Services Ltd (Residential),B*Voluntary-Spot-V Dep-Enhanced - do not u,Bi-Borough Director of Integrated Care,1418.44
03/02/2021,1244905,Nas Services Ltd (Residential),,Bi-Borough Director of Integrated Care,4058.88
03/02/2021,1244905,Nas Services Ltd (Residential),,Bi-Borough Director of Integrated Care,7400.08
03/02/2021,1244905,Nas Services Ltd (Residential),,Bi-Borough Director of Integrated Care,3379.32
03/02/2021,1244905,Nas Services Ltd (Residential),,Bi-Borough Director of Integrated Care,7738.00
03/02/2021,1244905,Nas Services Ltd (Residential),,Bi-Borough Director of Integrated Care,5698.56
03/03/2021,1244905,Nas Services Ltd (Residential),,Bi-Borough Director of Integrated Care,7400.08
03/03/2021,1244905,Nas Services Ltd (Residential),,Bi-Borough Director of Integrated Care,3379.32
03/03/2021,1244905,Nas Services Ltd (Residential),,Bi-Borough Director of Integrated Care,4058.88
03/03/2021,1244905,Nas Services Ltd (Residential),,Bi-Borough Director of Integrated Care,7738.00
03/03/2021,1244905,Nas Services Ltd (Residential),,Bi-Borough Director of Integrated Care,5698.56
24/03/2021,1244905,Nas Services Ltd (Residential),,Bi-Borough Director of Integrated Care,4493.76
24/03/2021,1244905,Nas Services Ltd (Residential),,Bi-Borough Director of Integrated Care,8192.95
24/03/2021,1244905,Nas Services Ltd (Residential),,Bi-Borough Director of Integrated Care,3741.39
24/03/2021,1244905,Nas Services Ltd (Residential),,Bi-Borough Director of Integrated Care,6309.12
24/03/2021,1244905,Nas Services Ltd (Residential),,Bi-Borough Director of Integrated Care,8567.07
30/03/2021,1244905,Nas Services Ltd (Residential),B*Voluntary-Spot-V Dep-Enhanced - do not u,Bi-Borough Director of Integrated Care,1247.28
06/01/2021,1244906,Nas Services Ltd (Use 3009018),B*Voluntary-Spot-V Dep-Enhanced - do not u,Bi-Borough Director of Integrated Care,2739.60
06/01/2021,1244906,Nas Services Ltd (Use 3009018),B*Voluntary-Spot-V Dep-Enhanced - do not u,Bi-Borough Director of Integrated Care,4635.24
06/01/2021,1244906,Nas Services Ltd (Use 3009018),B*Voluntary-Spot-V Dep-Enhanced - do not u,Bi-Borough Director of Integrated Care,4981.61
06/01/2021,1244906,Nas Services Ltd (Use 3009018),B*Voluntary-Spot-V Dep-Enhanced - do not u,Bi-Borough Director of Integrated Care,1772.04
06/01/2021,1244906,Nas Services Ltd (Use 3009018),B*Voluntary-Spot-V Dep-Enhanced - do not u,Bi-Borough Director of Integrated Care,1124.96
06/01/2021,1244906,Nas Services Ltd (Use 3009018),B*Voluntary-Spot-V Dep-Enhanced - do not u,Bi-Borough Director of Integrated Care,5335.00
06/01/2021,1244906,Nas Services Ltd (Use 3009018),B*Voluntary-Spot-V Dep-Enhanced - do not u,Bi-Borough Director of Integrated Care,1848.96
12/01/2021,1244906,Nas Services Ltd (Use 3009018),B*Voluntary-Spot-V Dep-Enhanced - do not u,Bi-Borough Director of Integrated Care,1744.52
12/01/2021,1244906,Nas Services Ltd (Use 3009018),B*Voluntary-Spot-V Dep-Enhanced - do not u,Bi-Borough Director of Integrated Care,2027.52
12/01/2021,1244906,Nas Services Ltd (Use 3009018),B*Voluntary-Spot-V Dep-Enhanced - do not u,Bi-Borough Director of Integrated Care,1744.52
27/01/2021,1244906,Nas Services Ltd (Use 3009018),B*Voluntary-Spot-V Dep-Enhanced - do not u,Bi-Borough Director of Integrated Care,1181.36
27/01/2021,1244906,Nas Services Ltd (Use 3009018),B*Voluntary-Spot-V Dep-Enhanced - do not u,Bi-Borough Director of Integrated Care,1707.72
27/01/2021,1244906,Nas Services Ltd (Use 3009018),B*Voluntary-Spot-V Dep-Enhanced - do not u,Bi-Borough Director of Integrated Care,3467.75
27/01/2021,1244906,Nas Services Ltd (Use 3009018),B*Voluntary-Spot-V Dep-Enhanced - do not u,Bi-Borough Director of Integrated Care,1386.72
27/01/2021,1244906,Nas Services Ltd (Use 3009018),B*Voluntary-Spot-V Dep-Enhanced - do not u,Bi-Borough Director of Integrated Care,703.10
25/03/2021,1244906,Nas Services Ltd (Use 3009018),B*Voluntary-Spot-V Dep-Enhanced - do not u,Bi-Borough Director of Integrated Care,1510.02
25/03/2021,1244906,Nas Services Ltd (Use 3009018),B*Voluntary-Spot-V Dep-Enhanced - do not u,Bi-Borough Director of Integrated Care,2027.52
25/03/2021,1244906,Nas Services Ltd (Use 3009018),B*Voluntary-Spot-V Dep-Enhanced - do not u,Bi-Borough Director of Integrated Care,1188.30
25/03/2021,1244906,Nas Services Ltd (Use 3009018),B*Voluntary-Spot-V Dep-Enhanced - do not u,Bi-Borough Director of Integrated Care,2027.52
30/03/2021,1244906,Nas Services Ltd (Use 3009018),B*Voluntary-Spot-V Dep-Enhanced - do not u,Bi-Borough Director of Integrated Care,5243.80
30/03/2021,1244906,Nas Services Ltd (Use 3009018),B*Voluntary-Spot-V Dep-Enhanced - do not u,Bi-Borough Director of Integrated Care,2970.72
30/03/2021,1244906,Nas Services Ltd (Use 3009018),B*Voluntary-Spot-V Dep-Enhanced - do not u,Bi-Borough Director of Integrated Care,2097.55
30/03/2021,1244906,Nas Services Ltd (Use 3009018),B*Voluntary-Spot-V Dep-Enhanced - do not u,Bi-Borough Director of Integrated Care,1124.96
30/03/2021,1244906,Nas Services Ltd (Use 3009018),B*Voluntary-Spot-V Dep-Enhanced - do not u,Bi-Borough Director of Integrated Care,1848.96
30/03/2021,1244906,Nas Services Ltd (Use 3009018),B*Voluntary-Spot-V Dep-Enhanced - do not u,Bi-Borough Director of Integrated Care,5335.00
30/03/2021,1244906,Nas Services Ltd (Use 3009018),B*Voluntary-Spot-V Dep-Enhanced - do not u,Bi-Borough Director of Integrated Care,1308.36
30/03/2021,1244906,Nas Services Ltd (Use 3009018),B*Voluntary-Spot-V Dep-Enhanced - do not u,Bi-Borough Director of Integrated Care,2915.36
30/03/2021,1244906,Nas Services Ltd (Use 3009018),B*Voluntary-Spot-V Dep-Enhanced - do not u,Bi-Borough Director of Integrated Care,1395.64
30/03/2021,1244906,Nas Services Ltd (Use 3009018),B*Voluntary-Spot-V Dep-Enhanced - do not u,Bi-Borough Director of Integrated Care,4391.28
30/03/2021,1244906,Nas Services Ltd (Use 3009018),B*Voluntary-Spot-V Dep-Enhanced - do not u,Bi-Borough Director of Integrated Care,1772.04
05/01/2021,1247147,Norwood Schools Ltd,,Bi-Borough Director of Integrated Care,6755.08
05/01/2021,1247147,Norwood Schools Ltd,,Bi-Borough Director of Integrated Care,5998.48
05/01/2021,1247147,Norwood Schools Ltd,,Bi-Borough Director of Integrated Care,5253.52
05/01/2021,1247147,Norwood Schools Ltd,,Bi-Borough Director of Integrated Care,8758.72
03/02/2021,1247147,Norwood Schools Ltd,,Bi-Borough Director of Integrated Care,5253.52
03/02/2021,1247147,Norwood Schools Ltd,,Bi-Borough Director of Integrated Care,8758.72
03/02/2021,1247147,Norwood Schools Ltd,,Bi-Borough Director of Integrated Care,6755.08
03/02/2021,1247147,Norwood Schools Ltd,,Bi-Borough Director of Integrated Care,5998.48
03/03/2021,1247147,Norwood Schools Ltd,,Bi-Borough Director of Integrated Care,5998.48
03/03/2021,1247147,Norwood Schools Ltd,,Bi-Borough Director of Integrated Care,5253.52
03/03/2021,1247147,Norwood Schools Ltd,,Bi-Borough Director of Integrated Care,8758.72
03/03/2021,1247147,Norwood Schools Ltd,,Bi-Borough Director of Integrated Care,6755.08
24/03/2021,1247147,Norwood Schools Ltd,,Bi-Borough Director of Integrated Care,6641.17
24/03/2021,1247147,Norwood Schools Ltd,,Bi-Borough Director of Integrated Care,5816.40
24/03/2021,1247147,Norwood Schools Ltd,,Bi-Borough Director of Integrated Care,9697.15
24/03/2021,1247147,Norwood Schools Ltd,,Bi-Borough Director of Integrated Care,7478.84
05/01/2021,1273024,Oakland Support Ltd,,Bi-Borough Director of Integrated Care,1370.24
05/01/2021,1273024,Oakland Support Ltd,,Bi-Borough Director of Integrated Care,1370.24
03/02/2021,1273024,Oakland Support Ltd,,Bi-Borough Director of Integrated Care,3030.17
03/02/2021,1273024,Oakland Support Ltd,,Bi-Borough Director of Integrated Care,3030.17
03/03/2021,1273024,Oakland Support Ltd,,Bi-Borough Director of Integrated Care,3847.10
03/03/2021,1273024,Oakland Support Ltd,,Bi-Borough Director of Integrated Care,3847.10
24/03/2021,1273024,Oakland Support Ltd,,Bi-Borough Director of Integrated Care,3914.99
24/03/2021,1273024,Oakland Support Ltd,,Bi-Borough Director of Integrated Care,3914.99
05/01/2021,1243520,Oakview Care (Berkshire) Ltd,,Bi-Borough Director of Integrated Care,6699.96
03/02/2021,1243520,Oakview Care (Berkshire) Ltd,,Bi-Borough Director of Integrated Care,6699.96
03/03/2021,1243520,Oakview Care (Berkshire) Ltd,,Bi-Borough Director of Integrated Care,6699.96
24/03/2021,1243520,Oakview Care (Berkshire) Ltd,,Bi-Borough Director of Integrated Care,7417.81
06/01/2021,1248468,PERSONAL PAYMENTS,B*Junior group rec activities,Bi-Borough Director of Integrated Care,1654.57
05/01/2021,1263497,Optima Care Ltd,,Bi-Borough Director of Integrated Care,17877.68
05/01/2021,1263497,Optima Care Ltd,,Bi-Borough Director of Integrated Care,4802.96
05/01/2021,1263497,Optima Care Ltd,,Bi-Borough Director of Integrated Care,4800.96
03/02/2021,1263497,Optima Care Ltd,,Bi-Borough Director of Integrated Care,4800.96
03/02/2021,1263497,Optima Care Ltd,,Bi-Borough Director of Integrated Care,4802.96
03/02/2021,1263497,Optima Care Ltd,,Bi-Borough Director of Integrated Care,17877.68
03/03/2021,1263497,Optima Care Ltd,,Bi-Borough Director of Integrated Care,17877.68
03/03/2021,1263497,Optima Care Ltd,,Bi-Borough Director of Integrated Care,4800.96
03/03/2021,1263497,Optima Care Ltd,,Bi-Borough Director of Integrated Care,4802.96
12/01/2021,1248252,Origin Housing Ltd,B*Voluntary-Spot-V Dep-Enhanced - do not u,Bi-Borough Director of Integrated Care,640.00
23/02/2021,1248252,Origin Housing Ltd,B*Voluntary-Spot-V Dep-Enhanced - do not u,Bi-Borough Director of Integrated Care,640.00
05/01/2021,1243524,PERSONAL PAYMENTS,,Bi-Borough Director of Integrated Care,936.00
05/01/2021,1243524,PERSONAL PAYMENTS,,Bi-Borough Director of Integrated Care,3379.76
03/02/2021,1243524,PERSONAL PAYMENTS,,Bi-Borough Director of Integrated Care,3379.76
03/02/2021,1243524,PERSONAL PAYMENTS,,Bi-Borough Director of Integrated Care,936.00
03/03/2021,1243524,PERSONAL PAYMENTS,,Bi-Borough Director of Integrated Care,3379.76
03/03/2021,1243524,PERSONAL PAYMENTS,,Bi-Borough Director of Integrated Care,936.00
24/03/2021,1243524,PERSONAL PAYMENTS,,Bi-Borough Director of Integrated Care,1036.29
24/03/2021,1243524,PERSONAL PAYMENTS,,Bi-Borough Director of Integrated Care,3741.88
05/01/2021,1245005,PERSONAL PAYMENTS,,Bi-Borough Director of Integrated Care,2842.88
05/01/2021,1245005,PERSONAL PAYMENTS,,Bi-Borough Director of Integrated Care,2100.00
05/01/2021,1245005,PERSONAL PAYMENTS,,Bi-Borough Director of Integrated Care,2146.88
05/01/2021,1245005,PERSONAL PAYMENTS,,Bi-Borough Director of Integrated Care,1744.80
05/01/2021,1245005,PERSONAL PAYMENTS,,Bi-Borough Director of Integrated Care,2902.96
05/01/2021,1245005,PERSONAL PAYMENTS,,Bi-Borough Director of Integrated Care,2146.88
05/01/2021,1245005,PERSONAL PAYMENTS,,Bi-Borough Director of Integrated Care,1337.68
05/01/2021,1245005,PERSONAL PAYMENTS,,Bi-Borough Director of Integrated Care,1337.68
05/01/2021,1245005,PERSONAL PAYMENTS,,Bi-Borough Director of Integrated Care,2146.88
03/02/2021,1245005,PERSONAL PAYMENTS,,Bi-Borough Director of Integrated Care,1337.68
03/02/2021,1245005,PERSONAL PAYMENTS,,Bi-Borough Director of Integrated Care,2146.88
03/02/2021,1245005,PERSONAL PAYMENTS,,Bi-Borough Director of Integrated Care,1744.80
03/02/2021,1245005,PERSONAL PAYMENTS,,Bi-Borough Director of Integrated Care,2146.88
03/02/2021,1245005,PERSONAL PAYMENTS,,Bi-Borough Director of Integrated Care,2842.88
03/02/2021,1245005,PERSONAL PAYMENTS,,Bi-Borough Director of Integrated Care,2146.88
03/02/2021,1245005,PERSONAL PAYMENTS,,Bi-Borough Director of Integrated Care,1337.68
03/02/2021,1245005,PERSONAL PAYMENTS,,Bi-Borough Director of Integrated Care,2902.96
03/03/2021,1245005,PERSONAL PAYMENTS,,Bi-Borough Director of Integrated Care,1744.80
03/03/2021,1245005,PERSONAL PAYMENTS,,Bi-Borough Director of Integrated Care,2146.88
03/03/2021,1245005,PERSONAL PAYMENTS,,Bi-Borough Director of Integrated Care,2842.88
03/03/2021,1245005,PERSONAL PAYMENTS,,Bi-Borough Director of Integrated Care,1337.68
03/03/2021,1245005,PERSONAL PAYMENTS,,Bi-Borough Director of Integrated Care,2146.88
03/03/2021,1245005,PERSONAL PAYMENTS,,Bi-Borough Director of Integrated Care,2146.88
03/03/2021,1245005,PERSONAL PAYMENTS,,Bi-Borough Director of Integrated Care,1337.68
24/03/2021,1245005,PERSONAL PAYMENTS,,Bi-Borough Director of Integrated Care,2376.90
24/03/2021,1245005,PERSONAL PAYMENTS,,Bi-Borough Director of Integrated Care,1931.74
24/03/2021,1245005,PERSONAL PAYMENTS,,Bi-Borough Director of Integrated Care,3147.48
24/03/2021,1245005,PERSONAL PAYMENTS,,Bi-Borough Director of Integrated Care,2376.90
24/03/2021,1245005,PERSONAL PAYMENTS,,Bi-Borough Director of Integrated Care,1481.00
24/03/2021,1245005,PERSONAL PAYMENTS,,Bi-Borough Director of Integrated Care,2376.90
24/03/2021,1245005,PERSONAL PAYMENTS,,Bi-Borough Director of Integrated Care,1481.00
24/03/2021,1245005,PERSONAL PAYMENTS,,Bi-Borough Director of Integrated Care,3605.40
06/01/2021,1246066,Barrie Bookkeeping & Payroll,Adult Social Care - Other Transfer Pay,Bi-Borough Director of Integrated Care,4082.33
06/01/2021,1246066,Barrie Bookkeeping & Payroll,Adult Social Care - Other Transfer Pay,Bi-Borough Director of Integrated Care,11765.36
06/01/2021,1248468,PERSONAL PAYMENTS,Adult Social Care - Other Transfer Pay,Bi-Borough Director of Integrated Care,11703.00
12/01/2021,1245825,Sweet Tree Home Care Services,Adult Social Care - Other Transfer Pay,Bi-Borough Director of Integrated Care,3824.71
14/01/2021,1250310,PERSONAL PAYMENTS,Adult Social Care - Other Transfer Pay,Bi-Borough Director of Integrated Care,1368.00
14/01/2021,1247355,PERSONAL PAYMENTS,Social Care - Direct Payments,Bi-Borough Director of Integrated Care,857.28
14/01/2021,1246066,Barrie Bookkeeping & Payroll,Adult Social Care - Other Transfer Pay,Bi-Borough Director of Integrated Care,2740.12
14/01/2021,1246066,Barrie Bookkeeping & Payroll,Adult Social Care - Other Transfer Pay,Bi-Borough Director of Integrated Care,1603.60
14/01/2021,1246066,Barrie Bookkeeping & Payroll,Adult Social Care - Other Transfer Pay,Bi-Borough Director of Integrated Care,773.20
14/01/2021,1249942,PERSONAL PAYMENTS,Adult Social Care - Other Transfer Pay,Bi-Borough Director of Integrated Care,5975.56
14/01/2021,1246066,Barrie Bookkeeping & Payroll,Adult Social Care - Other Transfer Pay,Bi-Borough Director of Integrated Care,4603.40
14/01/2021,1268346,PERSONAL PAYMENTS,Adult Social Care - Other Transfer Pay,Bi-Borough Director of Integrated Care,785.52
14/01/2021,1250627,PERSONAL PAYMENTS,Social Care - Direct Payments,Bi-Borough Director of Integrated Care,2253.00
14/01/2021,1250656,PERSONAL PAYMENTS,Social Care - Direct Payments,Bi-Borough Director of Integrated Care,1118.36
14/01/2021,1249009,PERSONAL PAYMENTS,Social Care - Direct Payments,Bi-Borough Director of Integrated Care,2301.12
14/01/2021,1248292,PERSONAL PAYMENTS,Adult Social Care - Other Transfer Pay,Bi-Borough Director of Integrated Care,1208.96
14/01/2021,1246066,Barrie Bookkeeping & Payroll,Adult Social Care - Other Transfer Pay,Bi-Borough Director of Integrated Care,1633.00
14/01/2021,1250215,PERSONAL PAYMENTS,Adult Social Care - Other Transfer Pay,Bi-Borough Director of Integrated Care,837.88
14/01/2021,1246066,Barrie Bookkeeping & Payroll,Adult Social Care - Other Transfer Pay,Bi-Borough Director of Integrated Care,1680.00
14/01/2021,1250074,PERSONAL PAYMENTS,Adult Social Care - Other Transfer Pay,Bi-Borough Director of Integrated Care,8290.76
14/01/2021,1246066,Barrie Bookkeeping & Payroll,Adult Social Care - Other Transfer Pay,Bi-Borough Director of Integrated Care,852.72
14/01/2021,1250044,PERSONAL PAYMENTS,Adult Social Care - Other Transfer Pay,Bi-Borough Director of Integrated Care,648.00
14/01/2021,1256833,PERSONAL PAYMENTS,Adult Social Care - Other Transfer Pay,Bi-Borough Director of Integrated Care,572.00
14/01/2021,1246066,Barrie Bookkeeping & Payroll,Adult Social Care - Other Transfer Pay,Bi-Borough Director of Integrated Care,1821.60
14/01/2021,1247820,PERSONAL PAYMENTS,Social Care - Direct Payments,Bi-Borough Director of Integrated Care,9196.00
14/01/2021,1246066,Barrie Bookkeeping & Payroll,Adult Social Care - Other Transfer Pay,Bi-Borough Director of Integrated Care,2058.00
14/01/2021,1246066,Barrie Bookkeeping & Payroll,Adult Social Care - Other Transfer Pay,Bi-Borough Director of Integrated Care,1275.60
14/01/2021,1248292,PERSONAL PAYMENTS,Adult Social Care - Other Transfer Pay,Bi-Borough Director of Integrated Care,8640.00
14/01/2021,1248354,PERSONAL PAYMENTS,Adult Social Care - Other Transfer Pay,Bi-Borough Director of Integrated Care,3026.00
14/01/2021,1250368,PERSONAL PAYMENTS,Adult Social Care - Other Transfer Pay,Bi-Borough Director of Integrated Care,1794.08
14/01/2021,1250138,PERSONAL PAYMENTS,Social Care - Direct Payments,Bi-Borough Director of Integrated Care,1200.00
14/01/2021,1246066,Barrie Bookkeeping & Payroll,Adult Social Care - Other Transfer Pay,Bi-Borough Director of Integrated Care,7987.60
14/01/2021,1246066,Barrie Bookkeeping & Payroll,Adult Social Care - Other Transfer Pay,Bi-Borough Director of Integrated Care,818.00
14/01/2021,1248468,PERSONAL PAYMENTS,Adult Social Care - Other Transfer Pay,Bi-Borough Director of Integrated Care,996.00
14/01/2021,1246066,Barrie Bookkeeping & Payroll,Adult Social Care - Other Transfer Pay,Bi-Borough Director of Integrated Care,1228.00
14/01/2021,1250186,PERSONAL PAYMENTS,Adult Social Care - Other Transfer Pay,Bi-Borough Director of Integrated Care,2540.00
14/01/2021,1248148,PERSONAL PAYMENTS,Adult Social Care - Other Transfer Pay,Bi-Borough Director of Integrated Care,1638.96
14/01/2021,1256952,PERSONAL PAYMENTS,Adult Social Care - Other Transfer Pay,Bi-Borough Director of Integrated Care,1920.00
14/01/2021,1246066,Barrie Bookkeeping & Payroll,Adult Social Care - Other Transfer Pay,Bi-Borough Director of Integrated Care,759.92
14/01/2021,1250068,PERSONAL PAYMENTS,Social Care - Direct Payments,Bi-Borough Director of Integrated Care,740.00
14/01/2021,1246066,Barrie Bookkeeping & Payroll,Adult Social Care - Other Transfer Pay,Bi-Borough Director of Integrated Care,2140.44
14/01/2021,1248154,PERSONAL PAYMENTS,Adult Social Care - Other Transfer Pay,Bi-Borough Director of Integrated Care,1540.00
14/01/2021,1248010,PERSONAL PAYMENTS,Adult Social Care - Other Transfer Pay,Bi-Borough Director of Integrated Care,541.44
14/01/2021,1246066,Barrie Bookkeeping & Payroll,Adult Social Care - Other Transfer Pay,Bi-Borough Director of Integrated Care,2830.00
14/01/2021,1248059,PERSONAL PAYMENTS,Social Care - Direct Payments,Bi-Borough Director of Integrated Care,5808.52
14/01/2021,1246066,Barrie Bookkeeping & Payroll,Adult Social Care - Other Transfer Pay,Bi-Borough Director of Integrated Care,2585.32
14/01/2021,1250360,PERSONAL PAYMENTS,Adult Social Care - Other Transfer Pay,Bi-Borough Director of Integrated Care,3328.00
14/01/2021,1250674,PERSONAL PAYMENTS,Adult Social Care - Other Transfer Pay,Bi-Borough Director of Integrated Care,2372.80
14/01/2021,1248715,PERSONAL PAYMENTS,Social Care - Direct Payments,Bi-Borough Director of Integrated Care,992.64
14/01/2021,1254540,PERSONAL PAYMENTS,Adult Social Care - Other Transfer Pay,Bi-Borough Director of Integrated Care,811.80
14/01/2021,1246066,Barrie Bookkeeping & Payroll,Adult Social Care - Other Transfer Pay,Bi-Borough Director of Integrated Care,1991.00
14/01/2021,1247452,PERSONAL PAYMENTS,Social Care - Direct Payments,Bi-Borough Director of Integrated Care,1240.97
14/01/2021,1247732,PERSONAL PAYMENTS,Social Care - Direct Payments,Bi-Borough Director of Integrated Care,1985.28
14/01/2021,1250612,PERSONAL PAYMENTS,Social Care - Direct Payments,Bi-Borough Director of Integrated Care,540.00
14/01/2021,1250670,PERSONAL PAYMENTS,Adult Social Care - Other Transfer Pay,Bi-Borough Director of Integrated Care,1024.00
14/01/2021,1249796,PERSONAL PAYMENTS,Adult Social Care - Other Transfer Pay,Bi-Borough Director of Integrated Care,992.64
14/01/2021,1250012,PERSONAL PAYMENTS,Adult Social Care - Other Transfer Pay,Bi-Borough Director of Integrated Care,2015.00
14/01/2021,1247727,PERSONAL PAYMENTS,Social Care - Direct Payments,Bi-Borough Director of Integrated Care,2740.72
14/01/2021,1246066,Barrie Bookkeeping & Payroll,Adult Social Care - Other Transfer Pay,Bi-Borough Director of Integrated Care,835.60
14/01/2021,1247804,PERSONAL PAYMENTS,Social Care - Direct Payments,Bi-Borough Director of Integrated Care,902.40
14/01/2021,1246066,Barrie Bookkeeping & Payroll,Adult Social Care - Other Transfer Pay,Bi-Borough Director of Integrated Care,5914.56
03/02/2021,1245825,Sweet Tree Home Care Services,Adult Social Care - Other Transfer Pay,Bi-Borough Director of Integrated Care,3852.88
11/02/2021,1246066,Barrie Bookkeeping & Payroll,Adult Social Care - Other Transfer Pay,Bi-Borough Director of Integrated Care,2740.12
11/02/2021,1246066,Barrie Bookkeeping & Payroll,Adult Social Care - Other Transfer Pay,Bi-Borough Director of Integrated Care,1603.60
11/02/2021,1246066,Barrie Bookkeeping & Payroll,Adult Social Care - Other Transfer Pay,Bi-Borough Director of Integrated Care,773.20
11/02/2021,1250627,PERSONAL PAYMENTS,Social Care - Direct Payments,Bi-Borough Director of Integrated Care,2253.00
11/02/2021,1250656,PERSONAL PAYMENTS,Social Care - Direct Payments,Bi-Borough Director of Integrated Care,1118.36
11/02/2021,1249009,PERSONAL PAYMENTS,Social Care - Direct Payments,Bi-Borough Director of Integrated Care,2301.12
11/02/2021,1248292,PERSONAL PAYMENTS,Adult Social Care - Other Transfer Pay,Bi-Borough Director of Integrated Care,1208.96
11/02/2021,1246066,Barrie Bookkeeping & Payroll,Adult Social Care - Other Transfer Pay,Bi-Borough Director of Integrated Care,1633.00
11/02/2021,1250215,PERSONAL PAYMENTS,Adult Social Care - Other Transfer Pay,Bi-Borough Director of Integrated Care,837.88
11/02/2021,1246066,Barrie Bookkeeping & Payroll,Adult Social Care - Other Transfer Pay,Bi-Borough Director of Integrated Care,1680.00
11/02/2021,1247820,PERSONAL PAYMENTS,Social Care - Direct Payments,Bi-Borough Director of Integrated Care,9196.00
11/02/2021,1246066,Barrie Bookkeeping & Payroll,Adult Social Care - Other Transfer Pay,Bi-Borough Director of Integrated Care,2058.00
11/02/2021,1246066,Barrie Bookkeeping & Payroll,Adult Social Care - Other Transfer Pay,Bi-Borough Director of Integrated Care,7987.60
11/02/2021,1246066,Barrie Bookkeeping & Payroll,Adult Social Care - Other Transfer Pay,Bi-Borough Director of Integrated Care,852.72
11/02/2021,1250074,PERSONAL PAYMENTS,Adult Social Care - Other Transfer Pay,Bi-Borough Director of Integrated Care,8290.76
11/02/2021,1250044,PERSONAL PAYMENTS,Adult Social Care - Other Transfer Pay,Bi-Borough Director of Integrated Care,648.00
11/02/2021,1256833,PERSONAL PAYMENTS,Adult Social Care - Other Transfer Pay,Bi-Borough Director of Integrated Care,572.00
11/02/2021,1246066,Barrie Bookkeeping & Payroll,Adult Social Care - Other Transfer Pay,Bi-Borough Director of Integrated Care,1821.60
11/02/2021,1246066,Barrie Bookkeeping & Payroll,Adult Social Care - Other Transfer Pay,Bi-Borough Director of Integrated Care,1275.60
11/02/2021,1248292,PERSONAL PAYMENTS,Adult Social Care - Other Transfer Pay,Bi-Borough Director of Integrated Care,8640.00
11/02/2021,1250186,PERSONAL PAYMENTS,Adult Social Care - Other Transfer Pay,Bi-Borough Director of Integrated Care,2540.00
11/02/2021,1246066,Barrie Bookkeeping & Payroll,Adult Social Care - Other Transfer Pay,Bi-Borough Director of Integrated Care,759.92
11/02/2021,1250068,PERSONAL PAYMENTS,Social Care - Direct Payments,Bi-Borough Director of Integrated Care,740.00
11/02/2021,1248154,PERSONAL PAYMENTS,Adult Social Care - Other Transfer Pay,Bi-Borough Director of Integrated Care,1540.00
11/02/2021,1247355,PERSONAL PAYMENTS,Social Care - Direct Payments,Bi-Borough Director of Integrated Care,857.28
11/02/2021,1248715,PERSONAL PAYMENTS,Social Care - Direct Payments,Bi-Borough Director of Integrated Care,992.64
11/02/2021,1254540,PERSONAL PAYMENTS,Adult Social Care - Other Transfer Pay,Bi-Borough Director of Integrated Care,811.80
11/02/2021,1246066,Barrie Bookkeeping & Payroll,Adult Social Care - Other Transfer Pay,Bi-Borough Director of Integrated Care,1991.00
11/02/2021,1247452,PERSONAL PAYMENTS,Social Care - Direct Payments,Bi-Borough Director of Integrated Care,1289.24
11/02/2021,1247732,PERSONAL PAYMENTS,Social Care - Direct Payments,Bi-Borough Director of Integrated Care,1985.28
11/02/2021,1250612,PERSONAL PAYMENTS,Social Care - Direct Payments,Bi-Borough Director of Integrated Care,540.00
11/02/2021,1250670,PERSONAL PAYMENTS,Adult Social Care - Other Transfer Pay,Bi-Borough Director of Integrated Care,1024.00
11/02/2021,1249796,PERSONAL PAYMENTS,Adult Social Care - Other Transfer Pay,Bi-Borough Director of Integrated Care,992.64
11/02/2021,1247727,PERSONAL PAYMENTS,Social Care - Direct Payments,Bi-Borough Director of Integrated Care,2740.72
11/02/2021,1246066,Barrie Bookkeeping & Payroll,Adult Social Care - Other Transfer Pay,Bi-Borough Director of Integrated Care,835.60
11/02/2021,1247804,PERSONAL PAYMENTS,Social Care - Direct Payments,Bi-Borough Director of Integrated Care,902.40
11/02/2021,1250310,PERSONAL PAYMENTS,Adult Social Care - Other Transfer Pay,Bi-Borough Director of Integrated Care,1368.00
11/02/2021,1248010,PERSONAL PAYMENTS,Adult Social Care - Other Transfer Pay,Bi-Borough Director of Integrated Care,541.44
11/02/2021,1246066,Barrie Bookkeeping & Payroll,Adult Social Care - Other Transfer Pay,Bi-Borough Director of Integrated Care,2830.00
11/02/2021,1246066,Barrie Bookkeeping & Payroll,Adult Social Care - Other Transfer Pay,Bi-Borough Director of Integrated Care,4603.40
11/02/2021,1268346,PERSONAL PAYMENTS,Adult Social Care - Other Transfer Pay,Bi-Borough Director of Integrated Care,1743.09
11/02/2021,1249942,PERSONAL PAYMENTS,Adult Social Care - Other Transfer Pay,Bi-Borough Director of Integrated Care,5975.56
11/02/2021,1250674,PERSONAL PAYMENTS,Adult Social Care - Other Transfer Pay,Bi-Borough Director of Integrated Care,2372.80
11/02/2021,1248354,PERSONAL PAYMENTS,Adult Social Care - Other Transfer Pay,Bi-Borough Director of Integrated Care,3026.00
11/02/2021,1250368,PERSONAL PAYMENTS,Adult Social Care - Other Transfer Pay,Bi-Borough Director of Integrated Care,1794.08
11/02/2021,1250138,PERSONAL PAYMENTS,Social Care - Direct Payments,Bi-Borough Director of Integrated Care,1200.00
11/02/2021,1248148,PERSONAL PAYMENTS,Adult Social Care - Other Transfer Pay,Bi-Borough Director of Integrated Care,1638.96
11/02/2021,1256952,PERSONAL PAYMENTS,Adult Social Care - Other Transfer Pay,Bi-Borough Director of Integrated Care,1920.00
11/02/2021,1246066,Barrie Bookkeeping & Payroll,Adult Social Care - Other Transfer Pay,Bi-Borough Director of Integrated Care,5914.56
11/02/2021,1250012,PERSONAL PAYMENTS,Adult Social Care - Other Transfer Pay,Bi-Borough Director of Integrated Care,2015.00
11/02/2021,1248059,PERSONAL PAYMENTS,Social Care - Direct Payments,Bi-Borough Director of Integrated Care,5808.52
11/02/2021,1246066,Barrie Bookkeeping & Payroll,Adult Social Care - Other Transfer Pay,Bi-Borough Director of Integrated Care,2585.32
11/02/2021,1250360,PERSONAL PAYMENTS,Adult Social Care - Other Transfer Pay,Bi-Borough Director of Integrated Care,3328.00
11/02/2021,1246066,Barrie Bookkeeping & Payroll,Adult Social Care - Other Transfer Pay,Bi-Borough Director of Integrated Care,818.00
11/02/2021,1248468,PERSONAL PAYMENTS,Adult Social Care - Other Transfer Pay,Bi-Borough Director of Integrated Care,996.00
11/02/2021,1248995,PERSONAL PAYMENTS,Adult Social Care - Other Transfer Pay,Bi-Borough Director of Integrated Care,540.00
11/02/2021,1246066,Barrie Bookkeeping & Payroll,Adult Social Care - Other Transfer Pay,Bi-Borough Director of Integrated Care,1228.00
12/02/2021,1246066,Barrie Bookkeeping & Payroll,Adult Social Care - Other Transfer Pay,Bi-Borough Director of Integrated Care,5477.51
23/02/2021,1246066,Barrie Bookkeeping & Payroll,Adult Social Care - Other Transfer Pay,Bi-Borough Director of Integrated Care,3945.82
23/02/2021,1246066,Barrie Bookkeeping & Payroll,Adult Social Care - Other Transfer Pay,Bi-Borough Director of Integrated Care,2256.00
03/03/2021,1245825,Sweet Tree Home Care Services,Adult Social Care - Other Transfer Pay,Bi-Borough Director of Integrated Care,3422.62
05/03/2021,1246066,Barrie Bookkeeping & Payroll,Adult Social Care - Other Transfer Pay,Bi-Borough Director of Integrated Care,4982.76
05/03/2021,1246066,Barrie Bookkeeping & Payroll,Adult Social Care - Other Transfer Pay,Bi-Borough Director of Integrated Care,601.60
11/03/2021,1250215,PERSONAL PAYMENTS,Adult Social Care - Other Transfer Pay,Bi-Borough Director of Integrated Care,837.88
11/03/2021,1246066,Barrie Bookkeeping & Payroll,Adult Social Care - Other Transfer Pay,Bi-Borough Director of Integrated Care,2585.32
11/03/2021,1246066,Barrie Bookkeeping & Payroll,Adult Social Care - Other Transfer Pay,Bi-Borough Director of Integrated Care,2830.00
11/03/2021,1246066,Barrie Bookkeeping & Payroll,Adult Social Care - Other Transfer Pay,Bi-Borough Director of Integrated Care,1991.00
11/03/2021,1248010,PERSONAL PAYMENTS,Adult Social Care - Other Transfer Pay,Bi-Borough Director of Integrated Care,541.44
11/03/2021,1248059,PERSONAL PAYMENTS,Social Care - Direct Payments,Bi-Borough Director of Integrated Care,5808.52
11/03/2021,1246066,Barrie Bookkeeping & Payroll,Adult Social Care - Other Transfer Pay,Bi-Borough Director of Integrated Care,852.72
11/03/2021,1246066,Barrie Bookkeeping & Payroll,Adult Social Care - Other Transfer Pay,Bi-Borough Director of Integrated Care,1275.60
11/03/2021,1246066,Barrie Bookkeeping & Payroll,Adult Social Care - Other Transfer Pay,Bi-Borough Director of Integrated Care,1821.60
11/03/2021,1248292,PERSONAL PAYMENTS,Adult Social Care - Other Transfer Pay,Bi-Borough Director of Integrated Care,8640.00
11/03/2021,1250074,PERSONAL PAYMENTS,Adult Social Care - Other Transfer Pay,Bi-Borough Director of Integrated Care,8290.76
11/03/2021,1250044,PERSONAL PAYMENTS,Adult Social Care - Other Transfer Pay,Bi-Borough Director of Integrated Care,648.00
11/03/2021,1248715,PERSONAL PAYMENTS,Social Care - Direct Payments,Bi-Borough Director of Integrated Care,992.64
11/03/2021,1250360,PERSONAL PAYMENTS,Adult Social Care - Other Transfer Pay,Bi-Borough Director of Integrated Care,3328.00
11/03/2021,1250310,PERSONAL PAYMENTS,Adult Social Care - Other Transfer Pay,Bi-Borough Director of Integrated Care,1368.00
11/03/2021,1250674,PERSONAL PAYMENTS,Adult Social Care - Other Transfer Pay,Bi-Borough Director of Integrated Care,2372.80
11/03/2021,1254540,PERSONAL PAYMENTS,Adult Social Care - Other Transfer Pay,Bi-Borough Director of Integrated Care,811.80
11/03/2021,1246066,Barrie Bookkeeping & Payroll,Adult Social Care - Other Transfer Pay,Bi-Borough Director of Integrated Care,4603.40
11/03/2021,1249942,PERSONAL PAYMENTS,Adult Social Care - Other Transfer Pay,Bi-Borough Director of Integrated Care,5975.56
11/03/2021,1250670,PERSONAL PAYMENTS,Adult Social Care - Other Transfer Pay,Bi-Borough Director of Integrated Care,1024.00
11/03/2021,1247452,PERSONAL PAYMENTS,Social Care - Direct Payments,Bi-Borough Director of Integrated Care,1289.24
11/03/2021,1250138,PERSONAL PAYMENTS,Social Care - Direct Payments,Bi-Borough Director of Integrated Care,1200.00
11/03/2021,1247732,PERSONAL PAYMENTS,Social Care - Direct Payments,Bi-Borough Director of Integrated Care,1985.28
11/03/2021,1250612,PERSONAL PAYMENTS,Social Care - Direct Payments,Bi-Borough Director of Integrated Care,540.00
11/03/2021,1246066,Barrie Bookkeeping & Payroll,Adult Social Care - Other Transfer Pay,Bi-Borough Director of Integrated Care,2483.40
11/03/2021,1246066,Barrie Bookkeeping & Payroll,Adult Social Care - Other Transfer Pay,Bi-Borough Director of Integrated Care,2740.12
11/03/2021,1246066,Barrie Bookkeeping & Payroll,Adult Social Care - Other Transfer Pay,Bi-Borough Director of Integrated Care,1791.60
11/03/2021,1246066,Barrie Bookkeeping & Payroll,Adult Social Care - Other Transfer Pay,Bi-Borough Director of Integrated Care,5914.56
11/03/2021,1248354,PERSONAL PAYMENTS,Adult Social Care - Other Transfer Pay,Bi-Borough Director of Integrated Care,3026.00
11/03/2021,1256952,PERSONAL PAYMENTS,Adult Social Care - Other Transfer Pay,Bi-Borough Director of Integrated Care,1920.00
11/03/2021,1268346,PERSONAL PAYMENTS,Adult Social Care - Other Transfer Pay,Bi-Borough Director of Integrated Care,1623.40
11/03/2021,1250368,PERSONAL PAYMENTS,Adult Social Care - Other Transfer Pay,Bi-Borough Director of Integrated Care,1794.08
11/03/2021,1248148,PERSONAL PAYMENTS,Adult Social Care - Other Transfer Pay,Bi-Borough Director of Integrated Care,1638.96
11/03/2021,1256833,PERSONAL PAYMENTS,Adult Social Care - Other Transfer Pay,Bi-Borough Director of Integrated Care,572.00
11/03/2021,1249796,PERSONAL PAYMENTS,Adult Social Care - Other Transfer Pay,Bi-Borough Director of Integrated Care,992.64
11/03/2021,1250012,PERSONAL PAYMENTS,Adult Social Care - Other Transfer Pay,Bi-Borough Director of Integrated Care,2015.00
11/03/2021,1246066,Barrie Bookkeeping & Payroll,Adult Social Care - Other Transfer Pay,Bi-Borough Director of Integrated Care,773.20
11/03/2021,1249009,PERSONAL PAYMENTS,Social Care - Direct Payments,Bi-Borough Director of Integrated Care,2301.12
11/03/2021,1250627,PERSONAL PAYMENTS,Social Care - Direct Payments,Bi-Borough Director of Integrated Care,2253.00
11/03/2021,1250656,PERSONAL PAYMENTS,Social Care - Direct Payments,Bi-Borough Director of Integrated Care,1118.36
11/03/2021,1246066,Barrie Bookkeeping & Payroll,Adult Social Care - Other Transfer Pay,Bi-Borough Director of Integrated Care,818.00
11/03/2021,1246066,Barrie Bookkeeping & Payroll,Adult Social Care - Other Transfer Pay,Bi-Borough Director of Integrated Care,759.92
11/03/2021,1247727,PERSONAL PAYMENTS,Social Care - Direct Payments,Bi-Borough Director of Integrated Care,2740.72
11/03/2021,1247804,PERSONAL PAYMENTS,Social Care - Direct Payments,Bi-Borough Director of Integrated Care,902.40
11/03/2021,1250186,PERSONAL PAYMENTS,Adult Social Care - Other Transfer Pay,Bi-Borough Director of Integrated Care,4948.99
11/03/2021,1250068,PERSONAL PAYMENTS,Social Care - Direct Payments,Bi-Borough Director of Integrated Care,740.00
11/03/2021,1247355,PERSONAL PAYMENTS,Social Care - Direct Payments,Bi-Borough Director of Integrated Care,857.28
11/03/2021,1246066,Barrie Bookkeeping & Payroll,Adult Social Care - Other Transfer Pay,Bi-Borough Director of Integrated Care,1633.00
11/03/2021,1246066,Barrie Bookkeeping & Payroll,Adult Social Care - Other Transfer Pay,Bi-Borough Director of Integrated Care,1680.00
11/03/2021,1246066,Barrie Bookkeeping & Payroll,Adult Social Care - Other Transfer Pay,Bi-Borough Director of Integrated Care,2058.00
11/03/2021,1246066,Barrie Bookkeeping & Payroll,Adult Social Care - Other Transfer Pay,Bi-Borough Director of Integrated Care,7987.60
11/03/2021,1248292,PERSONAL PAYMENTS,Adult Social Care - Other Transfer Pay,Bi-Borough Director of Integrated Care,1208.96
11/03/2021,1247820,PERSONAL PAYMENTS,Social Care - Direct Payments,Bi-Borough Director of Integrated Care,9196.00
11/03/2021,1248995,PERSONAL PAYMENTS,Adult Social Care - Other Transfer Pay,Bi-Borough Director of Integrated Care,540.00
11/03/2021,1248154,PERSONAL PAYMENTS,Adult Social Care - Other Transfer Pay,Bi-Borough Director of Integrated Care,1540.00
18/03/2021,1255663,PLAY ASSOCIATION HAMMERSMITH AND FU,B*Voluntary-Spot-V Dep-Enhanced - do not u,Bi-Borough Director of Integrated Care,640.00
18/03/2021,1255663,PLAY ASSOCIATION HAMMERSMITH AND FU,B*Voluntary-Spot-V Dep-Enhanced - do not u,Bi-Borough Director of Integrated Care,960.00
18/03/2021,1255663,PLAY ASSOCIATION HAMMERSMITH AND FU,B*Voluntary-Spot-V Dep-Enhanced - do not u,Bi-Borough Director of Integrated Care,800.00
05/01/2021,1258049,PSS (UK),,Bi-Borough Director of Integrated Care,2660.96
03/02/2021,1258049,PSS (UK),,Bi-Borough Director of Integrated Care,2660.96
03/03/2021,1258049,PSS (UK),,Bi-Borough Director of Integrated Care,2660.96
24/03/2021,1258049,PSS (UK),,Bi-Borough Director of Integrated Care,2946.06
05/01/2021,1245021,Paradise Community,,Bi-Borough Director of Integrated Care,10414.68
03/02/2021,1245021,Paradise Community,,Bi-Borough Director of Integrated Care,10414.68
03/03/2021,1245021,Paradise Community,,Bi-Borough Director of Integrated Care,10414.68
24/03/2021,1245021,Paradise Community,,Bi-Borough Director of Integrated Care,11530.54
05/01/2021,1250448,PERSONAL PAYMENTS,,Bi-Borough Director of Integrated Care,1419.24
03/02/2021,1250448,PERSONAL PAYMENTS,,Bi-Borough Director of Integrated Care,1419.24
03/03/2021,1250448,PERSONAL PAYMENTS,,Bi-Borough Director of Integrated Care,1419.24
24/03/2021,1250448,PERSONAL PAYMENTS,,Bi-Borough Director of Integrated Care,1571.30
05/01/2021,1245163,Poor Servants of the mother of,,Bi-Borough Director of Integrated Care,2878.88
03/02/2021,1245163,Poor Servants of the mother of,,Bi-Borough Director of Integrated Care,2878.88
03/03/2021,1245163,Poor Servants of the mother of,,Bi-Borough Director of Integrated Care,2878.88
24/03/2021,1245163,Poor Servants of the mother of,,Bi-Borough Director of Integrated Care,3187.33
05/01/2021,1245165,Precious Homes Ltd,,Bi-Borough Director of Integrated Care,5320.00
05/01/2021,1245165,Precious Homes Ltd,,Bi-Borough Director of Integrated Care,13976.16
03/02/2021,1245165,Precious Homes Ltd,,Bi-Borough Director of Integrated Care,13976.16
03/02/2021,1245165,Precious Homes Ltd,,Bi-Borough Director of Integrated Care,5320.00
03/03/2021,1245165,Precious Homes Ltd,,Bi-Borough Director of Integrated Care,5320.00
03/03/2021,1245165,Precious Homes Ltd,,Bi-Borough Director of Integrated Care,13976.16
24/03/2021,1245165,Precious Homes Ltd,,Bi-Borough Director of Integrated Care,5890.00
24/03/2021,1245165,Precious Homes Ltd,,Bi-Borough Director of Integrated Care,15473.61
07/01/2021,1248563,Pursuing Independent Paths,B*Voluntary-Spot-V Dep-Enhanced - do not u,Bi-Borough Director of Integrated Care,510.44
07/01/2021,1248563,Pursuing Independent Paths,B*Voluntary-Spot-V Dep-Enhanced - do not u,Bi-Borough Director of Integrated Care,1531.32
07/01/2021,1248563,Pursuing Independent Paths,B*Voluntary-Spot-V Dep-Enhanced - do not u,Bi-Borough Director of Integrated Care,1252.72
07/01/2021,1248563,Pursuing Independent Paths,B*Voluntary-Spot-V Dep-Enhanced - do not u,Bi-Borough Director of Integrated Care,510.44
07/01/2021,1248563,Pursuing Independent Paths,B*Voluntary-Spot-V Dep-Enhanced - do not u,Bi-Borough Director of Integrated Care,510.44
07/01/2021,1248563,Pursuing Independent Paths,B*Voluntary-Spot-V Dep-Enhanced - do not u,Bi-Borough Director of Integrated Care,1879.08
07/01/2021,1248563,Pursuing Independent Paths,B*Voluntary-Spot-V Dep-Enhanced - do not u,Bi-Borough Director of Integrated Care,510.44
07/01/2021,1248563,Pursuing Independent Paths,B*Voluntary-Spot-V Dep-Enhanced - do not u,Bi-Borough Director of Integrated Care,510.44
07/01/2021,1248563,Pursuing Independent Paths,B*Voluntary-Spot-V Dep-Enhanced - do not u,Bi-Borough Director of Integrated Care,583.36
07/01/2021,1248563,Pursuing Independent Paths,B*Voluntary-Spot-V Dep-Enhanced - do not u,Bi-Borough Director of Integrated Care,1531.32
07/01/2021,1248563,Pursuing Independent Paths,B*Voluntary-Spot-V Dep-Enhanced - do not u,Bi-Borough Director of Integrated Care,2041.76
07/01/2021,1248563,Pursuing Independent Paths,B*Voluntary-Spot-V Dep-Enhanced - do not u,Bi-Borough Director of Integrated Care,1276.10
07/01/2021,1248563,Pursuing Independent Paths,B*Voluntary-Spot-V Dep-Enhanced - do not u,Bi-Borough Director of Integrated Care,1531.32
07/01/2021,1248563,Pursuing Independent Paths,B*Voluntary-Spot-V Dep-Enhanced - do not u,Bi-Borough Director of Integrated Care,1531.32
07/01/2021,1248563,Pursuing Independent Paths,B*Voluntary-Spot-V Dep-Enhanced - do not u,Bi-Borough Director of Integrated Care,1020.88
07/01/2021,1248563,Pursuing Independent Paths,B*Voluntary-Spot-V Dep-Enhanced - do not u,Bi-Borough Director of Integrated Care,1276.10
07/01/2021,1248563,Pursuing Independent Paths,B*Voluntary-Spot-V Dep-Enhanced - do not u,Bi-Borough Director of Integrated Care,1531.32
07/01/2021,1248563,Pursuing Independent Paths,B*Voluntary-Spot-V Dep-Enhanced - do not u,Bi-Borough Director of Integrated Care,1786.54
07/01/2021,1248563,Pursuing Independent Paths,B*Voluntary-Spot-V Dep-Enhanced - do not u,Bi-Borough Director of Integrated Care,1289.32
07/01/2021,1248563,Pursuing Independent Paths,B*Voluntary-Spot-V Dep-Enhanced - do not u,Bi-Borough Director of Integrated Care,510.44
07/01/2021,1248563,Pursuing Independent Paths,B*Voluntary-Spot-V Dep-Enhanced - do not u,Bi-Borough Director of Integrated Care,1020.88
07/01/2021,1248563,Pursuing Independent Paths,B*Voluntary-Spot-V Dep-Enhanced - do not u,Bi-Borough Director of Integrated Care,1020.88
07/01/2021,1248563,Pursuing Independent Paths,B*Voluntary-Spot-V Dep-Enhanced - do not u,Bi-Borough Director of Integrated Care,2552.20
07/01/2021,1248563,Pursuing Independent Paths,B*Voluntary-Spot-V Dep-Enhanced - do not u,Bi-Borough Director of Integrated Care,1531.32
07/01/2021,1248563,Pursuing Independent Paths,B*Voluntary-Spot-V Dep-Enhanced - do not u,Bi-Borough Director of Integrated Care,1531.32
07/01/2021,1248563,Pursuing Independent Paths,B*Voluntary-Spot-V Dep-Enhanced - do not u,Bi-Borough Director of Integrated Care,1531.32
07/01/2021,1248563,Pursuing Independent Paths,B*Voluntary-Spot-V Dep-Enhanced - do not u,Bi-Borough Director of Integrated Care,546.90
07/01/2021,1248563,Pursuing Independent Paths,B*Voluntary-Spot-V Dep-Enhanced - do not u,Bi-Borough Director of Integrated Care,510.44
07/01/2021,1248563,Pursuing Independent Paths,B*Voluntary-Spot-V Dep-Enhanced - do not u,Bi-Borough Director of Integrated Care,1020.88
07/01/2021,1248563,Pursuing Independent Paths,B*Voluntary-Spot-V Dep-Enhanced - do not u,Bi-Borough Director of Integrated Care,510.44
07/01/2021,1248563,Pursuing Independent Paths,B*Voluntary-Spot-V Dep-Enhanced - do not u,Bi-Borough Director of Integrated Care,1531.32
07/01/2021,1248563,Pursuing Independent Paths,B*Voluntary-Spot-V Dep-Enhanced - do not u,Bi-Borough Director of Integrated Care,1276.10
07/01/2021,1248563,Pursuing Independent Paths,B*Voluntary-Spot-V Dep-Enhanced - do not u,Bi-Borough Director of Integrated Care,2552.20
07/01/2021,1248563,Pursuing Independent Paths,B*Voluntary-Spot-V Dep-Enhanced - do not u,Bi-Borough Director of Integrated Care,1531.32
07/01/2021,1248563,Pursuing Independent Paths,B*Voluntary-Spot-V Dep-Enhanced - do not u,Bi-Borough Director of Integrated Care,1531.32
07/01/2021,1248563,Pursuing Independent Paths,B*Voluntary-Spot-V Dep-Enhanced - do not u,Bi-Borough Director of Integrated Care,1531.32
07/01/2021,1248563,Pursuing Independent Paths,B*Voluntary-Spot-V Dep-Enhanced - do not u,Bi-Borough Director of Integrated Care,1531.32
07/01/2021,1248563,Pursuing Independent Paths,B*Voluntary-Spot-V Dep-Enhanced - do not u,Bi-Borough Director of Integrated Care,1020.88
07/01/2021,1248563,Pursuing Independent Paths,B*Voluntary-Spot-V Dep-Enhanced - do not u,Bi-Borough Director of Integrated Care,1276.10
01/02/2021,1248563,Pursuing Independent Paths,B*Voluntary-Spot-V Dep-Enhanced - do not u,Bi-Borough Director of Integrated Care,1020.88
01/02/2021,1248563,Pursuing Independent Paths,B*Voluntary-Spot-V Dep-Enhanced - do not u,Bi-Borough Director of Integrated Care,1276.10
01/02/2021,1248563,Pursuing Independent Paths,B*Voluntary-Spot-V Dep-Enhanced - do not u,Bi-Borough Director of Integrated Care,1531.32
01/02/2021,1248563,Pursuing Independent Paths,B*Voluntary-Spot-V Dep-Enhanced - do not u,Bi-Borough Director of Integrated Care,1786.54
01/02/2021,1248563,Pursuing Independent Paths,B*Voluntary-Spot-V Dep-Enhanced - do not u,Bi-Borough Director of Integrated Care,1289.32
01/02/2021,1248563,Pursuing Independent Paths,B*Voluntary-Spot-V Dep-Enhanced - do not u,Bi-Borough Director of Integrated Care,510.44
01/02/2021,1248563,Pursuing Independent Paths,B*Voluntary-Spot-V Dep-Enhanced - do not u,Bi-Borough Director of Integrated Care,1020.88
01/02/2021,1248563,Pursuing Independent Paths,B*Voluntary-Spot-V Dep-Enhanced - do not u,Bi-Borough Director of Integrated Care,1020.88
01/02/2021,1248563,Pursuing Independent Paths,B*Voluntary-Spot-V Dep-Enhanced - do not u,Bi-Borough Director of Integrated Care,2552.20
01/02/2021,1248563,Pursuing Independent Paths,B*Voluntary-Spot-V Dep-Enhanced - do not u,Bi-Borough Director of Integrated Care,1531.32
01/02/2021,1248563,Pursuing Independent Paths,B*Voluntary-Spot-V Dep-Enhanced - do not u,Bi-Borough Director of Integrated Care,1531.32
01/02/2021,1248563,Pursuing Independent Paths,B*Voluntary-Spot-V Dep-Enhanced - do not u,Bi-Borough Director of Integrated Care,1531.32
01/02/2021,1248563,Pursuing Independent Paths,B*Voluntary-Spot-V Dep-Enhanced - do not u,Bi-Borough Director of Integrated Care,546.90
01/02/2021,1248563,Pursuing Independent Paths,B*Voluntary-Spot-V Dep-Enhanced - do not u,Bi-Borough Director of Integrated Care,510.44
01/02/2021,1248563,Pursuing Independent Paths,B*Voluntary-Spot-V Dep-Enhanced - do not u,Bi-Borough Director of Integrated Care,1020.88
01/02/2021,1248563,Pursuing Independent Paths,B*Voluntary-Spot-V Dep-Enhanced - do not u,Bi-Borough Director of Integrated Care,510.44
01/02/2021,1248563,Pursuing Independent Paths,B*Voluntary-Spot-V Dep-Enhanced - do not u,Bi-Borough Director of Integrated Care,1531.32
01/02/2021,1248563,Pursuing Independent Paths,B*Voluntary-Spot-V Dep-Enhanced - do not u,Bi-Borough Director of Integrated Care,1276.10
01/02/2021,1248563,Pursuing Independent Paths,B*Voluntary-Spot-V Dep-Enhanced - do not u,Bi-Borough Director of Integrated Care,2552.20
01/02/2021,1248563,Pursuing Independent Paths,B*Voluntary-Spot-V Dep-Enhanced - do not u,Bi-Borough Director of Integrated Care,1531.32
01/02/2021,1248563,Pursuing Independent Paths,B*Voluntary-Spot-V Dep-Enhanced - do not u,Bi-Borough Director of Integrated Care,1531.32
01/02/2021,1248563,Pursuing Independent Paths,B*Voluntary-Spot-V Dep-Enhanced - do not u,Bi-Borough Director of Integrated Care,1531.32
01/02/2021,1248563,Pursuing Independent Paths,B*Voluntary-Spot-V Dep-Enhanced - do not u,Bi-Borough Director of Integrated Care,1531.32
01/02/2021,1248563,Pursuing Independent Paths,B*Voluntary-Spot-V Dep-Enhanced - do not u,Bi-Borough Director of Integrated Care,1020.88
01/02/2021,1248563,Pursuing Independent Paths,B*Voluntary-Spot-V Dep-Enhanced - do not u,Bi-Borough Director of Integrated Care,1276.10
01/02/2021,1248563,Pursuing Independent Paths,B*Voluntary-Spot-V Dep-Enhanced - do not u,Bi-Borough Director of Integrated Care,510.44
01/02/2021,1248563,Pursuing Independent Paths,B*Voluntary-Spot-V Dep-Enhanced - do not u,Bi-Borough Director of Integrated Care,1531.32
01/02/2021,1248563,Pursuing Independent Paths,B*Voluntary-Spot-V Dep-Enhanced - do not u,Bi-Borough Director of Integrated Care,1252.72
01/02/2021,1248563,Pursuing Independent Paths,B*Voluntary-Spot-V Dep-Enhanced - do not u,Bi-Borough Director of Integrated Care,510.44
01/02/2021,1248563,Pursuing Independent Paths,B*Voluntary-Spot-V Dep-Enhanced - do not u,Bi-Borough Director of Integrated Care,510.44
01/02/2021,1248563,Pursuing Independent Paths,B*Voluntary-Spot-V Dep-Enhanced - do not u,Bi-Borough Director of Integrated Care,1879.08
01/02/2021,1248563,Pursuing Independent Paths,B*Voluntary-Spot-V Dep-Enhanced - do not u,Bi-Borough Director of Integrated Care,510.44
01/02/2021,1248563,Pursuing Independent Paths,B*Voluntary-Spot-V Dep-Enhanced - do not u,Bi-Borough Director of Integrated Care,510.44
01/02/2021,1248563,Pursuing Independent Paths,B*Voluntary-Spot-V Dep-Enhanced - do not u,Bi-Borough Director of Integrated Care,583.36
01/02/2021,1248563,Pursuing Independent Paths,B*Voluntary-Spot-V Dep-Enhanced - do not u,Bi-Borough Director of Integrated Care,1531.32
01/02/2021,1248563,Pursuing Independent Paths,B*Voluntary-Spot-V Dep-Enhanced - do not u,Bi-Borough Director of Integrated Care,2041.76
01/02/2021,1248563,Pursuing Independent Paths,B*Voluntary-Spot-V Dep-Enhanced - do not u,Bi-Borough Director of Integrated Care,1276.10
01/02/2021,1248563,Pursuing Independent Paths,B*Voluntary-Spot-V Dep-Enhanced - do not u,Bi-Borough Director of Integrated Care,1531.32
01/02/2021,1248563,Pursuing Independent Paths,B*Voluntary-Spot-V Dep-Enhanced - do not u,Bi-Borough Director of Integrated Care,1531.32
09/03/2021,1248563,Pursuing Independent Paths,B*Voluntary-Spot-V Dep-Enhanced - do not u,Bi-Borough Director of Integrated Care,1020.88
09/03/2021,1248563,Pursuing Independent Paths,B*Voluntary-Spot-V Dep-Enhanced - do not u,Bi-Borough Director of Integrated Care,1276.10
09/03/2021,1248563,Pursuing Independent Paths,B*Voluntary-Spot-V Dep-Enhanced - do not u,Bi-Borough Director of Integrated Care,1531.32
09/03/2021,1248563,Pursuing Independent Paths,B*Voluntary-Spot-V Dep-Enhanced - do not u,Bi-Borough Director of Integrated Care,1289.32
09/03/2021,1248563,Pursuing Independent Paths,B*Voluntary-Spot-V Dep-Enhanced - do not u,Bi-Borough Director of Integrated Care,510.44
09/03/2021,1248563,Pursuing Independent Paths,B*Voluntary-Spot-V Dep-Enhanced - do not u,Bi-Borough Director of Integrated Care,1020.88
09/03/2021,1248563,Pursuing Independent Paths,B*Voluntary-Spot-V Dep-Enhanced - do not u,Bi-Borough Director of Integrated Care,1020.88
09/03/2021,1248563,Pursuing Independent Paths,B*Voluntary-Spot-V Dep-Enhanced - do not u,Bi-Borough Director of Integrated Care,2552.20
09/03/2021,1248563,Pursuing Independent Paths,B*Voluntary-Spot-V Dep-Enhanced - do not u,Bi-Borough Director of Integrated Care,1531.32
09/03/2021,1248563,Pursuing Independent Paths,B*Voluntary-Spot-V Dep-Enhanced - do not u,Bi-Borough Director of Integrated Care,1531.32
09/03/2021,1248563,Pursuing Independent Paths,B*Voluntary-Spot-V Dep-Enhanced - do not u,Bi-Borough Director of Integrated Care,1531.32
09/03/2021,1248563,Pursuing Independent Paths,B*Voluntary-Spot-V Dep-Enhanced - do not u,Bi-Borough Director of Integrated Care,546.90
09/03/2021,1248563,Pursuing Independent Paths,B*Voluntary-Spot-V Dep-Enhanced - do not u,Bi-Borough Director of Integrated Care,510.44
09/03/2021,1248563,Pursuing Independent Paths,B*Voluntary-Spot-V Dep-Enhanced - do not u,Bi-Borough Director of Integrated Care,1020.88
09/03/2021,1248563,Pursuing Independent Paths,B*Voluntary-Spot-V Dep-Enhanced - do not u,Bi-Borough Director of Integrated Care,510.44
09/03/2021,1248563,Pursuing Independent Paths,B*Voluntary-Spot-V Dep-Enhanced - do not u,Bi-Borough Director of Integrated Care,1531.32
09/03/2021,1248563,Pursuing Independent Paths,B*Voluntary-Spot-V Dep-Enhanced - do not u,Bi-Borough Director of Integrated Care,1276.10
09/03/2021,1248563,Pursuing Independent Paths,B*Voluntary-Spot-V Dep-Enhanced - do not u,Bi-Borough Director of Integrated Care,2552.20
09/03/2021,1248563,Pursuing Independent Paths,B*Voluntary-Spot-V Dep-Enhanced - do not u,Bi-Borough Director of Integrated Care,1531.32
09/03/2021,1248563,Pursuing Independent Paths,B*Voluntary-Spot-V Dep-Enhanced - do not u,Bi-Borough Director of Integrated Care,1531.32
09/03/2021,1248563,Pursuing Independent Paths,B*Voluntary-Spot-V Dep-Enhanced - do not u,Bi-Borough Director of Integrated Care,1531.32
09/03/2021,1248563,Pursuing Independent Paths,B*Voluntary-Spot-V Dep-Enhanced - do not u,Bi-Borough Director of Integrated Care,1531.32
09/03/2021,1248563,Pursuing Independent Paths,B*Voluntary-Spot-V Dep-Enhanced - do not u,Bi-Borough Director of Integrated Care,1020.88
09/03/2021,1248563,Pursuing Independent Paths,B*Voluntary-Spot-V Dep-Enhanced - do not u,Bi-Borough Director of Integrated Care,1276.10
09/03/2021,1248563,Pursuing Independent Paths,B*Voluntary-Spot-V Dep-Enhanced - do not u,Bi-Borough Director of Integrated Care,510.44
09/03/2021,1248563,Pursuing Independent Paths,B*Voluntary-Spot-V Dep-Enhanced - do not u,Bi-Borough Director of Integrated Care,1531.32
09/03/2021,1248563,Pursuing Independent Paths,B*Voluntary-Spot-V Dep-Enhanced - do not u,Bi-Borough Director of Integrated Care,1252.72
09/03/2021,1248563,Pursuing Independent Paths,B*Voluntary-Spot-V Dep-Enhanced - do not u,Bi-Borough Director of Integrated Care,510.44
09/03/2021,1248563,Pursuing Independent Paths,B*Voluntary-Spot-V Dep-Enhanced - do not u,Bi-Borough Director of Integrated Care,1786.54
09/03/2021,1248563,Pursuing Independent Paths,B*Voluntary-Spot-V Dep-Enhanced - do not u,Bi-Borough Director of Integrated Care,510.44
09/03/2021,1248563,Pursuing Independent Paths,B*Voluntary-Spot-V Dep-Enhanced - do not u,Bi-Borough Director of Integrated Care,1879.08
09/03/2021,1248563,Pursuing Independent Paths,B*Voluntary-Spot-V Dep-Enhanced - do not u,Bi-Borough Director of Integrated Care,510.44
09/03/2021,1248563,Pursuing Independent Paths,B*Voluntary-Spot-V Dep-Enhanced - do not u,Bi-Borough Director of Integrated Care,510.44
09/03/2021,1248563,Pursuing Independent Paths,B*Voluntary-Spot-V Dep-Enhanced - do not u,Bi-Borough Director of Integrated Care,583.36
09/03/2021,1248563,Pursuing Independent Paths,B*Voluntary-Spot-V Dep-Enhanced - do not u,Bi-Borough Director of Integrated Care,1531.32
09/03/2021,1248563,Pursuing Independent Paths,B*Voluntary-Spot-V Dep-Enhanced - do not u,Bi-Borough Director of Integrated Care,2041.76
09/03/2021,1248563,Pursuing Independent Paths,B*Voluntary-Spot-V Dep-Enhanced - do not u,Bi-Borough Director of Integrated Care,1276.10
09/03/2021,1248563,Pursuing Independent Paths,B*Voluntary-Spot-V Dep-Enhanced - do not u,Bi-Borough Director of Integrated Care,1531.32
09/03/2021,1248563,Pursuing Independent Paths,B*Voluntary-Spot-V Dep-Enhanced - do not u,Bi-Borough Director of Integrated Care,1531.32
30/03/2021,1248563,Pursuing Independent Paths,B*Voluntary-Spot-V Dep-Enhanced - do not u,Bi-Borough Director of Integrated Care,1020.88
30/03/2021,1248563,Pursuing Independent Paths,B*Voluntary-Spot-V Dep-Enhanced - do not u,Bi-Borough Director of Integrated Care,1276.10
30/03/2021,1248563,Pursuing Independent Paths,B*Voluntary-Spot-V Dep-Enhanced - do not u,Bi-Borough Director of Integrated Care,1531.32
30/03/2021,1248563,Pursuing Independent Paths,B*Voluntary-Spot-V Dep-Enhanced - do not u,Bi-Borough Director of Integrated Care,1786.54
30/03/2021,1248563,Pursuing Independent Paths,B*Voluntary-Spot-V Dep-Enhanced - do not u,Bi-Borough Director of Integrated Care,1289.32
30/03/2021,1248563,Pursuing Independent Paths,B*Voluntary-Spot-V Dep-Enhanced - do not u,Bi-Borough Director of Integrated Care,510.44
30/03/2021,1248563,Pursuing Independent Paths,B*Voluntary-Spot-V Dep-Enhanced - do not u,Bi-Borough Director of Integrated Care,1020.88
30/03/2021,1248563,Pursuing Independent Paths,B*Voluntary-Spot-V Dep-Enhanced - do not u,Bi-Borough Director of Integrated Care,1020.88
30/03/2021,1248563,Pursuing Independent Paths,B*Voluntary-Spot-V Dep-Enhanced - do not u,Bi-Borough Director of Integrated Care,2552.20
30/03/2021,1248563,Pursuing Independent Paths,B*Voluntary-Spot-V Dep-Enhanced - do not u,Bi-Borough Director of Integrated Care,1531.32
30/03/2021,1248563,Pursuing Independent Paths,B*Voluntary-Spot-V Dep-Enhanced - do not u,Bi-Borough Director of Integrated Care,1531.32
30/03/2021,1248563,Pursuing Independent Paths,B*Voluntary-Spot-V Dep-Enhanced - do not u,Bi-Borough Director of Integrated Care,1531.32
30/03/2021,1248563,Pursuing Independent Paths,B*Voluntary-Spot-V Dep-Enhanced - do not u,Bi-Borough Director of Integrated Care,546.90
30/03/2021,1248563,Pursuing Independent Paths,B*Voluntary-Spot-V Dep-Enhanced - do not u,Bi-Borough Director of Integrated Care,510.44
30/03/2021,1248563,Pursuing Independent Paths,B*Voluntary-Spot-V Dep-Enhanced - do not u,Bi-Borough Director of Integrated Care,1020.88
30/03/2021,1248563,Pursuing Independent Paths,B*Voluntary-Spot-V Dep-Enhanced - do not u,Bi-Borough Director of Integrated Care,510.44
30/03/2021,1248563,Pursuing Independent Paths,B*Voluntary-Spot-V Dep-Enhanced - do not u,Bi-Borough Director of Integrated Care,1531.32
30/03/2021,1248563,Pursuing Independent Paths,B*Voluntary-Spot-V Dep-Enhanced - do not u,Bi-Borough Director of Integrated Care,1276.10
30/03/2021,1248563,Pursuing Independent Paths,B*Voluntary-Spot-V Dep-Enhanced - do not u,Bi-Borough Director of Integrated Care,2552.20
30/03/2021,1248563,Pursuing Independent Paths,B*Voluntary-Spot-V Dep-Enhanced - do not u,Bi-Borough Director of Integrated Care,1531.32
30/03/2021,1248563,Pursuing Independent Paths,B*Voluntary-Spot-V Dep-Enhanced - do not u,Bi-Borough Director of Integrated Care,1531.32
30/03/2021,1248563,Pursuing Independent Paths,B*Voluntary-Spot-V Dep-Enhanced - do not u,Bi-Borough Director of Integrated Care,1531.32
30/03/2021,1248563,Pursuing Independent Paths,B*Voluntary-Spot-V Dep-Enhanced - do not u,Bi-Borough Director of Integrated Care,1531.32
30/03/2021,1248563,Pursuing Independent Paths,B*Voluntary-Spot-V Dep-Enhanced - do not u,Bi-Borough Director of Integrated Care,1020.88
30/03/2021,1248563,Pursuing Independent Paths,B*Voluntary-Spot-V Dep-Enhanced - do not u,Bi-Borough Director of Integrated Care,1276.10
30/03/2021,1248563,Pursuing Independent Paths,B*Voluntary-Spot-V Dep-Enhanced - do not u,Bi-Borough Director of Integrated Care,510.44
30/03/2021,1248563,Pursuing Independent Paths,B*Voluntary-Spot-V Dep-Enhanced - do not u,Bi-Borough Director of Integrated Care,1531.32
30/03/2021,1248563,Pursuing Independent Paths,B*Voluntary-Spot-V Dep-Enhanced - do not u,Bi-Borough Director of Integrated Care,1252.72
30/03/2021,1248563,Pursuing Independent Paths,B*Voluntary-Spot-V Dep-Enhanced - do not u,Bi-Borough Director of Integrated Care,510.44
30/03/2021,1248563,Pursuing Independent Paths,B*Voluntary-Spot-V Dep-Enhanced - do not u,Bi-Borough Director of Integrated Care,510.44
30/03/2021,1248563,Pursuing Independent Paths,B*Voluntary-Spot-V Dep-Enhanced - do not u,Bi-Borough Director of Integrated Care,1879.08
30/03/2021,1248563,Pursuing Independent Paths,B*Voluntary-Spot-V Dep-Enhanced - do not u,Bi-Borough Director of Integrated Care,510.44
30/03/2021,1248563,Pursuing Independent Paths,B*Voluntary-Spot-V Dep-Enhanced - do not u,Bi-Borough Director of Integrated Care,510.44
30/03/2021,1248563,Pursuing Independent Paths,B*Voluntary-Spot-V Dep-Enhanced - do not u,Bi-Borough Director of Integrated Care,583.36
30/03/2021,1248563,Pursuing Independent Paths,B*Voluntary-Spot-V Dep-Enhanced - do not u,Bi-Borough Director of Integrated Care,1531.32
30/03/2021,1248563,Pursuing Independent Paths,B*Voluntary-Spot-V Dep-Enhanced - do not u,Bi-Borough Director of Integrated Care,2041.76
30/03/2021,1248563,Pursuing Independent Paths,B*Voluntary-Spot-V Dep-Enhanced - do not u,Bi-Borough Director of Integrated Care,1276.10
30/03/2021,1248563,Pursuing Independent Paths,B*Voluntary-Spot-V Dep-Enhanced - do not u,Bi-Borough Director of Integrated Care,1531.32
30/03/2021,1248563,Pursuing Independent Paths,B*Voluntary-Spot-V Dep-Enhanced - do not u,Bi-Borough Director of Integrated Care,1531.32
05/01/2021,1245169,Rcp Residential Care Providers Ltd,,Bi-Borough Director of Integrated Care,930.96
05/01/2021,1245169,Rcp Residential Care Providers Ltd,,Bi-Borough Director of Integrated Care,5767.40
03/02/2021,1245169,Rcp Residential Care Providers Ltd,,Bi-Borough Director of Integrated Care,5767.40
03/02/2021,1245169,Rcp Residential Care Providers Ltd,,Bi-Borough Director of Integrated Care,930.96
03/03/2021,1245169,Rcp Residential Care Providers Ltd,,Bi-Borough Director of Integrated Care,930.96
03/03/2021,1245169,Rcp Residential Care Providers Ltd,,Bi-Borough Director of Integrated Care,5767.40
24/03/2021,1245169,Rcp Residential Care Providers Ltd,,Bi-Borough Director of Integrated Care,6385.34
24/03/2021,1245169,Rcp Residential Care Providers Ltd,,Bi-Borough Director of Integrated Care,1030.71
05/01/2021,1269718,Reliant Care Limited,,Bi-Borough Director of Integrated Care,2500.00
05/01/2021,1269718,Reliant Care Limited,,Bi-Borough Director of Integrated Care,2500.00
05/01/2021,1269718,Reliant Care Limited,,Bi-Borough Director of Integrated Care,1453.57
05/01/2021,1269718,Reliant Care Limited,,Bi-Borough Director of Integrated Care,1453.57
05/01/2021,1269718,Reliant Care Limited,,Bi-Borough Director of Integrated Care,1105.38
05/01/2021,1269718,Reliant Care Limited,,Bi-Borough Director of Integrated Care,1105.38
03/02/2021,1269718,Reliant Care Limited,,Bi-Borough Director of Integrated Care,660.71
03/02/2021,1269718,Reliant Care Limited,,Bi-Borough Director of Integrated Care,660.71
03/02/2021,1269718,Reliant Care Limited,,Bi-Borough Director of Integrated Care,631.65
03/02/2021,1269718,Reliant Care Limited,,Bi-Borough Director of Integrated Care,631.65
03/02/2021,1269718,Reliant Care Limited,,Bi-Borough Director of Integrated Care,2500.00
03/02/2021,1269718,Reliant Care Limited,,Bi-Borough Director of Integrated Care,2500.00
03/03/2021,1269718,Reliant Care Limited,,Bi-Borough Director of Integrated Care,2500.00
03/03/2021,1269718,Reliant Care Limited,,Bi-Borough Director of Integrated Care,2500.00
24/03/2021,1269718,Reliant Care Limited,,Bi-Borough Director of Integrated Care,2767.86
24/03/2021,1269718,Reliant Care Limited,,Bi-Borough Director of Integrated Care,2767.86
28/01/2021,1245316,Respect Care Services Ltd,,Bi-Borough Director of Integrated Care,1506.04
09/02/2021,1245316,Respect Care Services Ltd,,Bi-Borough Director of Integrated Care,1506.04
12/02/2021,1245316,Respect Care Services Ltd,,Bi-Borough Director of Integrated Care,1506.04
02/03/2021,1245316,Respect Care Services Ltd,,Bi-Borough Director of Integrated Care,1506.04
12/03/2021,1245316,Respect Care Services Ltd,,Bi-Borough Director of Integrated Care,1506.04
17/03/2021,1245316,Respect Care Services Ltd,,Bi-Borough Director of Integrated Care,1506.04
05/01/2021,1245172,Richmond Health Care Ltd,,Bi-Borough Director of Integrated Care,4512.00
03/02/2021,1245172,Richmond Health Care Ltd,,Bi-Borough Director of Integrated Care,4512.00
03/03/2021,1245172,Richmond Health Care Ltd,,Bi-Borough Director of Integrated Care,4512.00
24/03/2021,1245172,Richmond Health Care Ltd,,Bi-Borough Director of Integrated Care,4995.43
05/01/2021,1248621,Rnib Redhill College,,Bi-Borough Director of Integrated Care,5380.40
03/02/2021,1248621,Rnib Redhill College,,Bi-Borough Director of Integrated Care,5380.40
03/03/2021,1248621,Rnib Redhill College,,Bi-Borough Director of Integrated Care,5380.40
24/03/2021,1248621,Rnib Redhill College,,Bi-Borough Director of Integrated Care,5956.87
30/03/2021,1243778,Royal Borough of Kensington and Che,Payments to Other Local Authorities,Bi-Borough Director of Integrated Care,22890.00
30/03/2021,1243778,Royal Borough of Kensington and Che,Creditors GR/IR -,Bi-Borough Director of Integrated Care,33460.00
02/03/2021,1248843,Sage Care Ltd,,Bi-Borough Director of Integrated Care,1577.49
02/03/2021,1248843,Sage Care Ltd,,Bi-Borough Director of Integrated Care,1298.70
02/03/2021,1248843,Sage Care Ltd,,Bi-Borough Director of Integrated Care,719.97
02/03/2021,1248843,Sage Care Ltd,,Bi-Borough Director of Integrated Care,659.96
03/03/2021,1248843,Sage Care Ltd,,Bi-Borough Director of Integrated Care,741.91
03/03/2021,1248843,Sage Care Ltd,,Bi-Borough Director of Integrated Care,805.87
03/03/2021,1248843,Sage Care Ltd,,Bi-Borough Director of Integrated Care,1635.32
03/03/2021,1248843,Sage Care Ltd,,Bi-Borough Director of Integrated Care,1457.98
03/03/2021,1248843,Sage Care Ltd,,Bi-Borough Director of Integrated Care,574.84
03/03/2021,1248843,Sage Care Ltd,,Bi-Borough Director of Integrated Care,761.15
10/03/2021,1248843,Sage Care Ltd,,Bi-Borough Director of Integrated Care,906.45
10/03/2021,1248843,Sage Care Ltd,,Bi-Borough Director of Integrated Care,1617.44
10/03/2021,1248843,Sage Care Ltd,,Bi-Borough Director of Integrated Care,763.28
10/03/2021,1248843,Sage Care Ltd,,Bi-Borough Director of Integrated Care,1503.60
12/03/2021,1248843,Sage Care Ltd,,Bi-Borough Director of Integrated Care,507.59
12/03/2021,1248843,Sage Care Ltd,,Bi-Borough Director of Integrated Care,861.01
12/03/2021,1248843,Sage Care Ltd,,Bi-Borough Director of Integrated Care,1631.39
12/03/2021,1248843,Sage Care Ltd,,Bi-Borough Director of Integrated Care,1495.55
12/03/2021,1248843,Sage Care Ltd,,Bi-Borough Director of Integrated Care,762.98
12/03/2021,1248843,Sage Care Ltd,,Bi-Borough Director of Integrated Care,730.86
05/01/2021,1262057,Sense - The National Deafbllind,,Bi-Borough Director of Integrated Care,4550.00
05/01/2021,1262057,Sense - The National Deafbllind,,Bi-Borough Director of Integrated Care,4550.00
03/02/2021,1262057,Sense - The National Deafbllind,,Bi-Borough Director of Integrated Care,4550.00
03/02/2021,1262057,Sense - The National Deafbllind,,Bi-Borough Director of Integrated Care,4550.00
03/03/2021,1262057,Sense - The National Deafbllind,,Bi-Borough Director of Integrated Care,4550.00
03/03/2021,1262057,Sense - The National Deafbllind,,Bi-Borough Director of Integrated Care,4550.00
24/03/2021,1262057,Sense - The National Deafbllind,,Bi-Borough Director of Integrated Care,5037.50
24/03/2021,1262057,Sense - The National Deafbllind,,Bi-Borough Director of Integrated Care,5037.50
05/01/2021,1243535,Sequence Care Ltd,,Bi-Borough Director of Integrated Care,10171.52
05/01/2021,1243535,Sequence Care Ltd,,Bi-Borough Director of Integrated Care,10171.52
05/01/2021,1243535,Sequence Care Ltd,,Bi-Borough Director of Integrated Care,17007.48
03/02/2021,1243535,Sequence Care Ltd,,Bi-Borough Director of Integrated Care,17007.48
03/02/2021,1243535,Sequence Care Ltd,,Bi-Borough Director of Integrated Care,10171.52
03/02/2021,1243535,Sequence Care Ltd,,Bi-Borough Director of Integrated Care,10171.52
03/03/2021,1243535,Sequence Care Ltd,,Bi-Borough Director of Integrated Care,17007.48
03/03/2021,1243535,Sequence Care Ltd,,Bi-Borough Director of Integrated Care,10171.52
03/03/2021,1243535,Sequence Care Ltd,,Bi-Borough Director of Integrated Care,10171.52
24/03/2021,1243535,Sequence Care Ltd,,Bi-Borough Director of Integrated Care,18829.71
24/03/2021,1243535,Sequence Care Ltd,,Bi-Borough Director of Integrated Care,11261.33
24/03/2021,1243535,Sequence Care Ltd,,Bi-Borough Director of Integrated Care,11261.33
05/01/2021,1245566,Shaw Care Uk Ltd,,Bi-Borough Director of Integrated Care,3200.00
05/01/2021,1245566,Shaw Care Uk Ltd,,Bi-Borough Director of Integrated Care,3200.00
03/02/2021,1245566,Shaw Care Uk Ltd,,Bi-Borough Director of Integrated Care,3200.00
03/02/2021,1245566,Shaw Care Uk Ltd,,Bi-Borough Director of Integrated Care,3200.00
03/03/2021,1245566,Shaw Care Uk Ltd,,Bi-Borough Director of Integrated Care,3200.00
03/03/2021,1245566,Shaw Care Uk Ltd,,Bi-Borough Director of Integrated Care,3200.00
24/03/2021,1245566,Shaw Care Uk Ltd,,Bi-Borough Director of Integrated Care,3542.86
24/03/2021,1245566,Shaw Care Uk Ltd,,Bi-Borough Director of Integrated Care,3542.86
05/01/2021,1248935,Southside Partnership,,Bi-Borough Director of Integrated Care,2546.68
05/01/2021,1248935,Southside Partnership,,Bi-Borough Director of Integrated Care,800.00
05/01/2021,1248935,Southside Partnership,,Bi-Borough Director of Integrated Care,800.00
05/01/2021,1248935,Southside Partnership,,Bi-Borough Director of Integrated Care,3592.80
03/02/2021,1248935,Southside Partnership,,Bi-Borough Director of Integrated Care,800.00
03/02/2021,1248935,Southside Partnership,,Bi-Borough Director of Integrated Care,3592.80
03/02/2021,1248935,Southside Partnership,,Bi-Borough Director of Integrated Care,800.00
03/02/2021,1248935,Southside Partnership,,Bi-Borough Director of Integrated Care,2546.68
03/03/2021,1248935,Southside Partnership,,Bi-Borough Director of Integrated Care,2546.68
03/03/2021,1248935,Southside Partnership,,Bi-Borough Director of Integrated Care,800.00
03/03/2021,1248935,Southside Partnership,,Bi-Borough Director of Integrated Care,3592.80
03/03/2021,1248935,Southside Partnership,,Bi-Borough Director of Integrated Care,800.00
24/03/2021,1248935,Southside Partnership,,Bi-Borough Director of Integrated Care,885.71
24/03/2021,1248935,Southside Partnership,,Bi-Borough Director of Integrated Care,2819.54
24/03/2021,1248935,Southside Partnership,,Bi-Borough Director of Integrated Care,885.71
24/03/2021,1248935,Southside Partnership,,Bi-Borough Director of Integrated Care,3977.74
06/01/2021,1248940,Special People,B*Voluntary-Spot-V Dep-Enhanced - do not u,Bi-Borough Director of Integrated Care,3062.49
07/01/2021,1248940,Special People,B*Voluntary-Spot-V Dep-Enhanced - do not u,Bi-Borough Director of Integrated Care,958.98
25/01/2021,1248940,Special People,B*Voluntary-Spot-V Dep-Enhanced - do not u,Bi-Borough Director of Integrated Care,1236.90
03/02/2021,1248940,Special People,B*Voluntary-Spot-V Dep-Enhanced - do not u,Bi-Borough Director of Integrated Care,581.16
03/02/2021,1248940,Special People,B*Voluntary-Spot-V Dep-Enhanced - do not u,Bi-Borough Director of Integrated Care,2153.43
04/03/2021,1248940,Special People,B*Voluntary-Spot-V Dep-Enhanced - do not u,Bi-Borough Director of Integrated Care,677.52
04/03/2021,1248940,Special People,B*Voluntary-Spot-V Dep-Enhanced - do not u,Bi-Borough Director of Integrated Care,3487.20
05/01/2021,1245620,Spencer & Arlington,,Bi-Borough Director of Integrated Care,12835.20
05/01/2021,1245620,Spencer & Arlington,,Bi-Borough Director of Integrated Care,3724.56
05/01/2021,1245620,Spencer & Arlington,,Bi-Borough Director of Integrated Care,6627.60
05/01/2021,1245620,Spencer & Arlington,,Bi-Borough Director of Integrated Care,2576.00
03/02/2021,1245620,Spencer & Arlington,,Bi-Borough Director of Integrated Care,2576.00
03/02/2021,1245620,Spencer & Arlington,,Bi-Borough Director of Integrated Care,6627.60
03/02/2021,1245620,Spencer & Arlington,,Bi-Borough Director of Integrated Care,3724.56
03/02/2021,1245620,Spencer & Arlington,,Bi-Borough Director of Integrated Care,12835.20
03/03/2021,1245620,Spencer & Arlington,,Bi-Borough Director of Integrated Care,3724.56
03/03/2021,1245620,Spencer & Arlington,,Bi-Borough Director of Integrated Care,12835.20
03/03/2021,1245620,Spencer & Arlington,,Bi-Borough Director of Integrated Care,6627.60
03/03/2021,1245620,Spencer & Arlington,,Bi-Borough Director of Integrated Care,2576.00
24/03/2021,1245620,Spencer & Arlington,,Bi-Borough Director of Integrated Care,12835.20
24/03/2021,1245620,Spencer & Arlington,,Bi-Borough Director of Integrated Care,4123.62
24/03/2021,1245620,Spencer & Arlington,,Bi-Borough Director of Integrated Care,2852.00
24/03/2021,1245620,Spencer & Arlington,,Bi-Borough Director of Integrated Care,6627.60
05/01/2021,1243543,Springlake Care Home Ltd,,Bi-Borough Director of Integrated Care,6000.00
05/01/2021,1243543,Springlake Care Home Ltd,,Bi-Borough Director of Integrated Care,6800.00
05/01/2021,1243543,Springlake Care Home Ltd,,Bi-Borough Director of Integrated Care,5400.00
03/02/2021,1243543,Springlake Care Home Ltd,,Bi-Borough Director of Integrated Care,6800.00
03/02/2021,1243543,Springlake Care Home Ltd,,Bi-Borough Director of Integrated Care,5400.00
03/02/2021,1243543,Springlake Care Home Ltd,,Bi-Borough Director of Integrated Care,6000.00
03/03/2021,1243543,Springlake Care Home Ltd,,Bi-Borough Director of Integrated Care,6800.00
03/03/2021,1243543,Springlake Care Home Ltd,,Bi-Borough Director of Integrated Care,5400.00
03/03/2021,1243543,Springlake Care Home Ltd,,Bi-Borough Director of Integrated Care,6000.00
24/03/2021,1243543,Springlake Care Home Ltd,,Bi-Borough Director of Integrated Care,7528.57
24/03/2021,1243543,Springlake Care Home Ltd,,Bi-Borough Director of Integrated Care,5978.57
24/03/2021,1243543,Springlake Care Home Ltd,,Bi-Borough Director of Integrated Care,6642.86
05/01/2021,1248948,St Davids Care In The Community,,Bi-Borough Director of Integrated Care,3132.56
05/01/2021,1248948,St Davids Care In The Community,,Bi-Borough Director of Integrated Care,3440.00
03/02/2021,1248948,St Davids Care In The Community,,Bi-Borough Director of Integrated Care,3132.56
03/02/2021,1248948,St Davids Care In The Community,,Bi-Borough Director of Integrated Care,3440.00
03/03/2021,1248948,St Davids Care In The Community,,Bi-Borough Director of Integrated Care,3132.56
03/03/2021,1248948,St Davids Care In The Community,,Bi-Borough Director of Integrated Care,3440.00
24/03/2021,1248948,St Davids Care In The Community,,Bi-Borough Director of Integrated Care,3468.19
24/03/2021,1248948,St Davids Care In The Community,,Bi-Borough Director of Integrated Care,3808.57
08/02/2021,1245825,Sweet Tree Home Care Services,,Bi-Borough Director of Integrated Care,4388.87
23/03/2021,1245825,Sweet Tree Home Care Services,,Bi-Borough Director of Integrated Care,1009.40
29/03/2021,1245825,Sweet Tree Home Care Services,,Bi-Borough Director of Integrated Care,8727.77
05/01/2021,1245900,The Grace Eyre Foundation,,Bi-Borough Director of Integrated Care,3290.16
05/01/2021,1245900,The Grace Eyre Foundation,,Bi-Borough Director of Integrated Care,4235.96
03/02/2021,1245900,The Grace Eyre Foundation,,Bi-Borough Director of Integrated Care,800.00
03/02/2021,1245900,The Grace Eyre Foundation,,Bi-Borough Director of Integrated Care,4235.96
03/02/2021,1245900,The Grace Eyre Foundation,,Bi-Borough Director of Integrated Care,3290.16
03/03/2021,1245900,The Grace Eyre Foundation,,Bi-Borough Director of Integrated Care,800.00
03/03/2021,1245900,The Grace Eyre Foundation,,Bi-Borough Director of Integrated Care,4235.96
03/03/2021,1245900,The Grace Eyre Foundation,,Bi-Borough Director of Integrated Care,3290.16
24/03/2021,1245900,The Grace Eyre Foundation,,Bi-Borough Director of Integrated Care,4689.81
24/03/2021,1245900,The Grace Eyre Foundation,,Bi-Borough Director of Integrated Care,3642.68
05/01/2021,1245929,The Regard Partnership Ltd,,Bi-Borough Director of Integrated Care,3932.76
03/02/2021,1245929,The Regard Partnership Ltd,,Bi-Borough Director of Integrated Care,3932.76
03/03/2021,1245929,The Regard Partnership Ltd,,Bi-Borough Director of Integrated Care,3932.76
24/03/2021,1245929,The Regard Partnership Ltd,,Bi-Borough Director of Integrated Care,4354.13
05/01/2021,1249156,The Wirral Autistic Society,,Bi-Borough Director of Integrated Care,7021.60
03/02/2021,1249156,The Wirral Autistic Society,,Bi-Borough Director of Integrated Care,4271.20
03/03/2021,1249156,The Wirral Autistic Society,,Bi-Borough Director of Integrated Care,4271.20
24/03/2021,1249156,The Wirral Autistic Society,,Bi-Borough Director of Integrated Care,4728.83
05/01/2021,1246095,Theana Ltd T/a Enlighten Homes,,Bi-Borough Director of Integrated Care,5892.00
03/02/2021,1246095,Theana Ltd T/a Enlighten Homes,,Bi-Borough Director of Integrated Care,5892.00
03/03/2021,1246095,Theana Ltd T/a Enlighten Homes,,Bi-Borough Director of Integrated Care,5892.00
24/03/2021,1246095,Theana Ltd T/a Enlighten Homes,,Bi-Borough Director of Integrated Care,6523.29
14/01/2021,1250631,PERSONAL PAYMENTS,Childrens' Social Care - Personal Budget,Bi-Borough Director of Integrated Care,13079.70
11/02/2021,1250631,PERSONAL PAYMENTS,Childrens' Social Care - Personal Budget,Bi-Borough Director of Integrated Care,2906.60
05/01/2021,1249232,Vincentian Care Plus,,Bi-Borough Director of Integrated Care,581.44
05/01/2021,1243552,Vision Homes Association,,Bi-Borough Director of Integrated Care,7760.00
03/02/2021,1243552,Vision Homes Association,,Bi-Borough Director of Integrated Care,7760.00
03/03/2021,1243552,Vision Homes Association,,Bi-Borough Director of Integrated Care,7760.00
24/03/2021,1243552,Vision Homes Association,,Bi-Borough Director of Integrated Care,8591.43
05/01/2021,1243553,Voyage Care (Bridge House),,Bi-Borough Director of Integrated Care,4566.00
03/02/2021,1243553,Voyage Care (Bridge House),,Bi-Borough Director of Integrated Care,4566.00
03/03/2021,1243553,Voyage Care (Bridge House),,Bi-Borough Director of Integrated Care,4566.00
24/03/2021,1243553,Voyage Care (Bridge House),,Bi-Borough Director of Integrated Care,5055.21
05/01/2021,1243554,Voyage Care (Kenton House),,Bi-Borough Director of Integrated Care,5809.96
03/02/2021,1243554,Voyage Care (Kenton House),,Bi-Borough Director of Integrated Care,5809.96
03/03/2021,1243554,Voyage Care (Kenton House),,Bi-Borough Director of Integrated Care,5809.96
24/03/2021,1243554,Voyage Care (Kenton House),,Bi-Borough Director of Integrated Care,6432.46
05/01/2021,1249291,Westminster Society,,Bi-Borough Director of Integrated Care,5901.88
05/01/2021,1249291,Westminster Society,,Bi-Borough Director of Integrated Care,721.00
05/01/2021,1249291,Westminster Society,,Bi-Borough Director of Integrated Care,1067.44
05/01/2021,1249291,Westminster Society,,Bi-Borough Director of Integrated Care,1965.04
05/01/2021,1249291,Westminster Society,,Bi-Borough Director of Integrated Care,838.68
05/01/2021,1249291,Westminster Society,,Bi-Borough Director of Integrated Care,4709.32
05/01/2021,1249291,Westminster Society,,Bi-Borough Director of Integrated Care,3394.76
05/01/2021,1249291,Westminster Society,,Bi-Borough Director of Integrated Care,713.64
05/01/2021,1249291,Westminster Society,,Bi-Borough Director of Integrated Care,991.17
05/01/2021,1249291,Westminster Society,,Bi-Borough Director of Integrated Care,1406.04
05/01/2021,1249291,Westminster Society,,Bi-Borough Director of Integrated Care,4336.64
05/01/2021,1249291,Westminster Society,,Bi-Borough Director of Integrated Care,3320.24
05/01/2021,1249291,Westminster Society,,Bi-Borough Director of Integrated Care,713.64
05/01/2021,1249291,Westminster Society,,Bi-Borough Director of Integrated Care,3394.76
05/01/2021,1249291,Westminster Society,,Bi-Borough Director of Integrated Care,2236.08
05/01/2021,1249291,Westminster Society,,Bi-Borough Director of Integrated Care,853.96
05/01/2021,1249291,Westminster Society,,Bi-Borough Director of Integrated Care,721.00
05/01/2021,1249291,Westminster Society,,Bi-Borough Director of Integrated Care,5601.72
05/01/2021,1249291,Westminster Society,,Bi-Borough Director of Integrated Care,721.00
05/01/2021,1249291,Westminster Society,,Bi-Borough Director of Integrated Care,1067.44
05/01/2021,1249291,Westminster Society,,Bi-Borough Director of Integrated Care,4901.08
05/01/2021,1249291,Westminster Society,,Bi-Borough Director of Integrated Care,721.00
05/01/2021,1249291,Westminster Society,,Bi-Borough Director of Integrated Care,2842.40
05/01/2021,1249291,Westminster Society,,Bi-Borough Director of Integrated Care,540.76
05/01/2021,1249291,Westminster Society,,Bi-Borough Director of Integrated Care,3320.24
05/01/2021,1249291,Westminster Society,,Bi-Borough Director of Integrated Care,3879.28
05/01/2021,1249291,Westminster Society,,Bi-Borough Director of Integrated Care,853.96
05/01/2021,1249291,Westminster Society,,Bi-Borough Director of Integrated Care,540.76
05/01/2021,1249291,Westminster Society,,Bi-Borough Director of Integrated Care,1490.72
05/01/2021,1249291,Westminster Society,,Bi-Borough Director of Integrated Care,6213.60
05/01/2021,1249291,Westminster Society,,Bi-Borough Director of Integrated Care,713.64
05/01/2021,1249291,Westminster Society,,Bi-Borough Director of Integrated Care,1118.04
05/01/2021,1249291,Westminster Society,,Bi-Borough Director of Integrated Care,721.00
05/01/2021,1249291,Westminster Society,,Bi-Borough Director of Integrated Care,7833.04
05/01/2021,1249291,Westminster Society,,Bi-Borough Director of Integrated Care,853.96
05/01/2021,1249291,Westminster Society,,Bi-Borough Director of Integrated Care,1422.96
05/01/2021,1249291,Westminster Society,,Bi-Borough Director of Integrated Care,4269.72
05/01/2021,1249291,Westminster Society,,Bi-Borough Director of Integrated Care,1219.68
05/01/2021,1249291,Westminster Society,,Bi-Borough Director of Integrated Care,540.76
05/01/2021,1249291,Westminster Society,,Bi-Borough Director of Integrated Care,3320.24
05/01/2021,1249291,Westminster Society,,Bi-Borough Director of Integrated Care,3049.20
05/01/2021,1249291,Westminster Society,,Bi-Borough Director of Integrated Care,3252.48
05/01/2021,1249291,Westminster Society,,Bi-Borough Director of Integrated Care,542.08
05/01/2021,1249291,Westminster Society,,Bi-Borough Director of Integrated Care,1185.80
05/01/2021,1249291,Westminster Society,,Bi-Borough Director of Integrated Care,540.76
05/01/2021,1249291,Westminster Society,,Bi-Borough Director of Integrated Care,1897.28
05/01/2021,1249291,Westminster Society,,Bi-Borough Director of Integrated Care,713.64
05/01/2021,1249291,Westminster Society,,Bi-Borough Director of Integrated Care,4987.12
05/01/2021,1249291,Westminster Society,,Bi-Borough Director of Integrated Care,542.08
05/01/2021,1249291,Westminster Society,,Bi-Borough Director of Integrated Care,3388.00
05/01/2021,1249291,Westminster Society,,Bi-Borough Director of Integrated Care,2032.80
05/01/2021,1249291,Westminster Society,,Bi-Borough Director of Integrated Care,540.76
05/01/2021,1249291,Westminster Society,,Bi-Borough Director of Integrated Care,713.64
05/01/2021,1249291,Westminster Society,,Bi-Borough Director of Integrated Care,6233.92
05/01/2021,1249291,Westminster Society,,Bi-Borough Director of Integrated Care,853.96
05/01/2021,1249291,Westminster Society,,Bi-Borough Director of Integrated Care,3659.04
05/01/2021,1249291,Westminster Society,,Bi-Borough Director of Integrated Care,3676.00
05/01/2021,1249291,Westminster Society,,Bi-Borough Director of Integrated Care,3794.56
05/01/2021,1249291,Westminster Society,,Bi-Borough Director of Integrated Care,4269.72
05/01/2021,1249291,Westminster Society,,Bi-Borough Director of Integrated Care,5048.12
05/01/2021,1249291,Westminster Society,,Bi-Borough Director of Integrated Care,1761.76
05/01/2021,1249291,Westminster Society,,Bi-Borough Director of Integrated Care,5488.56
05/01/2021,1249291,Westminster Society,,Bi-Borough Director of Integrated Care,713.64
05/01/2021,1249291,Westminster Society,,Bi-Borough Director of Integrated Care,3442.20
05/01/2021,1249291,Westminster Society,,Bi-Borough Director of Integrated Care,713.64
05/01/2021,1249291,Westminster Society,,Bi-Borough Director of Integrated Care,5522.44
05/01/2021,1249291,Westminster Society,,Bi-Borough Director of Integrated Care,2710.40
05/01/2021,1249291,Westminster Society,,Bi-Borough Director of Integrated Care,2330.96
05/01/2021,1249291,Westminster Society,,Bi-Borough Director of Integrated Care,2236.08
05/01/2021,1249291,Westminster Society,,Bi-Borough Director of Integrated Care,4289.20
05/01/2021,1249291,Westminster Society,,Bi-Borough Director of Integrated Care,948.64
05/01/2021,1249291,Westminster Society,,Bi-Borough Director of Integrated Care,7385.84
05/01/2021,1249291,Westminster Society,,Bi-Borough Director of Integrated Care,1624.56
05/01/2021,1249291,Westminster Society,,Bi-Borough Director of Integrated Care,5601.72
05/01/2021,1249291,Westminster Society,,Bi-Borough Director of Integrated Care,721.00
05/01/2021,1249291,Westminster Society,,Bi-Borough Director of Integrated Care,1067.44
05/01/2021,1249291,Westminster Society,,Bi-Borough Director of Integrated Care,2778.16
05/01/2021,1249291,Westminster Society,,Bi-Borough Director of Integrated Care,2303.84
05/01/2021,1249291,Westminster Society,,Bi-Borough Director of Integrated Care,853.96
05/01/2021,1249291,Westminster Society,,Bi-Borough Director of Integrated Care,721.00
05/01/2021,1249291,Westminster Society,,Bi-Borough Director of Integrated Care,3902.96
05/01/2021,1249291,Westminster Society,,Bi-Borough Director of Integrated Care,2497.75
05/01/2021,1249291,Westminster Society,,Bi-Borough Director of Integrated Care,43137.15
05/01/2021,1249291,Westminster Society,,Bi-Borough Director of Integrated Care,3862.32
05/01/2021,1249291,Westminster Society,,Bi-Borough Director of Integrated Care,853.96
05/01/2021,1249291,Westminster Society,,Bi-Borough Director of Integrated Care,5522.43
05/01/2021,1249291,Westminster Society,,Bi-Borough Director of Integrated Care,713.64
05/01/2021,1249291,Westminster Society,,Bi-Borough Director of Integrated Care,6877.64
05/01/2021,1249291,Westminster Society,,Bi-Borough Director of Integrated Care,540.76
05/01/2021,1249291,Westminster Society,,Bi-Borough Director of Integrated Care,540.76
05/01/2021,1249291,Westminster Society,,Bi-Borough Director of Integrated Care,1624.56
05/01/2021,1249291,Westminster Society,,Bi-Borough Director of Integrated Care,7995.68
05/01/2021,1249291,Westminster Society,,Bi-Borough Director of Integrated Care,677.60
05/01/2021,1249291,Westminster Society,,Bi-Borough Director of Integrated Care,853.96
05/01/2021,1249291,Westminster Society,,Bi-Borough Director of Integrated Care,4963.44
05/01/2021,1249291,Westminster Society,,Bi-Borough Director of Integrated Care,1829.52
05/01/2021,1249291,Westminster Society,,Bi-Borough Director of Integrated Care,2100.56
05/01/2021,1249291,Westminster Society,,Bi-Borough Director of Integrated Care,948.64
05/01/2021,1249291,Westminster Society,,Bi-Borough Director of Integrated Care,1219.68
05/01/2021,1249291,Westminster Society,,Bi-Borough Director of Integrated Care,542.08
05/01/2021,1249291,Westminster Society,,Bi-Borough Director of Integrated Care,779.24
05/01/2021,1249291,Westminster Society,,Bi-Borough Director of Integrated Care,982.52
05/01/2021,1249291,Westminster Society,,Bi-Borough Director of Integrated Care,853.96
05/01/2021,1249291,Westminster Society,,Bi-Borough Director of Integrated Care,3133.92
05/01/2021,1249291,Westminster Society,,Bi-Borough Director of Integrated Care,3184.72
05/01/2021,1249291,Westminster Society,,Bi-Borough Director of Integrated Care,2236.08
05/01/2021,1249291,Westminster Society,,Bi-Borough Director of Integrated Care,1624.56
05/01/2021,1249291,Westminster Society,,Bi-Borough Director of Integrated Care,713.64
05/01/2021,1249291,Westminster Society,,Bi-Borough Director of Integrated Care,1897.28
05/01/2021,1249291,Westminster Society,,Bi-Borough Director of Integrated Care,721.00
05/01/2021,1249291,Westminster Society,,Bi-Borough Director of Integrated Care,853.96
05/01/2021,1249291,Westminster Society,,Bi-Borough Director of Integrated Care,8537.76
05/01/2021,1249291,Westminster Society,,Bi-Borough Director of Integrated Care,1253.56
05/01/2021,1249291,Westminster Society,,Bi-Borough Director of Integrated Care,1829.52
05/01/2021,1249291,Westminster Society,,Bi-Borough Director of Integrated Care,3930.08
05/01/2021,1249291,Westminster Society,,Bi-Borough Director of Integrated Care,540.76
05/01/2021,1249291,Westminster Society,,Bi-Borough Director of Integrated Care,7447.42
05/01/2021,1249291,Westminster Society,,Bi-Borough Director of Integrated Care,2842.40
05/01/2021,1249291,Westminster Society,,Bi-Borough Director of Integrated Care,3083.08
05/01/2021,1249291,Westminster Society,,Bi-Borough Director of Integrated Care,3455.76
05/01/2021,1249291,Westminster Society,,Bi-Borough Director of Integrated Care,3455.76
05/01/2021,1249291,Westminster Society,,Bi-Borough Director of Integrated Care,721.00
05/01/2021,1249291,Westminster Society,,Bi-Borough Director of Integrated Care,853.96
05/01/2021,1249291,Westminster Society,,Bi-Borough Director of Integrated Care,3902.96
05/01/2021,1249291,Westminster Society,,Bi-Borough Director of Integrated Care,609.84
05/01/2021,1249291,Westminster Society,,Bi-Borough Director of Integrated Care,1229.84
05/01/2021,1249291,Westminster Society,,Bi-Borough Director of Integrated Care,4269.72
05/01/2021,1249291,Westminster Society,,Bi-Borough Director of Integrated Care,540.76
05/01/2021,1249291,Westminster Society,,Bi-Borough Director of Integrated Care,2574.88
05/01/2021,1249291,Westminster Society,,Bi-Borough Director of Integrated Care,3608.24
05/01/2021,1249291,Westminster Society,,Bi-Borough Director of Integrated Care,853.96
05/01/2021,1249291,Westminster Society,,Bi-Borough Director of Integrated Care,2507.12
05/01/2021,1249291,Westminster Society,,Bi-Borough Director of Integrated Care,2371.60
05/01/2021,1249291,Westminster Society,,Bi-Borough Director of Integrated Care,2676.52
05/01/2021,1249291,Westminster Society,,Bi-Borough Director of Integrated Care,713.64
05/01/2021,1249291,Westminster Society,,Bi-Borough Director of Integrated Care,853.96
05/01/2021,1249291,Westminster Society,,Bi-Borough Director of Integrated Care,721.00
05/01/2021,1249291,Westminster Society,,Bi-Borough Director of Integrated Care,4106.24
11/01/2021,1249291,Westminster Society,Rent,Bi-Borough Director of Integrated Care,7300.07
12/01/2021,1249291,Westminster Society,Rent,Bi-Borough Director of Integrated Care,7707.79
14/01/2021,1249291,Westminster Society,B*Voluntary-Spot-V Dep-Enhanced - do not u,Bi-Borough Director of Integrated Care,2550.00
14/01/2021,1249291,Westminster Society,B*Voluntary-Spot-V Dep-Enhanced - do not u,Bi-Borough Director of Integrated Care,595.00
14/01/2021,1249291,Westminster Society,B*Voluntary-Spot-V Dep-Enhanced - do not u,Bi-Borough Director of Integrated Care,748.00
14/01/2021,1249291,Westminster Society,B*Voluntary-Spot-V Dep-Enhanced - do not u,Bi-Borough Director of Integrated Care,595.00
14/01/2021,1249291,Westminster Society,B*Voluntary-Spot-V Dep-Enhanced - do not u,Bi-Borough Director of Integrated Care,1020.00
14/01/2021,1249291,Westminster Society,B*Voluntary-Spot-V Dep-Enhanced - do not u,Bi-Borough Director of Integrated Care,833.00
14/01/2021,1249291,Westminster Society,B*Voluntary-Spot-V Dep-Enhanced - do not u,Bi-Borough Director of Integrated Care,850.00
14/01/2021,1249291,Westminster Society,B*Voluntary-Spot-V Dep-Enhanced - do not u,Bi-Borough Director of Integrated Care,1020.00
14/01/2021,1249291,Westminster Society,B*Voluntary-Spot-V Dep-Enhanced - do not u,Bi-Borough Director of Integrated Care,527.00
14/01/2021,1249291,Westminster Society,B*Voluntary-Spot-V Dep-Enhanced - do not u,Bi-Borough Director of Integrated Care,1683.00
14/01/2021,1249291,Westminster Society,B*Voluntary-Spot-V Dep-Enhanced - do not u,Bi-Borough Director of Integrated Care,2805.00
14/01/2021,1249291,Westminster Society,B*Voluntary-Spot-V Dep-Enhanced - do not u,Bi-Borough Director of Integrated Care,765.00
14/01/2021,1249291,Westminster Society,B*Voluntary-Spot-V Dep-Enhanced - do not u,Bi-Borough Director of Integrated Care,510.00
14/01/2021,1249291,Westminster Society,B*Voluntary-Spot-V Dep-Enhanced - do not u,Bi-Borough Director of Integrated Care,765.00
14/01/2021,1249291,Westminster Society,B*Voluntary-Spot-V Dep-Enhanced - do not u,Bi-Borough Director of Integrated Care,510.00
14/01/2021,1249291,Westminster Society,B*Voluntary-Spot-V Dep-Enhanced - do not u,Bi-Borough Director of Integrated Care,510.00
14/01/2021,1249291,Westminster Society,B*Voluntary-Spot-V Dep-Enhanced - do not u,Bi-Borough Director of Integrated Care,510.00
14/01/2021,1249291,Westminster Society,B*Voluntary-Spot-V Dep-Enhanced - do not u,Bi-Borough Director of Integrated Care,510.00
14/01/2021,1249291,Westminster Society,B*Voluntary-Spot-V Dep-Enhanced - do not u,Bi-Borough Director of Integrated Care,510.00
14/01/2021,1249291,Westminster Society,B*Voluntary-Spot-V Dep-Enhanced - do not u,Bi-Borough Director of Integrated Care,510.00
14/01/2021,1249291,Westminster Society,B*Voluntary-Spot-V Dep-Enhanced - do not u,Bi-Borough Director of Integrated Care,510.00
14/01/2021,1249291,Westminster Society,B*Voluntary-Spot-V Dep-Enhanced - do not u,Bi-Borough Director of Integrated Care,510.00
14/01/2021,1249291,Westminster Society,B*Voluntary-Spot-V Dep-Enhanced - do not u,Bi-Borough Director of Integrated Care,510.00
14/01/2021,1249291,Westminster Society,B*Voluntary-Spot-V Dep-Enhanced - do not u,Bi-Borough Director of Integrated Care,765.00
14/01/2021,1249291,Westminster Society,B*Voluntary-Spot-V Dep-Enhanced - do not u,Bi-Borough Director of Integrated Care,510.00
14/01/2021,1249291,Westminster Society,B*Voluntary-Spot-V Dep-Enhanced - do not u,Bi-Borough Director of Integrated Care,510.00
14/01/2021,1249291,Westminster Society,B*Voluntary-Spot-V Dep-Enhanced - do not u,Bi-Borough Director of Integrated Care,510.00
14/01/2021,1249291,Westminster Society,B*Voluntary-Spot-V Dep-Enhanced - do not u,Bi-Borough Director of Integrated Care,1020.00
03/02/2021,1249291,Westminster Society,B*Voluntary-Spot-V Dep-Enhanced - do not u,Bi-Borough Director of Integrated Care,765.00
03/02/2021,1249291,Westminster Society,B*Voluntary-Spot-V Dep-Enhanced - do not u,Bi-Borough Director of Integrated Care,1105.00
03/02/2021,1249291,Westminster Society,B*Voluntary-Spot-V Dep-Enhanced - do not u,Bi-Borough Director of Integrated Care,1190.00
03/02/2021,1249291,Westminster Society,B*Voluntary-Spot-V Dep-Enhanced - do not u,Bi-Borough Director of Integrated Care,935.00
03/02/2021,1249291,Westminster Society,B*Voluntary-Spot-V Dep-Enhanced - do not u,Bi-Borough Director of Integrated Care,11092.50
03/02/2021,1249291,Westminster Society,B*Voluntary-Spot-V Dep-Enhanced - do not u,Bi-Borough Director of Integrated Care,765.00
03/02/2021,1249291,Westminster Society,B*Voluntary-Spot-V Dep-Enhanced - do not u,Bi-Borough Director of Integrated Care,680.00
03/02/2021,1249291,Westminster Society,B*Voluntary-Spot-V Dep-Enhanced - do not u,Bi-Borough Director of Integrated Care,680.00
03/02/2021,1249291,Westminster Society,,Bi-Borough Director of Integrated Care,3320.24
03/02/2021,1249291,Westminster Society,,Bi-Borough Director of Integrated Care,4336.64
03/02/2021,1249291,Westminster Society,,Bi-Borough Director of Integrated Care,1406.04
03/02/2021,1249291,Westminster Society,,Bi-Borough Director of Integrated Care,2236.08
03/02/2021,1249291,Westminster Society,,Bi-Borough Director of Integrated Care,853.96
03/02/2021,1249291,Westminster Society,,Bi-Borough Director of Integrated Care,3394.76
03/02/2021,1249291,Westminster Society,,Bi-Borough Director of Integrated Care,713.64
03/02/2021,1249291,Westminster Society,,Bi-Borough Director of Integrated Care,3049.20
03/02/2021,1249291,Westminster Society,,Bi-Borough Director of Integrated Care,3320.24
03/02/2021,1249291,Westminster Society,,Bi-Borough Director of Integrated Care,542.08
03/02/2021,1249291,Westminster Society,,Bi-Borough Director of Integrated Care,1422.96
03/02/2021,1249291,Westminster Society,,Bi-Borough Director of Integrated Care,4269.72
03/02/2021,1249291,Westminster Society,,Bi-Borough Director of Integrated Care,2842.40
03/02/2021,1249291,Westminster Society,,Bi-Borough Director of Integrated Care,721.00
03/02/2021,1249291,Westminster Society,,Bi-Borough Director of Integrated Care,4901.08
03/02/2021,1249291,Westminster Society,,Bi-Borough Director of Integrated Care,721.00
03/02/2021,1249291,Westminster Society,,Bi-Borough Director of Integrated Care,853.96
03/02/2021,1249291,Westminster Society,,Bi-Borough Director of Integrated Care,3879.28
03/02/2021,1249291,Westminster Society,,Bi-Borough Director of Integrated Care,1185.80
03/02/2021,1249291,Westminster Society,,Bi-Borough Director of Integrated Care,3252.48
03/02/2021,1249291,Westminster Society,,Bi-Borough Director of Integrated Care,713.64
03/02/2021,1249291,Westminster Society,,Bi-Borough Director of Integrated Care,6213.60
03/02/2021,1249291,Westminster Society,,Bi-Borough Director of Integrated Care,1490.72
03/02/2021,1249291,Westminster Society,,Bi-Borough Director of Integrated Care,540.76
03/02/2021,1249291,Westminster Society,,Bi-Borough Director of Integrated Care,1118.04
03/02/2021,1249291,Westminster Society,,Bi-Borough Director of Integrated Care,7833.04
03/02/2021,1249291,Westminster Society,,Bi-Borough Director of Integrated Care,721.00
03/02/2021,1249291,Westminster Society,,Bi-Borough Director of Integrated Care,853.96
03/02/2021,1249291,Westminster Society,,Bi-Borough Director of Integrated Care,5601.72
03/02/2021,1249291,Westminster Society,,Bi-Borough Director of Integrated Care,1067.44
03/02/2021,1249291,Westminster Society,,Bi-Borough Director of Integrated Care,721.00
03/02/2021,1249291,Westminster Society,,Bi-Borough Director of Integrated Care,3320.24
03/02/2021,1249291,Westminster Society,,Bi-Borough Director of Integrated Care,540.76
03/02/2021,1249291,Westminster Society,,Bi-Borough Director of Integrated Care,1219.68
03/02/2021,1249291,Westminster Society,,Bi-Borough Director of Integrated Care,540.76
03/02/2021,1249291,Westminster Society,,Bi-Borough Director of Integrated Care,3388.00
03/02/2021,1249291,Westminster Society,,Bi-Borough Director of Integrated Care,3794.56
03/02/2021,1249291,Westminster Society,,Bi-Borough Director of Integrated Care,3812.25
03/02/2021,1249291,Westminster Society,,Bi-Borough Director of Integrated Care,5048.12
03/02/2021,1249291,Westminster Society,,Bi-Borough Director of Integrated Care,542.08
03/02/2021,1249291,Westminster Society,,Bi-Borough Director of Integrated Care,713.64
03/02/2021,1249291,Westminster Society,,Bi-Borough Director of Integrated Care,4987.12
03/02/2021,1249291,Westminster Society,,Bi-Borough Director of Integrated Care,713.64
03/02/2021,1249291,Westminster Society,,Bi-Borough Director of Integrated Care,6233.92
03/02/2021,1249291,Westminster Society,,Bi-Borough Director of Integrated Care,3659.04
03/02/2021,1249291,Westminster Society,,Bi-Borough Director of Integrated Care,853.96
03/02/2021,1249291,Westminster Society,,Bi-Borough Director of Integrated Care,2032.80
03/02/2021,1249291,Westminster Society,,Bi-Borough Director of Integrated Care,540.76
03/02/2021,1249291,Westminster Society,,Bi-Borough Director of Integrated Care,3676.00
03/02/2021,1249291,Westminster Society,,Bi-Borough Director of Integrated Care,540.76
03/02/2021,1249291,Westminster Society,,Bi-Borough Director of Integrated Care,1897.28
03/02/2021,1249291,Westminster Society,,Bi-Borough Director of Integrated Care,1624.56
03/02/2021,1249291,Westminster Society,,Bi-Borough Director of Integrated Care,7385.84
03/02/2021,1249291,Westminster Society,,Bi-Borough Director of Integrated Care,2236.08
03/02/2021,1249291,Westminster Society,,Bi-Borough Director of Integrated Care,2710.40
03/02/2021,1249291,Westminster Society,,Bi-Borough Director of Integrated Care,982.52
03/02/2021,1249291,Westminster Society,,Bi-Borough Director of Integrated Care,1761.76
03/02/2021,1249291,Westminster Society,,Bi-Borough Director of Integrated Care,948.64
03/02/2021,1249291,Westminster Society,,Bi-Borough Director of Integrated Care,2330.96
03/02/2021,1249291,Westminster Society,,Bi-Borough Director of Integrated Care,5488.56
03/02/2021,1249291,Westminster Society,,Bi-Borough Director of Integrated Care,4289.20
03/02/2021,1249291,Westminster Society,,Bi-Borough Director of Integrated Care,721.00
03/02/2021,1249291,Westminster Society,,Bi-Borough Director of Integrated Care,5601.72
03/02/2021,1249291,Westminster Society,,Bi-Borough Director of Integrated Care,1067.44
03/02/2021,1249291,Westminster Society,,Bi-Borough Director of Integrated Care,3442.20
03/02/2021,1249291,Westminster Society,,Bi-Borough Director of Integrated Care,713.64
03/02/2021,1249291,Westminster Society,,Bi-Borough Director of Integrated Care,5522.44
03/02/2021,1249291,Westminster Society,,Bi-Borough Director of Integrated Care,713.64
03/02/2021,1249291,Westminster Society,,Bi-Borough Director of Integrated Care,2236.08
03/02/2021,1249291,Westminster Society,,Bi-Borough Director of Integrated Care,853.96
03/02/2021,1249291,Westminster Society,,Bi-Borough Director of Integrated Care,3133.92
03/02/2021,1249291,Westminster Society,,Bi-Borough Director of Integrated Care,1897.28
03/02/2021,1249291,Westminster Society,,Bi-Borough Director of Integrated Care,713.64
03/02/2021,1249291,Westminster Society,,Bi-Borough Director of Integrated Care,1616.56
03/02/2021,1249291,Westminster Society,,Bi-Borough Director of Integrated Care,3455.76
03/02/2021,1249291,Westminster Society,,Bi-Borough Director of Integrated Care,1829.52
03/02/2021,1249291,Westminster Society,,Bi-Borough Director of Integrated Care,6559.16
03/02/2021,1249291,Westminster Society,,Bi-Borough Director of Integrated Care,2842.40
03/02/2021,1249291,Westminster Society,,Bi-Borough Director of Integrated Care,1253.56
03/02/2021,1249291,Westminster Society,,Bi-Borough Director of Integrated Care,1256.31
03/02/2021,1249291,Westminster Society,,Bi-Borough Director of Integrated Care,3083.08
03/02/2021,1249291,Westminster Society,,Bi-Borough Director of Integrated Care,3455.76
03/02/2021,1249291,Westminster Society,,Bi-Borough Director of Integrated Care,3930.08
03/02/2021,1249291,Westminster Society,,Bi-Borough Director of Integrated Care,540.76
03/02/2021,1249291,Westminster Society,,Bi-Borough Director of Integrated Care,609.84
03/02/2021,1249291,Westminster Society,,Bi-Borough Director of Integrated Care,853.96
03/02/2021,1249291,Westminster Society,,Bi-Borough Director of Integrated Care,721.00
03/02/2021,1249291,Westminster Society,,Bi-Borough Director of Integrated Care,8537.76
03/02/2021,1249291,Westminster Society,,Bi-Borough Director of Integrated Care,3902.96
03/02/2021,1249291,Westminster Society,,Bi-Borough Director of Integrated Care,721.00
03/02/2021,1249291,Westminster Society,,Bi-Borough Director of Integrated Care,853.96
03/02/2021,1249291,Westminster Society,,Bi-Borough Director of Integrated Care,2507.12
03/02/2021,1249291,Westminster Society,,Bi-Borough Director of Integrated Care,4709.32
03/02/2021,1249291,Westminster Society,,Bi-Borough Director of Integrated Care,4269.72
03/02/2021,1249291,Westminster Society,,Bi-Borough Director of Integrated Care,540.76
03/02/2021,1249291,Westminster Society,,Bi-Borough Director of Integrated Care,2574.88
03/02/2021,1249291,Westminster Society,,Bi-Borough Director of Integrated Care,1965.04
03/02/2021,1249291,Westminster Society,,Bi-Borough Director of Integrated Care,3608.24
03/02/2021,1249291,Westminster Society,,Bi-Borough Director of Integrated Care,853.96
03/02/2021,1249291,Westminster Society,,Bi-Borough Director of Integrated Care,2371.60
03/02/2021,1249291,Westminster Society,,Bi-Borough Director of Integrated Care,2778.16
03/02/2021,1249291,Westminster Society,,Bi-Borough Director of Integrated Care,2303.84
03/02/2021,1249291,Westminster Society,,Bi-Borough Director of Integrated Care,713.64
03/02/2021,1249291,Westminster Society,,Bi-Borough Director of Integrated Care,3394.76
03/02/2021,1249291,Westminster Society,,Bi-Borough Director of Integrated Care,3902.96
03/02/2021,1249291,Westminster Society,,Bi-Borough Director of Integrated Care,721.00
03/02/2021,1249291,Westminster Society,,Bi-Borough Director of Integrated Care,853.96
03/02/2021,1249291,Westminster Society,,Bi-Borough Director of Integrated Care,4106.24
03/02/2021,1249291,Westminster Society,,Bi-Borough Director of Integrated Care,721.00
03/02/2021,1249291,Westminster Society,,Bi-Borough Director of Integrated Care,853.96
03/02/2021,1249291,Westminster Society,,Bi-Borough Director of Integrated Care,5901.88
03/02/2021,1249291,Westminster Society,,Bi-Borough Director of Integrated Care,721.00
03/02/2021,1249291,Westminster Society,,Bi-Borough Director of Integrated Care,1067.44
03/02/2021,1249291,Westminster Society,,Bi-Borough Director of Integrated Care,713.64
03/02/2021,1249291,Westminster Society,,Bi-Borough Director of Integrated Care,2676.52
03/02/2021,1249291,Westminster Society,,Bi-Borough Director of Integrated Care,677.60
03/02/2021,1249291,Westminster Society,,Bi-Borough Director of Integrated Care,1829.52
03/02/2021,1249291,Westminster Society,,Bi-Borough Director of Integrated Care,540.76
03/02/2021,1249291,Westminster Society,,Bi-Borough Director of Integrated Care,6462.61
03/02/2021,1249291,Westminster Society,,Bi-Borough Director of Integrated Care,1624.56
03/02/2021,1249291,Westminster Society,,Bi-Borough Director of Integrated Care,540.76
03/02/2021,1249291,Westminster Society,,Bi-Borough Director of Integrated Care,7995.68
03/02/2021,1249291,Westminster Society,,Bi-Borough Director of Integrated Care,853.96
03/02/2021,1249291,Westminster Society,,Bi-Borough Director of Integrated Care,4963.44
03/02/2021,1249291,Westminster Society,,Bi-Borough Director of Integrated Care,948.64
03/02/2021,1249291,Westminster Society,,Bi-Borough Director of Integrated Care,1219.68
03/02/2021,1249291,Westminster Society,,Bi-Borough Director of Integrated Care,542.08
03/02/2021,1249291,Westminster Society,,Bi-Borough Director of Integrated Care,2100.56
03/02/2021,1249291,Westminster Society,,Bi-Borough Director of Integrated Care,779.24
03/02/2021,1249291,Westminster Society,,Bi-Borough Director of Integrated Care,3862.32
03/02/2021,1249291,Westminster Society,,Bi-Borough Director of Integrated Care,853.96
03/02/2021,1249291,Westminster Society,,Bi-Borough Director of Integrated Care,713.64
03/02/2021,1249291,Westminster Society,,Bi-Borough Director of Integrated Care,5746.04
03/03/2021,1249291,Westminster Society,,Bi-Borough Director of Integrated Care,713.64
03/03/2021,1249291,Westminster Society,,Bi-Borough Director of Integrated Care,3394.76
03/03/2021,1249291,Westminster Society,,Bi-Borough Director of Integrated Care,3320.24
03/03/2021,1249291,Westminster Society,,Bi-Borough Director of Integrated Care,4336.64
03/03/2021,1249291,Westminster Society,,Bi-Borough Director of Integrated Care,1406.04
03/03/2021,1249291,Westminster Society,,Bi-Borough Director of Integrated Care,3320.24
03/03/2021,1249291,Westminster Society,,Bi-Borough Director of Integrated Care,540.76
03/03/2021,1249291,Westminster Society,,Bi-Borough Director of Integrated Care,3320.24
03/03/2021,1249291,Westminster Society,,Bi-Borough Director of Integrated Care,542.08
03/03/2021,1249291,Westminster Society,,Bi-Borough Director of Integrated Care,853.96
03/03/2021,1249291,Westminster Society,,Bi-Borough Director of Integrated Care,3879.28
03/03/2021,1249291,Westminster Society,,Bi-Borough Director of Integrated Care,1185.80
03/03/2021,1249291,Westminster Society,,Bi-Borough Director of Integrated Care,1490.72
03/03/2021,1249291,Westminster Society,,Bi-Borough Director of Integrated Care,540.76
03/03/2021,1249291,Westminster Society,,Bi-Borough Director of Integrated Care,721.00
03/03/2021,1249291,Westminster Society,,Bi-Borough Director of Integrated Care,853.96
03/03/2021,1249291,Westminster Society,,Bi-Borough Director of Integrated Care,721.00
03/03/2021,1249291,Westminster Society,,Bi-Borough Director of Integrated Care,7833.04
03/03/2021,1249291,Westminster Society,,Bi-Borough Director of Integrated Care,713.64
03/03/2021,1249291,Westminster Society,,Bi-Borough Director of Integrated Care,6213.60
03/03/2021,1249291,Westminster Society,,Bi-Borough Director of Integrated Care,5184.66
03/03/2021,1249291,Westminster Society,,Bi-Borough Director of Integrated Care,1067.44
03/03/2021,1249291,Westminster Society,,Bi-Borough Director of Integrated Care,721.00
03/03/2021,1249291,Westminster Society,,Bi-Borough Director of Integrated Care,5601.72
03/03/2021,1249291,Westminster Society,,Bi-Borough Director of Integrated Care,3378.95
03/03/2021,1249291,Westminster Society,,Bi-Borough Director of Integrated Care,3252.48
03/03/2021,1249291,Westminster Society,,Bi-Borough Director of Integrated Care,1118.04
03/03/2021,1249291,Westminster Society,,Bi-Borough Director of Integrated Care,3049.20
03/03/2021,1249291,Westminster Society,,Bi-Borough Director of Integrated Care,540.76
03/03/2021,1249291,Westminster Society,,Bi-Borough Director of Integrated Care,1219.68
03/03/2021,1249291,Westminster Society,,Bi-Borough Director of Integrated Care,4901.08
03/03/2021,1249291,Westminster Society,,Bi-Borough Director of Integrated Care,721.00
03/03/2021,1249291,Westminster Society,,Bi-Borough Director of Integrated Care,4365.11
03/03/2021,1249291,Westminster Society,,Bi-Borough Director of Integrated Care,3507.27
03/03/2021,1249291,Westminster Society,,Bi-Borough Director of Integrated Care,4146.67
03/03/2021,1249291,Westminster Society,,Bi-Borough Director of Integrated Care,3388.00
03/03/2021,1249291,Westminster Society,,Bi-Borough Director of Integrated Care,540.76
03/03/2021,1249291,Westminster Society,,Bi-Borough Director of Integrated Care,1897.28
03/03/2021,1249291,Westminster Society,,Bi-Borough Director of Integrated Care,3676.00
03/03/2021,1249291,Westminster Society,,Bi-Borough Director of Integrated Care,3794.56
03/03/2021,1249291,Westminster Society,,Bi-Borough Director of Integrated Care,542.08
03/03/2021,1249291,Westminster Society,,Bi-Borough Director of Integrated Care,3659.04
03/03/2021,1249291,Westminster Society,,Bi-Borough Director of Integrated Care,853.96
03/03/2021,1249291,Westminster Society,,Bi-Borough Director of Integrated Care,4987.12
03/03/2021,1249291,Westminster Society,,Bi-Borough Director of Integrated Care,713.64
03/03/2021,1249291,Westminster Society,,Bi-Borough Director of Integrated Care,713.64
03/03/2021,1249291,Westminster Society,,Bi-Borough Director of Integrated Care,6233.92
03/03/2021,1249291,Westminster Society,,Bi-Borough Director of Integrated Care,2032.80
03/03/2021,1249291,Westminster Society,,Bi-Borough Director of Integrated Care,540.76
03/03/2021,1249291,Westminster Society,,Bi-Borough Director of Integrated Care,713.64
03/03/2021,1249291,Westminster Society,,Bi-Borough Director of Integrated Care,3442.20
03/03/2021,1249291,Westminster Society,,Bi-Borough Director of Integrated Care,2330.96
03/03/2021,1249291,Westminster Society,,Bi-Borough Director of Integrated Care,1524.60
03/03/2021,1249291,Westminster Society,,Bi-Borough Director of Integrated Care,5601.72
03/03/2021,1249291,Westminster Society,,Bi-Borough Director of Integrated Care,721.00
03/03/2021,1249291,Westminster Society,,Bi-Borough Director of Integrated Care,1067.44
03/03/2021,1249291,Westminster Society,,Bi-Borough Director of Integrated Care,5522.44
03/03/2021,1249291,Westminster Society,,Bi-Borough Director of Integrated Care,713.64
03/03/2021,1249291,Westminster Society,,Bi-Borough Director of Integrated Care,5488.56
03/03/2021,1249291,Westminster Society,,Bi-Borough Director of Integrated Care,948.64
03/03/2021,1249291,Westminster Society,,Bi-Borough Director of Integrated Care,4289.20
03/03/2021,1249291,Westminster Society,,Bi-Borough Director of Integrated Care,7385.84
03/03/2021,1249291,Westminster Society,,Bi-Borough Director of Integrated Care,1624.56
03/03/2021,1249291,Westminster Society,,Bi-Borough Director of Integrated Care,2236.08
03/03/2021,1249291,Westminster Society,,Bi-Borough Director of Integrated Care,2710.40
03/03/2021,1249291,Westminster Society,,Bi-Borough Director of Integrated Care,982.52
03/03/2021,1249291,Westminster Society,,Bi-Borough Director of Integrated Care,1761.76
03/03/2021,1249291,Westminster Society,,Bi-Borough Director of Integrated Care,2236.08
03/03/2021,1249291,Westminster Society,,Bi-Borough Director of Integrated Care,2642.64
03/03/2021,1249291,Westminster Society,,Bi-Borough Director of Integrated Care,3133.92
03/03/2021,1249291,Westminster Society,,Bi-Borough Director of Integrated Care,853.96
03/03/2021,1249291,Westminster Society,,Bi-Borough Director of Integrated Care,713.64
03/03/2021,1249291,Westminster Society,,Bi-Borough Director of Integrated Care,1897.28
03/03/2021,1249291,Westminster Society,,Bi-Borough Director of Integrated Care,2842.40
03/03/2021,1249291,Westminster Society,,Bi-Borough Director of Integrated Care,6559.16
03/03/2021,1249291,Westminster Society,,Bi-Borough Director of Integrated Care,1253.56
03/03/2021,1249291,Westminster Society,,Bi-Borough Director of Integrated Care,609.84
03/03/2021,1249291,Westminster Society,,Bi-Borough Director of Integrated Care,1829.52
03/03/2021,1249291,Westminster Society,,Bi-Borough Director of Integrated Care,1236.64
03/03/2021,1249291,Westminster Society,,Bi-Borough Director of Integrated Care,3930.08
03/03/2021,1249291,Westminster Society,,Bi-Borough Director of Integrated Care,540.76
03/03/2021,1249291,Westminster Society,,Bi-Borough Director of Integrated Care,3455.76
03/03/2021,1249291,Westminster Society,,Bi-Borough Director of Integrated Care,3902.96
03/03/2021,1249291,Westminster Society,,Bi-Borough Director of Integrated Care,721.00
03/03/2021,1249291,Westminster Society,,Bi-Borough Director of Integrated Care,853.96
03/03/2021,1249291,Westminster Society,,Bi-Borough Director of Integrated Care,3455.76
03/03/2021,1249291,Westminster Society,,Bi-Borough Director of Integrated Care,2507.12
03/03/2021,1249291,Westminster Society,,Bi-Borough Director of Integrated Care,3394.76
03/03/2021,1249291,Westminster Society,,Bi-Borough Director of Integrated Care,713.64
03/03/2021,1249291,Westminster Society,,Bi-Borough Director of Integrated Care,5901.88
03/03/2021,1249291,Westminster Society,,Bi-Borough Director of Integrated Care,721.00
03/03/2021,1249291,Westminster Society,,Bi-Borough Director of Integrated Care,1067.44
03/03/2021,1249291,Westminster Society,,Bi-Borough Director of Integrated Care,853.96
03/03/2021,1249291,Westminster Society,,Bi-Borough Director of Integrated Care,721.00
03/03/2021,1249291,Westminster Society,,Bi-Borough Director of Integrated Care,3902.96
03/03/2021,1249291,Westminster Society,,Bi-Borough Director of Integrated Care,1965.04
03/03/2021,1249291,Westminster Society,,Bi-Borough Director of Integrated Care,853.96
03/03/2021,1249291,Westminster Society,,Bi-Borough Director of Integrated Care,721.00
03/03/2021,1249291,Westminster Society,,Bi-Borough Director of Integrated Care,4106.24
03/03/2021,1249291,Westminster Society,,Bi-Borough Director of Integrated Care,540.76
03/03/2021,1249291,Westminster Society,,Bi-Borough Director of Integrated Care,2574.88
03/03/2021,1249291,Westminster Society,,Bi-Borough Director of Integrated Care,721.00
03/03/2021,1249291,Westminster Society,,Bi-Borough Director of Integrated Care,853.96
03/03/2021,1249291,Westminster Society,,Bi-Borough Director of Integrated Care,8537.76
03/03/2021,1249291,Westminster Society,,Bi-Borough Director of Integrated Care,3083.08
03/03/2021,1249291,Westminster Society,,Bi-Borough Director of Integrated Care,853.96
03/03/2021,1249291,Westminster Society,,Bi-Borough Director of Integrated Care,3608.24
03/03/2021,1249291,Westminster Society,,Bi-Borough Director of Integrated Care,4709.32
03/03/2021,1249291,Westminster Society,,Bi-Borough Director of Integrated Care,2371.60
03/03/2021,1249291,Westminster Society,,Bi-Borough Director of Integrated Care,2676.52
03/03/2021,1249291,Westminster Society,,Bi-Borough Director of Integrated Care,713.64
03/03/2021,1249291,Westminster Society,,Bi-Borough Director of Integrated Care,2303.84
03/03/2021,1249291,Westminster Society,,Bi-Borough Director of Integrated Care,2778.16
03/03/2021,1249291,Westminster Society,,Bi-Borough Director of Integrated Care,542.08
03/03/2021,1249291,Westminster Society,,Bi-Borough Director of Integrated Care,4963.44
03/03/2021,1249291,Westminster Society,,Bi-Borough Director of Integrated Care,853.96
03/03/2021,1249291,Westminster Society,,Bi-Borough Director of Integrated Care,1624.56
03/03/2021,1249291,Westminster Society,,Bi-Borough Director of Integrated Care,7995.68
03/03/2021,1249291,Westminster Society,,Bi-Borough Director of Integrated Care,540.76
03/03/2021,1249291,Westminster Society,,Bi-Borough Director of Integrated Care,677.60
03/03/2021,1249291,Westminster Society,,Bi-Borough Director of Integrated Care,2100.56
03/03/2021,1249291,Westminster Society,,Bi-Borough Director of Integrated Care,779.24
03/03/2021,1249291,Westminster Society,,Bi-Borough Director of Integrated Care,948.64
03/03/2021,1249291,Westminster Society,,Bi-Borough Director of Integrated Care,1219.68
03/03/2021,1249291,Westminster Society,,Bi-Borough Director of Integrated Care,1829.52
03/03/2021,1249291,Westminster Society,,Bi-Borough Director of Integrated Care,853.96
03/03/2021,1249291,Westminster Society,,Bi-Borough Director of Integrated Care,3862.32
03/03/2021,1249291,Westminster Society,,Bi-Borough Director of Integrated Care,540.76
03/03/2021,1249291,Westminster Society,,Bi-Borough Director of Integrated Care,5217.52
03/03/2021,1249291,Westminster Society,,Bi-Borough Director of Integrated Care,5746.04
03/03/2021,1249291,Westminster Society,,Bi-Borough Director of Integrated Care,713.64
05/03/2021,1249291,Westminster Society,B*Voluntary-Spot-V Dep-Enhanced - do not u,Bi-Borough Director of Integrated Care,2040.00
05/03/2021,1249291,Westminster Society,B*Voluntary-Spot-V Dep-Enhanced - do not u,Bi-Borough Director of Integrated Care,816.00
05/03/2021,1249291,Westminster Society,B*Voluntary-Spot-V Dep-Enhanced - do not u,Bi-Borough Director of Integrated Care,510.00
05/03/2021,1249291,Westminster Society,B*Voluntary-Spot-V Dep-Enhanced - do not u,Bi-Borough Director of Integrated Care,680.00
05/03/2021,1249291,Westminster Society,B*Voluntary-Spot-V Dep-Enhanced - do not u,Bi-Borough Director of Integrated Care,1088.00
05/03/2021,1249291,Westminster Society,B*Voluntary-Spot-V Dep-Enhanced - do not u,Bi-Borough Director of Integrated Care,620.50
05/03/2021,1249291,Westminster Society,B*Voluntary-Spot-V Dep-Enhanced - do not u,Bi-Borough Director of Integrated Care,1700.00
05/03/2021,1249291,Westminster Society,B*Voluntary-Spot-V Dep-Enhanced - do not u,Bi-Borough Director of Integrated Care,1768.00
05/03/2021,1249291,Westminster Society,B*Voluntary-Spot-V Dep-Enhanced - do not u,Bi-Borough Director of Integrated Care,612.00
05/03/2021,1249291,Westminster Society,B*Voluntary-Spot-V Dep-Enhanced - do not u,Bi-Borough Director of Integrated Care,612.00
05/03/2021,1249291,Westminster Society,B*Voluntary-Spot-V Dep-Enhanced - do not u,Bi-Borough Director of Integrated Care,612.00
05/03/2021,1249291,Westminster Society,B*Voluntary-Spot-V Dep-Enhanced - do not u,Bi-Borough Director of Integrated Care,816.00
22/03/2021,1249291,Westminster Society,B*Voluntary-Spot-V Dep-Enhanced - do not u,Bi-Borough Director of Integrated Care,680.00
22/03/2021,1249291,Westminster Society,B*Voluntary-Spot-V Dep-Enhanced - do not u,Bi-Borough Director of Integrated Care,612.00
22/03/2021,1249291,Westminster Society,B*Voluntary-Spot-V Dep-Enhanced - do not u,Bi-Borough Director of Integrated Care,816.00
22/03/2021,1249291,Westminster Society,B*Voluntary-Spot-V Dep-Enhanced - do not u,Bi-Borough Director of Integrated Care,816.00
22/03/2021,1249291,Westminster Society,B*Voluntary-Spot-V Dep-Enhanced - do not u,Bi-Borough Director of Integrated Care,544.00
22/03/2021,1249291,Westminster Society,B*Voluntary-Spot-V Dep-Enhanced - do not u,Bi-Borough Director of Integrated Care,544.00
22/03/2021,1249291,Westminster Society,B*Voluntary-Spot-V Dep-Enhanced - do not u,Bi-Borough Director of Integrated Care,544.00
22/03/2021,1249291,Westminster Society,B*Voluntary-Spot-V Dep-Enhanced - do not u,Bi-Borough Director of Integrated Care,544.00
22/03/2021,1249291,Westminster Society,B*Voluntary-Spot-V Dep-Enhanced - do not u,Bi-Borough Director of Integrated Care,782.00
22/03/2021,1249291,Westminster Society,B*Voluntary-Spot-V Dep-Enhanced - do not u,Bi-Borough Director of Integrated Care,612.00
22/03/2021,1249291,Westminster Society,B*Voluntary-Spot-V Dep-Enhanced - do not u,Bi-Borough Director of Integrated Care,544.00
22/03/2021,1249291,Westminster Society,B*Voluntary-Spot-V Dep-Enhanced - do not u,Bi-Borough Director of Integrated Care,884.00
22/03/2021,1249291,Westminster Society,B*Voluntary-Spot-V Dep-Enhanced - do not u,Bi-Borough Director of Integrated Care,952.00
22/03/2021,1249291,Westminster Society,B*Voluntary-Spot-V Dep-Enhanced - do not u,Bi-Borough Director of Integrated Care,2720.00
22/03/2021,1249291,Westminster Society,B*Voluntary-Spot-V Dep-Enhanced - do not u,Bi-Borough Director of Integrated Care,816.00
22/03/2021,1249291,Westminster Society,B*Voluntary-Spot-V Dep-Enhanced - do not u,Bi-Borough Director of Integrated Care,884.00
22/03/2021,1249291,Westminster Society,B*Voluntary-Spot-V Dep-Enhanced - do not u,Bi-Borough Director of Integrated Care,748.00
22/03/2021,1249291,Westminster Society,B*Voluntary-Spot-V Dep-Enhanced - do not u,Bi-Borough Director of Integrated Care,612.00
22/03/2021,1249291,Westminster Society,B*Voluntary-Spot-V Dep-Enhanced - do not u,Bi-Borough Director of Integrated Care,544.00
22/03/2021,1249291,Westminster Society,B*Voluntary-Spot-V Dep-Enhanced - do not u,Bi-Borough Director of Integrated Care,748.00
22/03/2021,1249291,Westminster Society,B*Voluntary-Spot-V Dep-Enhanced - do not u,Bi-Borough Director of Integrated Care,612.00
22/03/2021,1249291,Westminster Society,B*Voluntary-Spot-V Dep-Enhanced - do not u,Bi-Borough Director of Integrated Care,612.00
22/03/2021,1249291,Westminster Society,B*Voluntary-Spot-V Dep-Enhanced - do not u,Bi-Borough Director of Integrated Care,680.00
22/03/2021,1249291,Westminster Society,B*Voluntary-Spot-V Dep-Enhanced - do not u,Bi-Borough Director of Integrated Care,1496.00
22/03/2021,1249291,Westminster Society,B*Voluntary-Spot-V Dep-Enhanced - do not u,Bi-Borough Director of Integrated Care,2040.00
22/03/2021,1249291,Westminster Society,B*Voluntary-Spot-V Dep-Enhanced - do not u,Bi-Borough Director of Integrated Care,612.00
22/03/2021,1249291,Westminster Society,B*Voluntary-Spot-V Dep-Enhanced - do not u,Bi-Borough Director of Integrated Care,612.00
22/03/2021,1249291,Westminster Society,B*Voluntary-Spot-V Dep-Enhanced - do not u,Bi-Borough Director of Integrated Care,952.00
23/03/2021,1249291,Westminster Society,,Bi-Borough Director of Integrated Care,3675.98
23/03/2021,1249291,Westminster Society,,Bi-Borough Director of Integrated Care,4801.28
23/03/2021,1249291,Westminster Society,,Bi-Borough Director of Integrated Care,1556.69
23/03/2021,1249291,Westminster Society,,Bi-Borough Director of Integrated Care,3758.48
23/03/2021,1249291,Westminster Society,,Bi-Borough Director of Integrated Care,790.10
23/03/2021,1249291,Westminster Society,,Bi-Borough Director of Integrated Care,3375.90
23/03/2021,1249291,Westminster Society,,Bi-Borough Director of Integrated Care,3675.98
23/03/2021,1249291,Westminster Society,,Bi-Borough Director of Integrated Care,600.16
23/03/2021,1249291,Westminster Society,,Bi-Borough Director of Integrated Care,3146.94
23/03/2021,1249291,Westminster Society,,Bi-Borough Director of Integrated Care,798.25
23/03/2021,1249291,Westminster Society,,Bi-Borough Director of Integrated Care,5426.20
23/03/2021,1249291,Westminster Society,,Bi-Borough Director of Integrated Care,798.25
23/03/2021,1249291,Westminster Society,,Bi-Borough Director of Integrated Care,945.46
23/03/2021,1249291,Westminster Society,,Bi-Borough Director of Integrated Care,4294.92
23/03/2021,1249291,Westminster Society,,Bi-Borough Director of Integrated Care,1312.85
23/03/2021,1249291,Westminster Society,,Bi-Borough Director of Integrated Care,3600.96
23/03/2021,1249291,Westminster Society,,Bi-Borough Director of Integrated Care,1650.44
23/03/2021,1249291,Westminster Society,,Bi-Borough Director of Integrated Care,598.70
23/03/2021,1249291,Westminster Society,,Bi-Borough Director of Integrated Care,1237.83
23/03/2021,1249291,Westminster Society,,Bi-Borough Director of Integrated Care,945.46
23/03/2021,1249291,Westminster Society,,Bi-Borough Director of Integrated Care,798.25
23/03/2021,1249291,Westminster Society,,Bi-Borough Director of Integrated Care,8672.29
23/03/2021,1249291,Westminster Society,,Bi-Borough Director of Integrated Care,1181.81
23/03/2021,1249291,Westminster Society,,Bi-Borough Director of Integrated Care,798.25
23/03/2021,1249291,Westminster Society,,Bi-Borough Director of Integrated Care,6201.90
23/03/2021,1249291,Westminster Society,,Bi-Borough Director of Integrated Care,3675.98
23/03/2021,1249291,Westminster Society,,Bi-Borough Director of Integrated Care,598.70
23/03/2021,1249291,Westminster Society,,Bi-Borough Director of Integrated Care,1350.36
23/03/2021,1249291,Westminster Society,,Bi-Borough Director of Integrated Care,598.70
23/03/2021,1249291,Westminster Society,,Bi-Borough Director of Integrated Care,3751.00
23/03/2021,1249291,Westminster Society,,Bi-Borough Director of Integrated Care,4201.12
23/03/2021,1249291,Westminster Society,,Bi-Borough Director of Integrated Care,600.16
23/03/2021,1249291,Westminster Society,,Bi-Borough Director of Integrated Care,790.10
23/03/2021,1249291,Westminster Society,,Bi-Borough Director of Integrated Care,5521.45
23/03/2021,1249291,Westminster Society,,Bi-Borough Director of Integrated Care,6901.84
23/03/2021,1249291,Westminster Society,,Bi-Borough Director of Integrated Care,790.10
23/03/2021,1249291,Westminster Society,,Bi-Borough Director of Integrated Care,4051.08
23/03/2021,1249291,Westminster Society,,Bi-Borough Director of Integrated Care,945.46
23/03/2021,1249291,Westminster Society,,Bi-Borough Director of Integrated Care,2250.60
23/03/2021,1249291,Westminster Society,,Bi-Borough Director of Integrated Care,598.70
23/03/2021,1249291,Westminster Society,,Bi-Borough Director of Integrated Care,4069.86
23/03/2021,1249291,Westminster Society,,Bi-Borough Director of Integrated Care,598.70
23/03/2021,1249291,Westminster Society,,Bi-Borough Director of Integrated Care,2100.56
23/03/2021,1249291,Westminster Society,,Bi-Borough Director of Integrated Care,8177.18
23/03/2021,1249291,Westminster Society,,Bi-Borough Director of Integrated Care,1798.62
23/03/2021,1249291,Westminster Society,,Bi-Borough Director of Integrated Care,3000.80
23/03/2021,1249291,Westminster Society,,Bi-Borough Director of Integrated Care,2475.66
23/03/2021,1249291,Westminster Society,,Bi-Borough Director of Integrated Care,1087.79
23/03/2021,1249291,Westminster Society,,Bi-Borough Director of Integrated Care,1950.52
23/03/2021,1249291,Westminster Society,,Bi-Borough Director of Integrated Care,1050.28
23/03/2021,1249291,Westminster Society,,Bi-Borough Director of Integrated Care,2580.71
23/03/2021,1249291,Westminster Society,,Bi-Borough Director of Integrated Care,4748.76
23/03/2021,1249291,Westminster Society,,Bi-Borough Director of Integrated Care,6076.62
23/03/2021,1249291,Westminster Society,,Bi-Borough Director of Integrated Care,1181.81
23/03/2021,1249291,Westminster Society,,Bi-Borough Director of Integrated Care,798.25
23/03/2021,1249291,Westminster Society,,Bi-Borough Director of Integrated Care,6201.90
23/03/2021,1249291,Westminster Society,,Bi-Borough Director of Integrated Care,790.10
23/03/2021,1249291,Westminster Society,,Bi-Borough Director of Integrated Care,3811.01
23/03/2021,1249291,Westminster Society,,Bi-Borough Director of Integrated Care,790.10
23/03/2021,1249291,Westminster Society,,Bi-Borough Director of Integrated Care,6114.13
23/03/2021,1249291,Westminster Society,,Bi-Borough Director of Integrated Care,2475.66
23/03/2021,1249291,Westminster Society,,Bi-Borough Director of Integrated Care,945.46
23/03/2021,1249291,Westminster Society,,Bi-Borough Director of Integrated Care,3469.70
23/03/2021,1249291,Westminster Society,,Bi-Borough Director of Integrated Care,1151.92
23/03/2021,1249291,Westminster Society,,Bi-Borough Director of Integrated Care,790.10
23/03/2021,1249291,Westminster Society,,Bi-Borough Director of Integrated Care,2100.56
23/03/2021,1249291,Westminster Society,,Bi-Borough Director of Integrated Care,2925.78
23/03/2021,1249291,Westminster Society,,Bi-Borough Director of Integrated Care,3826.02
23/03/2021,1249291,Westminster Society,,Bi-Borough Director of Integrated Care,2025.54
23/03/2021,1249291,Westminster Society,,Bi-Borough Director of Integrated Care,525.14
23/03/2021,1249291,Westminster Society,,Bi-Borough Director of Integrated Care,7261.93
23/03/2021,1249291,Westminster Society,,Bi-Borough Director of Integrated Care,3146.94
23/03/2021,1249291,Westminster Society,,Bi-Borough Director of Integrated Care,1387.87
23/03/2021,1249291,Westminster Society,,Bi-Borough Director of Integrated Care,1369.14
23/03/2021,1249291,Westminster Society,,Bi-Borough Director of Integrated Care,3413.41
23/03/2021,1249291,Westminster Society,,Bi-Borough Director of Integrated Care,3826.02
23/03/2021,1249291,Westminster Society,,Bi-Borough Director of Integrated Care,4351.16
23/03/2021,1249291,Westminster Society,,Bi-Borough Director of Integrated Care,598.70
23/03/2021,1249291,Westminster Society,,Bi-Borough Director of Integrated Care,675.18
23/03/2021,1249291,Westminster Society,,Bi-Borough Director of Integrated Care,798.25
23/03/2021,1249291,Westminster Society,,Bi-Borough Director of Integrated Care,9452.52
23/03/2021,1249291,Westminster Society,,Bi-Borough Director of Integrated Care,945.46
23/03/2021,1249291,Westminster Society,,Bi-Borough Director of Integrated Care,4321.13
23/03/2021,1249291,Westminster Society,,Bi-Borough Director of Integrated Care,798.25
23/03/2021,1249291,Westminster Society,,Bi-Borough Director of Integrated Care,945.46
23/03/2021,1249291,Westminster Society,,Bi-Borough Director of Integrated Care,2775.74
23/03/2021,1249291,Westminster Society,,Bi-Borough Director of Integrated Care,5213.89
23/03/2021,1249291,Westminster Society,,Bi-Borough Director of Integrated Care,2850.76
23/03/2021,1249291,Westminster Society,,Bi-Borough Director of Integrated Care,598.70
23/03/2021,1249291,Westminster Society,,Bi-Borough Director of Integrated Care,2175.58
23/03/2021,1249291,Westminster Society,,Bi-Borough Director of Integrated Care,945.46
23/03/2021,1249291,Westminster Society,,Bi-Borough Director of Integrated Care,3994.84
23/03/2021,1249291,Westminster Society,,Bi-Borough Director of Integrated Care,3075.82
23/03/2021,1249291,Westminster Society,,Bi-Borough Director of Integrated Care,2550.68
23/03/2021,1249291,Westminster Society,,Bi-Borough Director of Integrated Care,2625.70
23/03/2021,1249291,Westminster Society,,Bi-Borough Director of Integrated Care,790.10
23/03/2021,1249291,Westminster Society,,Bi-Borough Director of Integrated Care,3758.48
23/03/2021,1249291,Westminster Society,,Bi-Borough Director of Integrated Care,945.46
23/03/2021,1249291,Westminster Society,,Bi-Borough Director of Integrated Care,798.25
23/03/2021,1249291,Westminster Society,,Bi-Borough Director of Integrated Care,4321.13
23/03/2021,1249291,Westminster Society,,Bi-Borough Director of Integrated Care,945.46
23/03/2021,1249291,Westminster Society,,Bi-Borough Director of Integrated Care,798.25
23/03/2021,1249291,Westminster Society,,Bi-Borough Director of Integrated Care,4546.19
23/03/2021,1249291,Westminster Society,,Bi-Borough Director of Integrated Care,1181.81
23/03/2021,1249291,Westminster Society,,Bi-Borough Director of Integrated Care,798.25
23/03/2021,1249291,Westminster Society,,Bi-Borough Director of Integrated Care,6534.22
23/03/2021,1249291,Westminster Society,,Bi-Borough Director of Integrated Care,790.10
23/03/2021,1249291,Westminster Society,,Bi-Borough Director of Integrated Care,2963.29
23/03/2021,1249291,Westminster Society,,Bi-Borough Director of Integrated Care,750.20
23/03/2021,1249291,Westminster Society,,Bi-Borough Director of Integrated Care,2025.54
23/03/2021,1249291,Westminster Society,,Bi-Borough Director of Integrated Care,5776.54
23/03/2021,1249291,Westminster Society,,Bi-Borough Director of Integrated Care,598.70
23/03/2021,1249291,Westminster Society,,Bi-Borough Director of Integrated Care,1798.62
23/03/2021,1249291,Westminster Society,,Bi-Borough Director of Integrated Care,8852.36
23/03/2021,1249291,Westminster Society,,Bi-Borough Director of Integrated Care,598.70
23/03/2021,1249291,Westminster Society,,Bi-Borough Director of Integrated Care,945.46
23/03/2021,1249291,Westminster Society,,Bi-Borough Director of Integrated Care,5495.24
23/03/2021,1249291,Westminster Society,,Bi-Borough Director of Integrated Care,1050.28
23/03/2021,1249291,Westminster Society,,Bi-Borough Director of Integrated Care,1350.36
23/03/2021,1249291,Westminster Society,,Bi-Borough Director of Integrated Care,600.16
23/03/2021,1249291,Westminster Society,,Bi-Borough Director of Integrated Care,2325.62
23/03/2021,1249291,Westminster Society,,Bi-Borough Director of Integrated Care,862.73
23/03/2021,1249291,Westminster Society,,Bi-Borough Director of Integrated Care,4276.14
23/03/2021,1249291,Westminster Society,,Bi-Borough Director of Integrated Care,945.46
23/03/2021,1249291,Westminster Society,,Bi-Borough Director of Integrated Care,790.10
23/03/2021,1249291,Westminster Society,,Bi-Borough Director of Integrated Care,6361.69
24/03/2021,1249291,Westminster Society,,Bi-Borough Director of Integrated Care,8379.11
24/03/2021,1249291,Westminster Society,,Bi-Borough Director of Integrated Care,8068.40
29/03/2021,1249291,Westminster Society,B*Voluntary-Spot-V Dep-Enhanced - do not u,Bi-Borough Director of Integrated Care,612.00
29/03/2021,1249291,Westminster Society,B*Voluntary-Spot-V Dep-Enhanced - do not u,Bi-Borough Director of Integrated Care,612.00
29/03/2021,1249291,Westminster Society,B*Voluntary-Spot-V Dep-Enhanced - do not u,Bi-Borough Director of Integrated Care,816.00
05/01/2021,1246224,Whitmore Vale Housing Association,,Bi-Borough Director of Integrated Care,3688.80
03/02/2021,1246224,Whitmore Vale Housing Association,,Bi-Borough Director of Integrated Care,3688.80
03/03/2021,1246224,Whitmore Vale Housing Association,,Bi-Borough Director of Integrated Care,3688.80
24/03/2021,1246224,Whitmore Vale Housing Association,,Bi-Borough Director of Integrated Care,4084.03
05/01/2021,1243566,Yarrow Housing Ltd,,Bi-Borough Director of Integrated Care,7297.56
05/01/2021,1243566,Yarrow Housing Ltd,,Bi-Borough Director of Integrated Care,814.08
05/01/2021,1243566,Yarrow Housing Ltd,,Bi-Borough Director of Integrated Care,3632.88
05/01/2021,1243566,Yarrow Housing Ltd,,Bi-Borough Director of Integrated Care,8301.92
05/01/2021,1243566,Yarrow Housing Ltd,,Bi-Borough Director of Integrated Care,7851.20
05/01/2021,1243566,Yarrow Housing Ltd,,Bi-Borough Director of Integrated Care,3651.20
05/01/2021,1243566,Yarrow Housing Ltd,,Bi-Borough Director of Integrated Care,3387.52
05/01/2021,1243566,Yarrow Housing Ltd,,Bi-Borough Director of Integrated Care,2700.84
18/01/2021,1243566,Yarrow Housing Ltd,,Bi-Borough Director of Integrated Care,15846.40
03/02/2021,1243566,Yarrow Housing Ltd,,Bi-Borough Director of Integrated Care,3651.20
03/02/2021,1243566,Yarrow Housing Ltd,,Bi-Borough Director of Integrated Care,3387.52
03/02/2021,1243566,Yarrow Housing Ltd,,Bi-Borough Director of Integrated Care,2700.84
03/02/2021,1243566,Yarrow Housing Ltd,,Bi-Borough Director of Integrated Care,8301.92
03/02/2021,1243566,Yarrow Housing Ltd,,Bi-Borough Director of Integrated Care,7851.20
03/02/2021,1243566,Yarrow Housing Ltd,,Bi-Borough Director of Integrated Care,7297.56
03/02/2021,1243566,Yarrow Housing Ltd,,Bi-Borough Director of Integrated Care,3632.88
03/02/2021,1243566,Yarrow Housing Ltd,,Bi-Borough Director of Integrated Care,1747.20
03/02/2021,1243566,Yarrow Housing Ltd,,Bi-Borough Director of Integrated Care,814.08
08/02/2021,1243566,Yarrow Housing Ltd,,Bi-Borough Director of Integrated Care,15846.40
03/03/2021,1243566,Yarrow Housing Ltd,,Bi-Borough Director of Integrated Care,8301.92
03/03/2021,1243566,Yarrow Housing Ltd,,Bi-Borough Director of Integrated Care,7851.20
03/03/2021,1243566,Yarrow Housing Ltd,,Bi-Borough Director of Integrated Care,3632.88
03/03/2021,1243566,Yarrow Housing Ltd,,Bi-Borough Director of Integrated Care,1747.20
03/03/2021,1243566,Yarrow Housing Ltd,,Bi-Borough Director of Integrated Care,814.08
03/03/2021,1243566,Yarrow Housing Ltd,,Bi-Borough Director of Integrated Care,3651.20
03/03/2021,1243566,Yarrow Housing Ltd,,Bi-Borough Director of Integrated Care,3387.52
03/03/2021,1243566,Yarrow Housing Ltd,,Bi-Borough Director of Integrated Care,2700.84
03/03/2021,1243566,Yarrow Housing Ltd,,Bi-Borough Director of Integrated Care,7297.56
05/03/2021,1243566,Yarrow Housing Ltd,,Bi-Borough Director of Integrated Care,15846.40
24/03/2021,1243566,Yarrow Housing Ltd,,Bi-Borough Director of Integrated Care,9191.41
24/03/2021,1243566,Yarrow Housing Ltd,,Bi-Borough Director of Integrated Care,8692.40
24/03/2021,1243566,Yarrow Housing Ltd,,Bi-Borough Director of Integrated Care,4022.12
24/03/2021,1243566,Yarrow Housing Ltd,,Bi-Borough Director of Integrated Care,1934.40
24/03/2021,1243566,Yarrow Housing Ltd,,Bi-Borough Director of Integrated Care,901.30
24/03/2021,1243566,Yarrow Housing Ltd,,Bi-Borough Director of Integrated Care,4042.40
24/03/2021,1243566,Yarrow Housing Ltd,,Bi-Borough Director of Integrated Care,3750.47
24/03/2021,1243566,Yarrow Housing Ltd,,Bi-Borough Director of Integrated Care,2990.22
24/03/2021,1243566,Yarrow Housing Ltd,,Bi-Borough Director of Integrated Care,8079.44
29/03/2021,1243566,Yarrow Housing Ltd,,Bi-Borough Director of Integrated Care,15846.83
11/01/2021,1249317,Zocalo Ltd T/as Bluebird Care,,Bi-Borough Director of Integrated Care,5436.00
11/01/2021,1249317,Zocalo Ltd T/as Bluebird Care,,Bi-Borough Director of Integrated Care,2209.95
25/01/2021,1249317,Zocalo Ltd T/as Bluebird Care,,Bi-Borough Director of Integrated Care,5764.00
25/01/2021,1249317,Zocalo Ltd T/as Bluebird Care,,Bi-Borough Director of Integrated Care,2178.48
03/03/2021,1249317,Zocalo Ltd T/as Bluebird Care,,Bi-Borough Director of Integrated Care,5436.00
03/03/2021,1249317,Zocalo Ltd T/as Bluebird Care,,Bi-Borough Director of Integrated Care,2112.33
17/03/2021,1249317,Zocalo Ltd T/as Bluebird Care,,Bi-Borough Director of Integrated Care,5436.00
17/03/2021,1249317,Zocalo Ltd T/as Bluebird Care,,Bi-Borough Director of Integrated Care,1825.14
03/02/2021,1249318,Zodiac Arts Ltd,B*Voluntary-Spot-V Dep-Enhanced - do not u,Bi-Borough Director of Integrated Care,715.00
04/03/2021,1249318,Zodiac Arts Ltd,B*Voluntary-Spot-V Dep-Enhanced - do not u,Bi-Borough Director of Integrated Care,715.50
31/03/2021,1249172,Tobii Dynavox Ltd,Equipment,Bi-Borough Director of Integrated Care,1198.80
22/03/2021,1251199,Cornerstone Barristers,Legal Costs,Bi-Borough Director of Integrated Care,1500.00
25/03/2021,1252498,PERSONAL PAYMENTS,Legal Costs,Bi-Borough Director of Integrated Care,650.00
25/03/2021,1252498,PERSONAL PAYMENTS,Legal Costs,Bi-Borough Director of Integrated Care,652.50
29/03/2021,1276182,Bridges Home Care Ltd,Creditors GR/IR -,Bi-Borough Director of Integrated Care,603.70
04/01/2021,1252498,PERSONAL PAYMENTS,Legal Costs,Bi-Borough Director of Integrated Care,850.00
20/01/2021,1252498,PERSONAL PAYMENTS,Legal Costs,Bi-Borough Director of Integrated Care,850.00
22/03/2021,1252498,PERSONAL PAYMENTS,Legal Costs,Bi-Borough Director of Integrated Care,8393.75
05/01/2021,1248618,Riverside Echg,,Bi-Borough Director of Integrated Care,1235.92
03/02/2021,1248618,Riverside Echg,,Bi-Borough Director of Integrated Care,1235.92
03/03/2021,1248618,Riverside Echg,,Bi-Borough Director of Integrated Care,1235.92
24/03/2021,1248618,Riverside Echg,,Bi-Borough Director of Integrated Care,1368.34
19/03/2021,1243797,Central & North West London Nhs,Payments to Health Authorities,Bi-Borough Director of Integrated Care,208572.00
22/03/2021,1243797,Central & North West London Nhs,Payments to Health Authorities,Bi-Borough Director of Integrated Care,68148.00
05/01/2021,1259100,Care Assist Limited,,Bi-Borough Director of Integrated Care,3728.96
03/02/2021,1259100,Care Assist Limited,,Bi-Borough Director of Integrated Care,3728.96
03/03/2021,1259100,Care Assist Limited,,Bi-Borough Director of Integrated Care,3728.96
24/03/2021,1259100,Care Assist Limited,,Bi-Borough Director of Integrated Care,4128.49
05/01/2021,1246561,Church Army Marylebone Project,,Bi-Borough Director of Integrated Care,990.12
03/02/2021,1246561,Church Army Marylebone Project,,Bi-Borough Director of Integrated Care,990.12
03/03/2021,1246561,Church Army Marylebone Project,,Bi-Borough Director of Integrated Care,990.12
24/03/2021,1246561,Church Army Marylebone Project,,Bi-Borough Director of Integrated Care,1096.20
15/02/2021,D000000016,PERSONAL PAYMENTS,,Bi-Borough Director of Integrated Care,5000.00
05/01/2021,1247852,Look Ahead Care and Support Ltd,,Bi-Borough Director of Integrated Care,1267.56
05/01/2021,1247852,Look Ahead Care and Support Ltd,,Bi-Borough Director of Integrated Care,1339.08
05/01/2021,1247852,Look Ahead Care and Support Ltd,,Bi-Borough Director of Integrated Care,1339.08
05/01/2021,1247852,Look Ahead Care and Support Ltd,,Bi-Borough Director of Integrated Care,992.60
05/01/2021,1247852,Look Ahead Care and Support Ltd,,Bi-Borough Director of Integrated Care,917.80
05/01/2021,1247852,Look Ahead Care and Support Ltd,,Bi-Borough Director of Integrated Care,917.80
05/01/2021,1247852,Look Ahead Care and Support Ltd,,Bi-Borough Director of Integrated Care,1530.32
05/01/2021,1247852,Look Ahead Care and Support Ltd,,Bi-Borough Director of Integrated Care,992.60
05/01/2021,1247852,Look Ahead Care and Support Ltd,,Bi-Borough Director of Integrated Care,890.60
05/01/2021,1247852,Look Ahead Care and Support Ltd,,Bi-Borough Director of Integrated Care,1193.80
03/02/2021,1247852,Look Ahead Care and Support Ltd,,Bi-Borough Director of Integrated Care,992.60
03/02/2021,1247852,Look Ahead Care and Support Ltd,,Bi-Borough Director of Integrated Care,890.60
03/02/2021,1247852,Look Ahead Care and Support Ltd,,Bi-Borough Director of Integrated Care,1193.80
03/02/2021,1247852,Look Ahead Care and Support Ltd,,Bi-Borough Director of Integrated Care,1267.56
03/02/2021,1247852,Look Ahead Care and Support Ltd,,Bi-Borough Director of Integrated Care,1339.08
03/02/2021,1247852,Look Ahead Care and Support Ltd,,Bi-Borough Director of Integrated Care,1339.08
03/02/2021,1247852,Look Ahead Care and Support Ltd,,Bi-Borough Director of Integrated Care,917.80
03/02/2021,1247852,Look Ahead Care and Support Ltd,,Bi-Borough Director of Integrated Care,917.80
03/02/2021,1247852,Look Ahead Care and Support Ltd,,Bi-Borough Director of Integrated Care,1530.32
03/02/2021,1247852,Look Ahead Care and Support Ltd,,Bi-Borough Director of Integrated Care,992.60
03/03/2021,1247852,Look Ahead Care and Support Ltd,,Bi-Borough Director of Integrated Care,917.80
03/03/2021,1247852,Look Ahead Care and Support Ltd,,Bi-Borough Director of Integrated Care,917.80
03/03/2021,1247852,Look Ahead Care and Support Ltd,,Bi-Borough Director of Integrated Care,1530.32
03/03/2021,1247852,Look Ahead Care and Support Ltd,,Bi-Borough Director of Integrated Care,992.60
03/03/2021,1247852,Look Ahead Care and Support Ltd,,Bi-Borough Director of Integrated Care,992.60
03/03/2021,1247852,Look Ahead Care and Support Ltd,,Bi-Borough Director of Integrated Care,890.60
03/03/2021,1247852,Look Ahead Care and Support Ltd,,Bi-Borough Director of Integrated Care,1193.80
03/03/2021,1247852,Look Ahead Care and Support Ltd,,Bi-Borough Director of Integrated Care,1267.56
03/03/2021,1247852,Look Ahead Care and Support Ltd,,Bi-Borough Director of Integrated Care,1339.08
03/03/2021,1247852,Look Ahead Care and Support Ltd,,Bi-Borough Director of Integrated Care,1339.08
24/03/2021,1247852,Look Ahead Care and Support Ltd,,Bi-Borough Director of Integrated Care,1016.14
24/03/2021,1247852,Look Ahead Care and Support Ltd,,Bi-Borough Director of Integrated Care,1016.14
24/03/2021,1247852,Look Ahead Care and Support Ltd,,Bi-Borough Director of Integrated Care,1694.28
24/03/2021,1247852,Look Ahead Care and Support Ltd,,Bi-Borough Director of Integrated Care,1098.95
